Workbook

Sheet TOC
C1: put cursor in column C THEN cntrl-o takes you to that sheet [ALSO: use cntrl-o from anywhere to get back to TOC]
B2: # | C2: type | E2: flag
B3: 1 | C3: Solv2 : solvency 2 capital requirement & regulatory action | E3: random
B4: 2 | C4: InvCap : invested capital & PV(future income) | E4: random
B5: 3 | C5: double_tax : premium margin required to offset double-taxation | E5: random
B6: 4 | C6: taxes1 : tax-basis income | E6: random
B7: 5 | C7: taxes2 : income tax (includes calculating tax-basis income) | E7: random
B8: 6 | C8: taxes3 : calculating the company discount factor | E8: random
B9: 7 | C9: goodwill : GAAP goodwill using cost-of-capital approach | E9: random
B10: 8 | C10: SAP-assets : SAP admitted assets | E10: random
B11: 9 | C11: SAP-liabs : SAP liabilities | E11: random
B12: 10 | C12: IS1 : statutory net income (version 1) | E12: random
B13: 11 | C13: IS2 : policyholder's surplus | E13: random
B14: 12 | C14: IS3 : statutory net income (version 2) | E14: random
B15: 13 | C15: alsuioc : locating items in B/S and I/S | E15: random
B16: 14 | C16: 17F.11 : Schedule P | E16: random
B17: 15 | C17: 17F.13 : carrying value of bonds under SAP | E17: random
B18: 16 | C18: 17F.14 : restating balance sheet | E18: random
B19: 17 | C19: 17F.27b : restate triangles after commutation | E19: random
B20: 18 | C20: RBC1 : Calculating the RBC ratio | E20: random
B21: 19 | C21: RBC2 : Calculating the RBC charges (not the ratio) | E21: random
B22: 20 | C22: RBC3 : Calculate RBC charge R1. | E22: random
B23: 21 | C23: RBC3a : Calculate RBC charge R1. | E23: random
B24: 22 | C24: RBC3b : Calculate RBC charges R1 and R2 | E24: random
B25: 23 | C25: RBC3c : Calculate the RBC charge for R3 | E25: random
B26: 24 | C26: RBC4 : Calculate RBC charge R4 (reserve risk) | E26: random
B27: 25 | C27: RBC5 : Calculate RBC charge R5 (NWP risk) | E27: random
B28: 26 | C28: 17S.13 : Schedule P (& non-Schedule P) losses & premiums for INTERCOMPANY POOLING | E28: random
B29: 27 | C29: 17S.26-easy : change in taxable income - easy version | E29: random
B30: 28 | C30: 17S.26 : change in taxable income | E30: random
B31: 29 | C31: 16S.27 : mutually beneficial commutation price | E31: random
B32: 30 | C32: 10-10 : 10-10 rule for assessing risk transfer | E32: random
B33: 31 | C33: IEE.SA : Allocation of surplus to line of business | E33: random
B34: 32 | C34: IEE.TIA : Calculation of basic IEE quantities: FAIT & TIA | E34: random
B35: 33 | C35: IEE.PL : Pre-tax profit (loss) | E35: random

Sheet Solv2
A1: Reading: | C1: Odomirok.25-Solv2 | L1: | | Z1: |
A2: Model: | C2: 2017.Spring #20 | L2: | | Z2: |
A3: Problem Type: | C3: solvency 2 capital requirement & regulatory action | L3: | | M3: Calculating SCR is trivial. You just have to know to use the 99.5th percentile in the model results | Z3: |
L4: | | Z4: |
A5: Given | C5: IFRS assets | E5: 6600 | L5: | | N5: SCR | O5: = | P5: =I22 -> 4660 | Q5: <== part (a) | Z5: |
A6: random | L6: | | Z6: |
C7: free surplus | E7: ? | G7: risk-free rate | I7: 0.0158 | L7: | | M7: The hard part is calculating the risk margin. Once we have that, the rest is easy. | Z7: |
C8: SCR | E8: ? | G8: illiquidity premium | I8: 0.006 | L8: | | Z8: |
C9: MCR | E9: 2990 | G9: cost-of-capital | L9: | | M9: The number of columns in our table equals the number of years loss payments are expected to occur: | W9: =I16 -> 4 | Z9: |
C10: risk margin | E10: ? | G10: above risk-free rate | I10: 0.065 | J10: = (R - i) | L10: | | Z10: |
C11: best est. liabs | E11: 1760 | L11: | | Q11: year 1 | R11: year 2 | S11: =IF($W$9>=3,"year 3","") -> year 3 | T11: =IF($W$9>=4,"year 4","") -> year 4 | Z11: |
L12: | | M12: (1) | N12: SCR = required capital | Q12: =P5 -> 4660 | R12: =$Q12 -> 4660 | S12: =IF(S$11<>"",$Q12,"") -> 4660 | T12: =IF(T11="","",$Q12) -> 4660 | Z12: |
L13: | | M13: (2) | N13: (R - i) = risk cost-of-capital | Q13: =I10 -> 0.065 | R13: =$Q13 -> 0.065 | S13: =IF(S$11<>"",$Q13,"") -> 0.065 | T13: =IF(T12="","",$Q13) -> 0.065 | Z13: |
C14: * Capital is held until the end of the year. | L14: | | M14: (1) x (2) | N14: cost-of-capital in period | Q14: =IFERROR(Q12*Q13,"") -> 302.9 | R14: =IFERROR(R12*R13,"") -> 302.9 | S14: =IFERROR(S12*S13,"") -> 302.9 | T14: =IFERROR(T12*T13,"") -> 302.9 | Z14: |
L15: | | M15: (4) | N15: duration | Q15: 1 | R15: 2 | S15: =IF(S$11<>"",3,"") -> 3 | T15: =IF(T$11<>"",4,"") -> 4 | Z15: |
C16: * Loss payments are expected to occur this many years: | I16: 4 | L16: | | M16: (5) | N16: discount rate | Q16: =I7+I8 -> 0.0218 | R16: =$Q16 -> 0.0218 | S16: =IF(S$11<>"",$Q16,"") -> 0.0218 | T16: =IF(T15="","",$Q16) -> 0.0218 | Z16: |
C17: (Assume payments are mid-year) | L17: | | M17: (6) | N17: discounted cost-of-capital | Q17: =Q14/(1+Q16)^Q15 -> 296.437659 | R17: =R14/(1+R16)^R15 -> 290.1131915 | S17: =IFERROR(S14/(1+S16)^S15,"") -> 283.9236558 | T17: =IFERROR(T14/(1+T16)^T15,"") -> 277.8661732 | Z17: |
L18: | | Z18: |
C19: * These are the Value-at-Risk model results: | H19: percentile | I19: VaR | L19: | | Z19: |
C20: (Assume SCR values are constant for all | H20: 0.95 | I20: 3140 | L20: | | N20: The risk margin is the sum of the values in row (6) = | S20: =SUM(Q17:T17) -> 1148.340679 | T20: <== part (b) | Z20: |
C21: future years.) | H21: 0.99 | I21: 3500 | L21: | | Z21: |
H22: 0.995 | I22: 4660 | L22: | | M22: The boundaries for ragulator action are: | Z22: |
H23: 0.999 | I23: 5780 | L23: | | Z23: |
L24: | | N24: (best est.) + margin + SCR | Q24: = | R24: =E$11 -> 1760 | S24: + | T24: =S$20 -> 1148.340679 | U24: + | V24: =P$5 -> 4660 | W24: = | X24: =R24+T24+V24 -> 7568.340679 | Z24: |
L25: | | Z25: |
A26: Find | C26: Calculate the following under the Solvency II framework: | L26: | | N26: (best est.) + margin + MCR | Q26: = | R26: =E$11 -> 1760 | S26: + | T26: =S$20 -> 1148.340679 | U26: + | V26: =E9 -> 2990 | W26: = | X26: =R26+T26+V26 -> 5898.340679 | Z26: |
C27: (a) | D27: SCR | L27: | | Z27: |
C28: (b) | D28: risk margin | L28: | | N28: The IFRS assets available | Q28: = | R28: =E5 -> 6600 | S28: <== given in the statement of the problem | Z28: |
C29: (c) | D29: regulator action | L29: | | Z29: |
C30: (d) | D30: free surplus | L30: | | M30: The assets available are | P30: =IF(R28>=X24,"above SCR level", IF(R28<X26,"below MCR level","between MCR and SCR level")) -> between MCR and SCR level | Z30: |
L31: | | Z31: |
L32: | | N32: Regulator action: | P32: =IF(R28>=X24,"no action", IF(R28<X26,"company can no longer operate","intervention")) -> intervention | T32: <== part (c) | Z32: |
L33: | | Z33: |
L34: | | M34: And the free surplus | O34: = | P34: assets available | R34: - | S34: SCR | T34: - | U34: margin | V34: - | W34: best est. | Z34: |
L35: | | O35: = | P35: =E5 -> 6600 | R35: - | S35: =P5 -> 4660 | T35: - | U35: =S20 -> 1148.340679 | V35: - | W35: =E11 -> 1760 | Z35: |
L36: | | N36: free surplus | O36: = | P36: =P35-S35-U35-W35 -> -968.3406794 | Q36: <== part (d) | Z36: |
L37: | | Z37: |
L38: | | Z38: |
L39: | | Z39: |
L40: | | Z40: |
L41: | | Z41: |
L42: | | Z42: |
L43: | | Z43: |
L44: | | Z44: |
L45: | | Z45: |
L46: | | Z46: |
L47: | | Z47: |
L48: | | Z48: |
L49: | | Z49: |
L50: | | Z50: |
L51: | | Z51: |
L52: | | Z52: |
L53: | | Z53: |
L54: | | Z54: |
L55: | | Z55: |
L56: | | Z56: |
L57: | | Z57: |
L58: | | Z58: |
L59: | | Z59: |
L60: ---- | M60: ---- | N60: ---- | O60: ---- | P60: ---- | Q60: ---- | R60: ---- | S60: ---- | T60: ---- | U60: ---- | V60: ---- | W60: ---- | X60: ---- | Y60: ---- | Z60: ----
L61: | | Z61: |
L62: | | Z62: |
L63: | | Z63: |
L64: | | Z64: |
L65: | | Z65: |
L66: | | Z66: |
L67: | | Z67: |
L68: | | Z68: |
L69: | | Z69: |
L70: | | Z70: |
L71: | | Z71: |
L72: | | Z72: |
L73: | | Z73: |
L74: | | Z74: |
L75: | | Z75: |
L76: | | Z76: |
L77: | | Z77: |
L78: | | Z78: |
L79: | | Z79: |
L80: | | Z80: |
L81: | | Z81: |
L82: | | Z82: |
L83: | | Z83: |
L84: | | Z84: |
L85: | | Z85: |
L86: | | Z86: |
L87: | | Z87: |
L88: | | Z88: |
L89: | | Z89: |
L90: | | Z90: |
L91: | | Z91: |
L92: | | Z92: |
L93: | | Z93: |
L94: | | Z94: |
L95: | | Z95: |
L96: | | Z96: |
L97: | | Z97: |
L98: | | Z98: |
L99: | | Z99: |
L100: | | Z100: |
L101: | | Z101: |
L102: | | Z102: |
L103: | | Z103: |
L104: | | Z104: |
L105: | | Z105: |
L106: | | Z106: |
L107: | | Z107: |
L108: | | Z108: |
L109: | | Z109: |
L110: | | Z110: |
L111: | | Z111: |
L112: | | Z112: |
L113: | | Z113: |
L114: | | Z114: |
L115: | | Z115: |
L116: | | Z116: |
L117: | | Z117: |
L118: | | Z118: |
L119: | | Z119: |
L120: ---- | M120: ---- | N120: ---- | O120: ---- | P120: ---- | Q120: ---- | R120: ---- | S120: ---- | T120: ---- | U120: ---- | V120: ---- | W120: ---- | X120: ---- | Y120: ---- | Z120: ----
L121: | | Z121: |
L122: | | Z122: |
L123: | | Z123: |
L124: | | Z124: |
L125: | | Z125: |
L126: | | Z126: |
L127: | | Z127: |
L128: | | Z128: |

Sheet InvCap
A1: Reading: | C1: Feldblum.Surplus | L1: | | Z1: |
A2: Model: | C2: 2018.Spring #12 | L2: | | Z2: |
A3: Problem Type: | C3: invested capital & PV(future income) | L3: | | M3: (a) | N3: invested capital | P3: = | Q3: S + ( % acq x UEP) + (1 - % disc) x R - DTA | Z3: |
L4: | | Z4: |
A5: Given | C5: From a company's CY annual statement: | L5: | | N5: invested capital | P5: = | Q5: S | Z5: |
A6: random | L6: | | P6: + | Q6: ( | R6: % acq | S6: x | T6: UEP | U6: ) | Z6: |
C7: statutory surplus | G7: S | H7: 590 | L7: | | P7: + | Q7: ( | R7: 1 | S7: - | T7: % disc | U7: ) | V7: x | W7: R | Z7: |
C8: deferred tax assets | G8: DTA | H8: 70 | L8: | | P8: - | Q8: DTA | Z8: |
C9: unearned premium reserve | G9: UEP | H9: 440 | L9: | | Z9: |
C10: undiscounted loss reserve | G10: R | H10: 1260 | L10: | | P10: = | Q10: =H7 -> 590 | Z10: |
L11: | | P11: + | Q11: ( | R11: =H19 -> 0.2 | S11: x | T11: =H9 -> 440 | U11: ) | Z11: |
C12: Other junk you need to solve the problem: | L12: | | P12: + | Q12: ( | R12: 1 | S12: - | T12: =H20 -> 0.82 | U12: ) | V12: x | W12: =H10 -> 1260 | Z12: |
L13: | | P13: - | Q13: =H8 -> 70 | Z13: |
C14: written premium (annual) | G14: WP | H14: 730 | L14: | | Z14: |
C15: pre-tax income (annual) | G15: Inc:pre | H15: 160 | L15: | | N15: invested capital | P15: = | Q15: =Q10+R11*T11+(1-T12)*W12-Q13 -> 834.8 | R15: <== answer to part (a) | Z15: |
C16: cost of liquidation | G16: CoL | H16: 70 | L16: | | Z16: |
C17: cost of capital | G17: % CoC | H17: 0.11 | L17: | | Z17: |
C18: tax rate | G18: % tax | H18: 0.35 | L18: | | M18: (b) | N18: PV(future income) | P18: = | Q18: (pre-tax income) x (1 - % tax) / (% CoC) | Z18: |
C19: pre-paid acquisition cost | G19: % acq | H19: 0.2 | L19: | | Z19: |
C20: discount factor for loss reserves | G20: % disc | H20: 0.82 | L20: | | N20: Pv(future income) | P20: = | Q20: PTI | R20: x | S20: ( 1 | T20: - | U20: % tax | V20: ) | W20: / | X20: % CoC | Z20: |
L21: | | P21: = | Q21: =H15 -> 160 | R21: x | S21: ( 1 | T21: - | U21: =H18 -> 0.35 | V21: ) | W21: / | X21: =H17 -> 0.11 | Z21: |
L22: | | N22: Pv(future income) | P22: = | Q22: =Q21*(1-U21)/X21 -> 945.4545455 | R22: <== answer to part (b) | Z22: |
A23: Find | B23: (a) | C23: invested capital for given CY | L23: | | Z23: |
B24: (b) | C24: present value or PV(future income) | L24: | | Z24: |
B25: (c) | C25: would the shareholders prefer liquidation or continued operation of the company | L25: | | Z25: |
L26: | | M26: (c) | N26: Decision Table: | P26: (InvCap = invested capital, CoL = Cost of Liquidation) | Z26: |
L27: | | Z27: |
L28: | | N28: InvCap - CoL | P28: > | Q28: PV(future income) | S28: ==> | T28: liquidate | Z28: |
L29: | | N29: InvCap - CoL | P29: < | Q29: PV(future income) | S29: ==> | T29: continue operations | Z29: |
L30: | | N30: InvCap - CoL | P30: = | Q30: PV(future income) | S30: ==> | T30: doesn't matter (maybe look at income trends?) | Z30: |
L31: | | Z31: |
L32: | | N32: For this problem we have: | Z32: |
L33: | | Z33: |
L34: | | N34: InvCap - CoL | P34: = | Q34: =Q15-H16 -> 764.8 | Z34: |
L35: | | Z35: |
L36: | | N36: This leads to the final answer below: | Z36: |
L37: | | Z37: |
L38: | | N38: invested cap. - CoL | P38: =IF(Q15-H16>Q22,">",IF(Q15-H16<Q22,"<","=")) -> < | Q38: PV(future income) | S38: ==> | T38: =IF(Q15-H16>Q22,"liquidate",IF(Q15-H16<Q22,"continue operations","doesn't matter")) -> continue operations | V38: <== answer to part (c) | Z38: |
L39: | | Z39: |
L40: | | Z40: |
L41: | | M41: Bonus Question | Z41: |
L42: | | Z42: |
L43: | | N43: Assuming all but the indicated variables are fixed, what value of that variable would make the choice | Z43: |
L44: | | N44: between liquidation and continued operations irrelevant? | Z44: |
L45: | | Z45: |
L46: | | N46: (i) | O46: tax rate | Z46: |
L47: | | N47: (ii) | O47: pre-tax income | Z47: |
L48: | | Z48: |
L49: | | Z49: |
L50: | | Z50: |
L51: | | Z51: |
L52: | | Z52: |
L53: | | Z53: |
L54: | | Z54: |
L55: | | Z55: |
L56: | | Z56: |
L57: | | Z57: |
L58: | | Z58: |
L59: | | Z59: |
L60: ---- | M60: ---- | N60: ---- | O60: ---- | P60: ---- | Q60: ---- | R60: ---- | S60: ---- | T60: ---- | U60: ---- | V60: ---- | W60: ---- | X60: ---- | Y60: ---- | Z60: ----
L61: | | Z61: |
L62: | | M62: Answer to Bonus Question (non-random version) | Z62: |
L63: | | Z63: |
L64: | | N64: (i) | O64: 0.37 | P64: (tax rate) | Z64: |
L65: | | N65: (ii) | O65: 48.462 | P65: (pre-tax income) | Z65: |
L66: | | Z66: |
L67: | | M67: Answer to Bonus Question (random version) | Z67: |
L68: | | Z68: |
L69: | | N69: (i) | O69: xxxx | P69: (tax rate) | Z69: |
L70: | | N70: (ii) | O70: =(Q15-H16)*H17/(1-H18) -> 129.4276923 | P70: (pre-tax income) | Z70: |
L71: | | Z71: |
L72: | | Z72: |
L73: | | Z73: |
L74: | | Z74: |
L75: | | Z75: |
L76: | | Z76: |
L77: | | Z77: |
L78: | | Z78: |
L79: | | Z79: |
L80: | | Z80: |
L81: | | Z81: |
L82: | | Z82: |
L83: | | Z83: |
L84: | | Z84: |
L85: | | Z85: |
L86: | | Z86: |
L87: | | Z87: |
L88: | | Z88: |
L89: | | Z89: |
L90: | | Z90: |
L91: | | Z91: |
L92: | | Z92: |
L93: | | Z93: |
L94: | | Z94: |
L95: | | Z95: |
L96: | | Z96: |
L97: | | Z97: |
L98: | | Z98: |
L99: | | Z99: |
L100: | | Z100: |
L101: | | Z101: |
L102: | | Z102: |
L103: | | Z103: |
L104: | | Z104: |
L105: | | Z105: |
L106: | | Z106: |
L107: | | Z107: |
L108: | | Z108: |
L109: | | Z109: |
L110: | | Z110: |
L111: | | Z111: |
L112: | | Z112: |
L113: | | Z113: |
L114: | | Z114: |
L115: | | Z115: |
L116: | | Z116: |
L117: | | Z117: |
L118: | | Z118: |
L119: | | Z119: |
L120: | | Z120: |
L121: | | Z121: |
L122: | | Z122: |
L123: | | Z123: |
L124: | | Z124: |
L125: | | Z125: |
L126: | | Z126: |
L127: | | Z127: |
L128: | | Z128: |
L129: | | Z129: |
L130: | | Z130: |
L131: | | Z131: |
L132: | | Z132: |
L133: | | Z133: |
L134: | | Z134: |
L135: | | Z135: |
L136: | | Z136: |
L137: | | Z137: |
L138: | | Z138: |

Sheet double_tax
A1: Reading: | C1: Feldblum.Surplus | L1: | | Z1: |
A2: Model: | C2: example in source reading | L2: | | Z2: |
A3: Problem Type: | C3: premium margin required to offset double-taxation | L3: | | M3: This is a very easy plug-and-chug problem. | Z3: |
L4: | | M4: (If you know the formula, plug in the numbers and chug the answer with your calculator.) | Z4: |
A5: Given | C5: An investor can directly purchase an investment with a yield of y. The investor can | L5: | | Z5: |
A6: random | C6: alternately place his money in an insurance company and the insurance company | L6: | | M6: margin | N6: = | O6: (capital / premium) | Q6: x | R6: yTC / (1 - TC) | T6: x | U6: (1 + y)-1/2 | Z6: |
C7: will purchase an investment also with a yield of y. This would be an indirect investment. | L7: | | Z7: |
L8: | | M8: margin | N8: = | O8: =D20 -> 1.5 | Q8: x | R8: =G14*G16/(1-G16) -> 0.02692307692 | T8: x | U8: =(1+G14)^-(1/2) -> 0.9759000729 | Z8: |
C9: This indirect investment would be subject to double-taxation as explained in Feldblum's | L9: | | Z9: |
C10: surplus paper. | L10: | | M10: margin | N10: = | O10: =O8*R8*U8 -> 0.0394113491 | P10: <== final answer | Z10: |
L11: | | Z11: |
C12: Assume there are no restrictions on the risk level of the insurer's investments. | L12: | | Z12: |
L13: | | M13: NOTE: | N13: The investor's personal income tax is irrelevant because it's the same for both the direct and indirect options | Z13: |
D14: investment yield | F14: y | G14: 0.05 | L14: | | Z14: |
D15: tax - personal | F15: TP | G15: 0.27 | L15: | | Z15: |
D16: tax - corporate | F16: TC | G16: 0.35 | L16: | | Z16: |
L17: | | Z17: |
C18: The investor wishes to invest an amount of capital equal to: | L18: | | Z18: |
L19: | | Z19: |
D20: 1.5 | E20: times the total policyholder premium | L20: | | Z20: |
L21: | | Z21: |
C22: Assume the premiums are paid at the beginning of the year and tax is not due until | L22: | | Z22: |
C23: the middle of the year. | L23: | | Z23: |
L24: | | Z24: |
L25: | | Z25: |
A26: Find | C26: Given the information above, what % margin must be added to the total policyholder | L26: | | Z26: |
C27: premium to compensate the investor for the double-taxation of the indirect investment | L27: | | Z27: |
C28: option. | L28: | | Z28: |
L29: | | Z29: |
L30: | | Z30: |
L31: | | Z31: |
L32: | | Z32: |
L33: | | Z33: |
L34: | | Z34: |
L35: | | Z35: |
L36: | | Z36: |
L37: | | Z37: |
L38: | | Z38: |
L39: | | Z39: |
L40: | | Z40: |
L41: | | Z41: |
L42: | | Z42: |
L43: | | Z43: |
L44: | | Z44: |
L45: | | Z45: |
L46: | | Z46: |
L47: | | Z47: |
L48: | | Z48: |
L49: | | Z49: |
L50: | | Z50: |
L51: | | Z51: |
L52: | | Z52: |
L53: | | Z53: |
L54: | | Z54: |
L55: | | Z55: |
L56: | | Z56: |
L57: | | Z57: |
L58: | | Z58: |
L59: | | Z59: |
L60: ---- | M60: ---- | N60: ---- | O60: ---- | P60: ---- | Q60: ---- | R60: ---- | S60: ---- | T60: ---- | U60: ---- | V60: ---- | W60: ---- | X60: ---- | Y60: ---- | Z60: ----
L61: | | Z61: |
L62: | | Z62: |
L63: | | Z63: |
L64: | | Z64: |
L65: | | Z65: |
L66: | | Z66: |
L67: | | Z67: |
L68: | | Z68: |
L69: | | Z69: |
L70: | | Z70: |
L71: | | Z71: |
L72: | | Z72: |
L73: | | Z73: |
L74: | | Z74: |
L75: | | Z75: |
L76: | | Z76: |
L77: | | Z77: |
L78: | | Z78: |
L79: | | Z79: |
L80: | | Z80: |
L81: | | Z81: |
L82: | | Z82: |
L83: | | Z83: |
L84: | | Z84: |
L85: | | Z85: |
L86: | | Z86: |
L87: | | Z87: |
L88: | | Z88: |
L89: | | Z89: |
L90: | | Z90: |
L91: | | Z91: |
L92: | | Z92: |
L93: | | Z93: |
L94: | | Z94: |
L95: | | Z95: |
L96: | | Z96: |
L97: | | Z97: |
L98: | | Z98: |
L99: | | Z99: |
L100: | | Z100: |
L101: | | Z101: |
L102: | | Z102: |
L103: | | Z103: |
L104: | | Z104: |
L105: | | Z105: |
L106: | | Z106: |
L107: | | Z107: |
L108: | | Z108: |
L109: | | Z109: |
L110: | | Z110: |
L111: | | Z111: |
L112: | | Z112: |
L113: | | Z113: |
L114: | | Z114: |
L115: | | Z115: |
L116: | | Z116: |
L117: | | Z117: |
L118: | | Z118: |
L119: | | Z119: |
L120: ---- | M120: ---- | N120: ---- | O120: ---- | P120: ---- | Q120: ---- | R120: ---- | S120: ---- | T120: ---- | U120: ---- | V120: ---- | W120: ---- | X120: ---- | Y120: ---- | Z120: ----
L121: | | Z121: |
L122: | | Z122: |
L123: | | Z123: |
L124: | | Z124: |
L125: | | Z125: |
L126: | | Z126: |
L127: | | Z127: |
L128: | | Z128: |

Sheet taxes1
A1: Reading: | C1: Odomirok - Chapter 26 | L1: | | M1: Believe it or not, this is actually an easy problem. You just have to put the right numbers into the formulas. | AA1: |
A2: Model: | C2: 2018.Spring #14 | L2: | | AA2: |
A3: Problem Type: | C3: tax-basis income | L3: | | N3: TBI | O3: = | P3: TBEP | Q3: + | R3: InvInc | S3: - | T3: TBIL | AA3: |
L4: | | AA4: |
A5: Given | C5: policy effective date | E5: Jan 1, CY | L5: | | M5: Let's start with the calculations for CY: | AA5: |
A6: random | C6: loss date | E6: Dec 31, CY | F6: <== reported & recorded on the same day | L6: | | AA6: |
C7: payment date | E7: Dec 31, CY+1 | F7: <== 1 year after loss occurred | L7: | | M7: TBEP is calculated by applying the 'revenue offset': | AA7: |
L8: | | AA8: |
C9: policy premium | E9: 3000 | F9: = EP (assume this is on a SAP basis) | L9: | | N9: TBEP | O9: = | P9: EP | Q9: + | R9: 0.2 | S9: x | T9: chg(UEP) | AA9: |
C10: estimate of loss | E10: 2370 | F10: = L (undiscounted) | L10: | | O10: = | P10: =E9 -> 3000 | Q10: + | R10: 0.2 | S10: x | T10: 0 | AA10: |
C11: investment rate | E11: 0.06 | F11: = i | L11: | | O11: = | P11: =P10+R10*T10 -> 3000 | AA11: |
C12: IRS discount rate: | E12: 0.04 | F12: = d | L12: | | AA12: |
L13: | | M13: For InvInc, we assume the EP was invested on the policy effectve date and earns interest for 1 year. | AA13: |
C14: assume there is no UEP (Unearned Premium) | L14: | | AA14: |
C15: assume the policy is not renewed | L15: | | N15: InvInc | O15: = | P15: EP | Q15: x | R15: ( 1 + i ) | S15: - | T15: EP | AA15: |
L16: | | O16: = | P16: =E9 -> 3000 | Q16: x | R16: =1+E11 -> 1.06 | S16: - | T16: =E9 -> 3000 | AA16: |
A17: Find | C17: tax-basis income for CY and CY+1 | L17: | | O17: = | P17: =P16*R16-T16 -> 180 | AA17: |
L18: | | AA18: |
L19: | | M19: For IL, use the formula below and discount the loss back 1 full year from payment date: | AA19: |
A20: Further | C20: TBI | D20: Tax-Basis Income | F20: <== this is what we want to calculate | L20: | | AA20: |
A21: Notation | C21: TBEP | D21: Tax-Basis Earned Premium | L21: | | N21: TBIL | O21: = | P21: PL | Q21: + | R21: chg( LD ) | AA21: |
C22: InvInc | D22: Investment Income | L22: | | O22: = | P22: 0 | Q22: + | R22: L | S22: / | T22: ( 1 + d ) | AA22: |
C23: PL | D23: Paid Loss (during year) | L23: | | O23: = | P23: =P22 -> 0 | Q23: + | R23: =E10 -> 2370 | S23: / | T23: =1+E12 -> 1.04 | AA23: |
C24: IL | D24: Incurred Loss (during year) | L24: | | O24: = | P24: =P23+R23/T23 -> 2278.846154 | AA24: |
C25: LD | D25: Losses after Discounting | L25: | | AA25: |
L26: | | M26: Substitute these values into the formula for TBI given at the top: | AA26: |
L27: | | AA27: |
L28: | | N28: TBI | O28: = | P28: =P11 -> 3000 | Q28: + | R28: =P17 -> 180 | S28: - | T28: =P24 -> 2278.846154 | AA28: |
L29: | | N29: TBI | O29: = | P29: =P28+R28-T28 -> 901.1538462 | Q29: <== final answer for year CY | AA29: |
L30: | | AA30: |
L31: | | AA31: |
L32: | | M32: Now let's do the calculations for CY+1: | AA32: |
L33: | | AA33: |
L34: | | M34: Following sample answer 1, we'll assume there was no more EP for CY+1: | T34: TBEP | U34: = | V34: 0 | AA34: |
L35: | | AA35: |
L36: | | M36: For InvInc, calculate the additional InvInc accrued over year CY+1 | AA36: |
L37: | | AA37: |
L38: | | N38: InvInc | O38: = | P38: [ 2 years of compunding ] | S38: - | T38: [ 1 year of compunding ] | AA38: |
L39: | | O39: = | P39: [ EP | Q39: x | R39: ( 1 + i )2 ] | S39: - | T39: [ EP | U39: x | V39: ( 1 + i ) ] | AA39: |
L40: | | O40: = | P40: =E9 -> 3000 | Q40: x | R40: =(1+E11)^2 -> 1.1236 | S40: - | T40: =E9 -> 3000 | U40: x | V40: =1+E11 -> 1.06 | AA40: |
L41: | | O41: = | P41: =P40*R40-T40*V40 -> 190.8 | AA41: |
L42: | | AA42: |
L43: | | M43: For IL, chg(LD) is calculated differently for CY+1 because the claim was closed and the reserve went to 0: | AA43: |
L44: | | AA44: |
L45: | | N45: TBIL | O45: = | P45: PL | Q45: + | R45: chg( LD ) | AA45: |
L46: | | O46: = | P46: =E10 -> 2370 | Q46: + | R46: 0 | S46: - | T46: =P24 -> 2278.846154 | AA46: |
L47: | | O47: = | P47: =P46+R46-T46 -> 91.15384615 | AA47: |
L48: | | AA48: |
L49: | | M49: So | N49: TBI | O49: = | P49: =V34+P41-P47 -> 99.64615385 | Q49: <== final answer for year CY+1 (if < 0 then it's a loss) | AA49: |
L50: | | AA50: |
L51: | | AA51: |
L52: | | AA52: |
L53: | | AA53: |
L54: | | AA54: |
L55: | | AA55: |
L56: | | AA56: |
L57: | | AA57: |
L58: | | AA58: |
L59: | | AA59: |
L60: ---- | M60: ---- | N60: ---- | O60: ---- | P60: ---- | Q60: ---- | R60: ---- | S60: ---- | T60: ---- | U60: ---- | V60: ---- | W60: ---- | X60: ---- | Y60: ---- | Z60: ---- | AA60: ----
L61: | | AA61: |
L62: | | AA62: |
L63: | | AA63: |
L64: | | AA64: |
L65: | | AA65: |
L66: | | AA66: |
L67: | | AA67: |
L68: | | AA68: |
L69: | | AA69: |
L70: | | AA70: |
L71: | | AA71: |
L72: | | AA72: |
L73: | | AA73: |
L74: | | AA74: |
L75: | | AA75: |
L76: | | AA76: |
L77: | | AA77: |
L78: | | AA78: |
L79: | | AA79: |
L80: | | AA80: |
L81: | | AA81: |
L82: | | AA82: |
L83: | | AA83: |
L84: | | AA84: |
L85: | | AA85: |
L86: | | AA86: |
L87: | | AA87: |
L88: | | AA88: |
L89: | | AA89: |
L90: | | AA90: |
L91: | | AA91: |
L92: | | AA92: |
L93: | | AA93: |
L94: | | AA94: |
L95: | | AA95: |
L96: | | AA96: |
L97: | | AA97: |
L98: | | AA98: |
L99: | | AA99: |
L100: | | AA100: |
L101: | | AA101: |
L102: | | AA102: |
L103: | | AA103: |
L104: | | AA104: |
L105: | | AA105: |
L106: | | AA106: |
L107: | | AA107: |
L108: | | AA108: |
L109: | | AA109: |
L110: | | AA110: |
L111: | | AA111: |
L112: | | AA112: |
L113: | | AA113: |
L114: | | AA114: |
L115: | | AA115: |
L116: | | AA116: |
L117: | | AA117: |
L118: | | AA118: |
L119: | | AA119: |
L120: | | AA120: |
L121: | | AA121: |
L122: | | AA122: |
L123: | | AA123: |
L124: | | AA124: |
L125: | | AA125: |
L126: | | AA126: |
L127: | | AA127: |
L128: | | AA128: |
L129: | | AA129: |
L130: | | AA130: |
L131: | | AA131: |
L132: | | AA132: |
L133: | | AA133: |
L134: | | AA134: |
L135: | | AA135: |
L136: | | AA136: |
L137: | | AA137: |
L138: | | AA138: |

Sheet taxes2
A1: Reading: | C1: Odomirok - Chapter 26 | L1: | | M1: Main | N1: tax | O1: = | P1: max | Q1: ( | R1: RIT | S1: , | T1: AMIT | U1: ) | Z1: |
A2: Model: | C2: 2017.Fall #21 | L2: | | M2: Formula | O2: = | P2: max | Q2: ( | R2: =P7 -> 51.45 | S2: , | T2: =P11 -> 97.95 | U2: ) | Z2: |
A3: Problem Type: | C3: income tax (includes calculating tax-basis income) | L3: | | O3: = | P3: =MAX(R2,T2) -> 97.95 | Q3: <== final answer | Z3: |
L4: | | Z4: |
A5: Given | H5: CY | I5: CY-1 | L5: | | M5: where | N5: RIT | O5: = | P5: TBI | Q5: x | R5: =H14 -> 0.35 | T5: TBI is calculated | Z5: |
A6: random | C6: written premium | G6: WP | H6: 399 | I6: 374 | L6: | | O6: = | P6: =V15 -> 147 | Q6: x | R6: =H14 -> 0.35 | T6: in Step 1 below | Z6: |
C7: unearned premium | G7: UEP | H7: 72 | I7: 57 | L7: | | O7: = | P7: =P6*R6 -> 51.45 | Z7: |
C8: paid loss | G8: PL | H8: 223 | I8: 221 | L8: | | Z8: |
C9: loss reserves (undiscounted) | G9: LU | H9: 108 | I9: 96 | L9: | | M9: and | N9: AMIT | O9: = | P9: AMTI | Q9: x | R9: 0.2 | T9: AMTI is calculated | Z9: |
C10: loss reserves (discounted) | G10: LD | H10: 99 | I10: 79 | L10: | | O10: = | P10: =P61 -> 489.75 | Q10: x | R10: 0.2 | T10: in Step 2 below | Z10: |
C11: interest on tax-exemplt municipal bonds | G11: B | H11: 20 | I11: 26 | L11: | | O11: = | P11: =P10*R10 -> 97.95 | Z11: |
C12: dividend income | G12: D | H12: 440 | I12: 372 | L12: | | Z12: |
L13: | | M13: Step 1: | N13: calculate RTI (same as TBI, Tax-Basis Income) | Z13: |
C14: corporate tax rate: | H14: 0.35 | L14: | | Z14: |
C15: ownership of dividend-paying corporation: | H15: 0.9 | L15: | | N15: TBI | O15: = | P15: TBEP | Q15: + | R15: InvInc | S15: - | T15: TBIL | U15: = | V15: =P54 -> 147 | W15: <== see below | Z15: |
L16: | | Z16: |
L17: | | M17: 1a | N17: TBEP | O17: = | P17: WP | Q17: - | R17: 0.8 | S17: x | T17: chg(UEP) | Z17: |
A18: Find | C18: income tax for CY | L18: | | O18: = | P18: =H6 -> 399 | Q18: - | R18: 0.8 | S18: x | T18: ( | U18: =H7 -> 72 | V18: - | W18: =I7 -> 57 | X18: ) | Z18: |
L19: | | O19: = | P19: =P18 -> 399 | Q19: - | R19: 0.8 | S19: x | T19: =U18-W18 -> 15 | Z19: |
L20: | | O20: = | P20: =P19-R19*T19 -> 387 | Z20: |
A21: Other | L21: | | Z21: |
A22: Notation | C22: RTI | D22: = Regular Taxable Income (same as TBI, Tax-Basis Income) | L22: | | M22: 1b | N22: InvInc: | O22: this step is more complicated | Z22: |
C23: RIT | D23: = Regular Income Tax | L23: | | Z23: |
C24: AMTI | D24: = Alternative Minimum Taxable Income | L24: | | O24: bond value | T24: =H11 -> 20 | Z24: |
C25: AMIT | D25: = Alternative Minimum Income Tax | L25: | | O25: taxable rate of municipal tax-exempt bond: | T25: 0.15 | Z25: |
L26: | | O26: taxable portion of municipal tax-exempt bond: | T26: =T24*T25 -> 3 | Z26: |
L27: | | Z27: |
L28: | | O28: non-taxable portion of municipal tax-exempt bond: | T28: =T24 -> 20 | U28: - | V28: =T26 -> 3 | W28: = | X28: =T28-V28 -> 17 | Z28: |
L29: | | Z29: |
L30: | | O30: dividend income | T30: =H12 -> 440 | Z30: |
L31: | | O31: ownership of dividend-paying corporation | T31: =H15 -> 0.9 | U31: <== | V31: =IF(T31<20%,"unaffiliated",IF(T31>80%,"controlled","affiliated")) -> controlled | Z31: |
L32: | | O32: % of dividend income subject to tax | T32: =IF(T31<20%,30%,IF(T31>80%,0%,20%)) -> 0 | U32: <== | V32: % is based on ownership status | Z32: |
L33: | | O33: complement of % subject to tax | T33: =1-T32 -> 1 | Z33: |
L34: | | O34: taxable portion of dividend income | X34: 15% = proration % | Z34: |
L35: | | O35: = | P35: =H12 -> 440 | Q35: x | R35: =T32 -> 0 | S35: + | T35: =H12 -> 440 | U35: x | V35: =T33 -> 1 | W35: x | X35: =IF(V31="controlled",0,0.15) -> 0 | Z35: |
L36: | | O36: = | P36: =P35*R35 -> 0 | S36: + | T36: =T35*V35*X35 -> 0 | Z36: |
L37: | | O37: = | P37: =P36+T36 -> 0 | Z37: |
L38: | | Z38: |
L39: | | O39: non-taxable portion of dividend income: | Z39: |
L40: | | O40: = | P40: =H12 -> 440 | Q40: - | R40: =P37 -> 0 | S40: = | T40: =P40-R40 -> 440 | Z40: |
L41: | | Z41: |
L42: | | N42: Final result for InvInc: | Z42: |
L43: | | O43: total taxable portion of InvInc | S43: =T26 -> 3 | T43: + | U43: =P37 -> 0 | V43: = | W43: =S43+U43 -> 3 | X43: <== used for TBI | Z43: |
L44: | | O44: total non-taxable portion of InvInc | S44: =X28 -> 17 | T44: + | U44: =T40 -> 440 | V44: = | W44: =S44+U44 -> 457 | X44: <== used for AMTI | Z44: |
L45: | | Z45: |
L46: | | M46: 1c | N46: TBIL | O46: = | P46: PL | Q46: + | R46: chg(LD) | Z46: |
L47: | | O47: = | P47: =H8 -> 223 | Q47: + | R47: ( | S47: =H10 -> 99 | T47: - | U47: =I10 -> 79 | V47: ) | Z47: |
L48: | | O48: = | P48: =P47+S47-U47 -> 243 | Z48: |
L49: | | Z49: |
L50: | | M50: Combining Steps 1a,b,c gives: | Z50: |
L51: | | Z51: |
L52: | | N52: TBI | O52: = | P52: TBEP | Q52: + | R52: InvInc | S52: - | T52: TBIL | Z52: |
L53: | | O53: = | P53: =P20 -> 387 | Q53: + | R53: =W43 -> 3 | S53: - | T53: =P48 -> 243 | Z53: |
L54: | | O54: = | P54: =P53+R53-T53 -> 147 | Z54: |
L55: | | Z55: |
L56: | | Z56: |
L57: | | M57: Step 2: | N57: calculate AMTI | Z57: |
L58: | | Z58: |
L59: | | N59: AMTI | O59: = | P59: TBI | Q59: + | R59: 0.75 | S59: x | T59: (non-taxable InvInc) | Z59: |
L60: | | O60: = | P60: =P54 -> 147 | Q60: + | R60: 0.75 | S60: x | T60: =W44 -> 457 | Z60: |
L61: | | O61: = | P61: =P60+R60*T60 -> 489.75 | Z61: |
L62: | | Z62: |
L63: | | Z63: |
L64: ---- | M64: ---- | N64: ---- | O64: ---- | P64: ---- | Q64: ---- | R64: ---- | S64: ---- | T64: ---- | U64: ---- | V64: ---- | W64: ---- | X64: ---- | Y64: ---- | Z64: ----
L65: | | Z65: |
L66: | | Z66: |
L67: | | Z67: |
L68: | | Z68: |
L69: | | Z69: |
L70: | | Z70: |
L71: | | Z71: |
L72: | | Z72: |
L73: | | Z73: |
L74: | | Z74: |
L75: | | Z75: |
L76: | | Z76: |
L77: | | Z77: |
L78: | | Z78: |
L79: | | Z79: |
L80: | | Z80: |
L81: | | Z81: |
L82: | | Z82: |
L83: | | Z83: |
L84: | | Z84: |
L85: | | Z85: |
L86: | | Z86: |
L87: | | Z87: |
L88: | | Z88: |
L89: | | Z89: |
L90: | | Z90: |
L91: | | Z91: |
L92: | | Z92: |
L93: | | Z93: |
L94: | | Z94: |
L95: | | Z95: |
L96: | | Z96: |
L97: | | Z97: |
L98: | | Z98: |
L99: | | Z99: |
L100: ---- | M100: ---- | N100: ---- | O100: ---- | P100: ---- | Q100: ---- | R100: ---- | S100: ---- | T100: ---- | U100: ---- | V100: ---- | W100: ---- | X100: ---- | Y100: ---- | Z100: ----
L101: | | Z101: |
L102: | | Z102: |
L103: | | Z103: |
L104: | | Z104: |
L105: | | Z105: |
L106: | | Z106: |
L107: | | Z107: |
L108: | | Z108: |
L109: | | Z109: |
L110: | | Z110: |
L111: | | Z111: |
L112: | | Z112: |
L113: | | Z113: |
L114: | | Z114: |
L115: | | Z115: |
L116: | | Z116: |
L117: | | Z117: |
L118: | | Z118: |
L119: | | Z119: |
L120: | | Z120: |
L121: | | Z121: |
L122: | | Z122: |
L123: | | Z123: |
L124: | | Z124: |
L125: | | Z125: |
L126: | | Z126: |
L127: | | Z127: |
L128: | | Z128: |

Sheet taxes3
A1: Reading: | C1: Odomirok - Chapter 26 | L1: | | Z1: |
A2: Model: | C2: part of 2016.Spring #18 | L2: | | Z2: |
A3: Problem Type: | C3: calculating the company discount factor | L3: | | Z3: |
L4: | | Z4: |
A5: Given | C5: From Schedule P - Part of the AY/CY Annual Statement | L5: | | M5: Since year AY is 12 months old, we may use it as a proxy for the discount factor for AY+2 | Z5: |
A6: random | L6: | | Z6: |
D7: loss & LAE | E7: loss & LAE | L7: | | N7: loss & LAE | O7: loss & LAE | P7: cum. | Q7: incr. | S7: discntd | T7: discount | V7: discount | Z7: |
C8: AY | D8: paid | E8: incurred | L8: | | M8: AY | N8: paid | O8: incurred | P8: % paid | Q8: % paid | R8: % unpaid | S8: % unpaid | T8: factor | V8: period | Z8: |
C9: AY-9 | L9: | | N9: (1) | O9: (2) | P9: (3)=(1)/(2) | Q9: (4) | R9: (5)=1-(3) | S9: (6) | T9: (7)=(6)/(5) | V9: (8) | W9: (9) | Z9: |
C10: AY-8 | L10: | | M10: AY-9 | N10: =D9 -> 0 | O10: =E9 -> 0 | P10: =IFERROR(N10/O10,0) -> 0 | Q10: =IF(P10=0,0,P10-P11) -> 0 | R10: x | S10: x | T10: x | V10: =V11+1 -> 8.5 | W10: =IFERROR(Q10/(1+E$20)^V10,0) -> 0 | Z10: |
C11: AY-7 | L11: | | M11: AY-8 | N11: =D10 -> 0 | O11: 0 | P11: =IFERROR(N11/O11,0) -> 0 | Q11: =IF(P11=0,0,P11-P12) -> 0 | R11: x | S11: x | T11: x | V11: 7.5 | W11: =IFERROR(Q11/(1+E$20)^V11,0) -> 0 | Z11: |
C12: AY-6 | L12: | | M12: AY-7 | N12: 0 | O12: 0 | P12: =IFERROR(N12/O12,0) -> 0 | Q12: 0 | R12: x | S12: x | T12: x | V12: 6.5 | W12: 0 | Z12: |
C13: AY-5 | L13: | | M13: AY-6 | N13: 0 | O13: 0 | P13: =IFERROR(N13/O13,0) -> 0 | Q13: 0 | R13: x | S13: x | T13: x | V13: 5.5 | W13: 0 | Z13: |
C14: AY-4 | D14: 2300 | E14: 2400 | L14: | | M14: AY-5 | N14: 0 | O14: 0 | P14: =IFERROR(N14/O14,0) -> 0 | Q14: 0 | R14: x | S14: x | T14: x | V14: 4.5 | W14: 0 | Z14: |
C15: AY-3 | D15: 3200 | E15: 4100 | L15: | | M15: AY-4 | N15: 2300 | O15: 2400 | P15: =N15/O15 -> 0.9583333333 | Q15: 0.1778455285 | R15: x | S15: x | T15: x | V15: 3.5 | W15: 0.1450348673 | Z15: |
C16: AY-2 | D16: 3200 | E16: 5700 | L16: | | M16: AY-3 | N16: 3200 | O16: 4100 | P16: =N16/O16 -> 0.7804878049 | Q16: 0.2190842961 | R16: x | S16: x | T16: x | V16: 2.5 | W16: 0.1893854392 | Z16: |
C17: AY-1 | D17: 2600 | E17: 6800 | L17: | | M17: AY-2 | N17: 3200 | O17: 5700 | P17: =N17/O17 -> 0.5614035088 | Q17: 0.1790505676 | R17: x | S17: x | T17: x | V17: =V18+1 -> 1.5 | W17: 0.1640653632 | Z17: |
C18: AY | D18: 1300 | E18: 7400 | L18: | | M18: AY-1 | N18: 2600 | O18: 6800 | P18: =N18/O18 -> 0.3823529412 | Q18: 0.2066772655 | R18: x | S18: x | T18: x | V18: 0.5 | W18: 0.2007427061 | Z18: |
L19: | | M19: AY | N19: 1300 | O19: 7400 | P19: =N19/O19 -> 0.1756756757 | Q19: 0.1756756757 | R19: =1-P19 -> 0.8243243243 | S19: =W20 -> 0.6992283757 | T19: =S19/R19 -> 0.848244259 | V19: x | W19: x | Z19: |
C20: discnt rate for AY+2 | E20: 0.06 | L20: | | V20: sum = | W20: =SUM(W10:W19) -> 0.6992283757 | Z20: |
L21: | | M21: (4) | N21: subtract previous row of (3) FROM current row of (3) | Z21: |
A22: Find | C22: discount factor for AY+2 | L22: | | M22: (6) | N22: sum of column (9) | Z22: |
L23: | | M23: (9) | N23: (4) / [(1 + discnt rate for AY+2)^(8)] | Z23: |
A24: Note: | C24: If there is no data for an AY, assume the company wasn't in operation | L24: | | Z24: |
C25: for that AY. | L25: | | M25: final answer for discount factor | P25: = | Q25: last row of column (7) | S25: = | T25: =T19 -> 0.848244259 | Z25: |
L26: | | Z26: |
L27: | | Z27: |
L28: | | Z28: |
L29: | | Z29: |
L30: | | Z30: |
L31: | | Z31: |
L32: | | Z32: |
L33: | | Z33: |
L34: | | Z34: |
L35: | | Z35: |
L36: | | Z36: |
L37: | | Z37: |
L38: | | Z38: |
L39: | | Z39: |
L40: | | Z40: |
L41: | | Z41: |
L42: | | Z42: |
L43: | | Z43: |
L44: | | Z44: |
L45: | | Z45: |
L46: | | Z46: |
L47: | | Z47: |
L48: | | Z48: |
L49: | | Z49: |
L50: | | Z50: |
L51: | | Z51: |
L52: | | Z52: |
L53: | | Z53: |
L54: | | Z54: |
L55: | | Z55: |
L56: | | Z56: |
L57: | | Z57: |
L58: | | Z58: |
L59: | | Z59: |
L60: ---- | M60: ---- | N60: ---- | O60: ---- | P60: ---- | Q60: ---- | R60: ---- | S60: ---- | T60: ---- | U60: ---- | V60: ---- | W60: ---- | X60: ---- | Y60: ---- | Z60: ----
L61: | | Z61: |
L62: | | Z62: |
L63: | | Z63: |
L64: | | Z64: |
L65: | | Z65: |
L66: | | Z66: |
L67: | | Z67: |
L68: | | Z68: |
L69: | | Z69: |
L70: | | Z70: |
L71: | | Z71: |
L72: | | Z72: |
L73: | | Z73: |
L74: | | Z74: |
L75: | | Z75: |
L76: | | Z76: |
L77: | | Z77: |
L78: | | Z78: |
L79: | | Z79: |
L80: | | Z80: |
L81: | | Z81: |
L82: | | Z82: |
L83: | | Z83: |
L84: | | Z84: |
L85: | | Z85: |
L86: | | Z86: |
L87: | | Z87: |
L88: | | Z88: |
L89: | | Z89: |
L90: | | Z90: |
L91: | | Z91: |
L92: | | Z92: |
L93: | | Z93: |
L94: | | Z94: |
L95: | | Z95: |
L96: | | Z96: |
L97: | | Z97: |
L98: | | Z98: |
L99: | | Z99: |
L100: | | Z100: |
L101: | | Z101: |
L102: | | Z102: |
L103: | | Z103: |
L104: | | Z104: |
L105: | | Z105: |
L106: | | Z106: |
L107: | | Z107: |
L108: | | Z108: |
L109: | | Z109: |
L110: | | Z110: |
L111: | | Z111: |
L112: | | Z112: |
L113: | | Z113: |
L114: | | Z114: |
L115: | | Z115: |
L116: | | Z116: |
L117: | | Z117: |
L118: | | Z118: |
L119: | | Z119: |
L120: | | Z120: |
L121: | | Z121: |
L122: | | Z122: |
L123: | | Z123: |
L124: | | Z124: |

Sheet goodwill
A1: Reading: | C1: Odomirok - Chapter 22/23 | L1: | | M1: The first section of the solution calculates FV(loss & LAE) according to the 3 components. | AA1: |
A2: Model: | C2: 2016.Fall #18 | L2: | | AA2: |
A3: Problem Type: | C3: GAAP goodwill using cost-of-capital approach | L3: | | M3: Component #1: | O3: calculate nominal future cash flows of liabilities | AA3: |
L4: | | AA4: |
A5: Given | C5: Amounts at time of acquisition at CY | L5: | | N5: For this problem, we are given the cash flows, otherwise we'd have to calculate them | AA5: |
A6: random | C6: FV(assets) | G6: 430 | L6: | | N6: from the LDFs or the payment pattern. | AA6: |
C7: U.S. GAAP assets | G7: 430 | L7: | | AA7: |
C8: FV(liabilities) other than loss & LAE | G8: 100 | L8: | | M8: Component #2: | O8: discount the nominal cash flows & add a load for illiquidity | AA8: |
C9: purchase price | G9: 61 | L9: | | AA9: |
L10: | | N10: discount rate | P10: = | Q10: risk-free rate | S10: + | T10: illiquidity premium | AA10: |
C11: nominal future cash flows of liabilities | L11: | | P11: = | Q11: =F19 -> 0.02 | S11: + | T11: =F20 -> 0.02 | AA11: |
C12: CY | D12: paid during year | G12: 140 | L12: | | P12: = | Q12: =Q11+T11 -> 0.04 | AA12: |
C13: CY + 1 | D13: paid during year | G13: 90 | L13: | | AA13: |
C14: CY + 2 | D14: paid during year | G14: 20 | L14: | | N14: Actually, all we did here was calculate the discount rate, i. The actual discounting | AA14: |
C15: > CY + 2 | D15: paid during year | G15: 0 | L15: | | N15: is done further down after the risk margin calculation. | AA15: |
L16: | | AA16: |
C17: some more junk you'll need | L17: | | M17: Component #3: | O17: risk margin calculation | T17: CY | U17: =SUM(G12:G$15) -> 250 | AA17: |
C18: pre-tax cost-of-capital | F18: 0.12 | L18: | | T18: CY + 1 | U18: =SUM(G13:G$15) -> 110 | AA18: |
C19: risk-free rate | F19: 0.02 | L19: | | O19: First, we need the cumulative unpaid values | T19: CY + 2 | U19: =SUM(G14:G$15) -> 20 | AA19: |
C20: illiquidity premium | F20: 0.02 | L20: | | O20: at the start of each year. See table at right => | T20: > CY + 2 | U20: =SUM(G15:G$15) -> 0 | AA20: |
L21: | | AA21: |
C22: still more junk you'll need: | L22: | | N22: Then the capital required to support these liabilities = 50% x unpaid: | AA22: |
L23: | | AA23: |
C24: loss & LAE payments are made mid-year | H24: <== use 0.5, 1.5, 2.5,... to discount | L24: | | N24: C0 | O24: = | P24: =G$27 -> 0.5 | Q24: x | R24: =U17 -> 250 | S24: = | T24: =P24*R24 -> 125 | AA24: |
C25: return on capital is paid to investores at year-end | H25: <== use 1, 2, 3,… to discount | L25: | | N25: C1 | O25: = | P25: =G$27 -> 0.5 | Q25: x | R25: =U18 -> 110 | S25: = | T25: =P25*R25 -> 55 | AA25: |
L26: | | N26: C2 | O26: = | P26: =G$27 -> 0.5 | Q26: x | R26: =U19 -> 20 | S26: = | T26: =P26*R26 -> 10 | AA26: |
C27: required capital @ year-end = unpaid x | G27: 0.5 | L27: | | N27: C3 | O27: = | P27: =G$27 -> 0.5 | Q27: x | R27: =U20 -> 0 | S27: = | T27: =P27*R27 -> 0 | AA27: |
C28: (stated slightly differently from exam problem - this is done so that my solution | L28: | | AA28: |
C29: fits the risk-adjustment formula from Odomirok) | L29: | | N29: Now we can apply the risk adjustment formula using the discount rate from above: | AA29: |
L30: | | N30: Note that we use integer exponents because investors are paid at year-end. | AA30: |
A31: Find | C31: value of purchaser's GAAP goodwill using the cost-of-capital approach | L31: | | AA31: |
L32: | | N32: avg(C0, C1) | P32: / | Q32: ="( " & 1+Q$12 & " ) ^ 1" -> ( 1.04 ) ^ 1 | S32: = | T32: =AVERAGE(T24,T25)/(1+Q$12)^1 -> 86.53846154 | AA32: |
L33: | | N33: avg(C1, C2) | P33: / | Q33: ="( " & 1+Q$12 & " ) ^ 2" -> ( 1.04 ) ^ 2 | S33: = | T33: =AVERAGE(T25,T26)/(1+Q$12)^2 -> 30.04807692 | AA33: |
L34: | | N34: avg(C2, C3) | P34: / | Q34: ="( " & 1+Q$12 & " ) ^ 3" -> ( 1.04 ) ^ 3 | S34: = | T34: =AVERAGE(T26,T27)/(1+Q$12)^3 -> 4.444981793 | AA34: |
L35: | | N35: avg(C3, C4) | P35: / | Q35: ="( " & 1+Q$12 & " ) ^ 4" -> ( 1.04 ) ^ 4 | S35: = | T35: =AVERAGE(T27,T28)/(1+Q$12)^4 -> 0 | AA35: |
L36: | | T36: =SUM(T32:T35) -> 121.0315203 | AA36: |
L37: | | S37: x | T37: =F18-Q12 -> 0.08 | U37: = (R - i) | AA37: |
L38: | | S38: risk margin component of FV(liabilities) ==> | T38: =T36*T37 -> 9.68252162 | AA38: |
L39: | | AA39: |
L40: | | M40: solution continued on next page… | AA40: |
L41: | | AA41: |
L42: | | AA42: |
L43: | | AA43: |
L44: | | AA44: |
L45: | | AA45: |
L46: | | AA46: |
L47: | | AA47: |
L48: | | AA48: |
L49: | | AA49: |
L50: | | AA50: |
L51: | | AA51: |
L52: | | AA52: |
L53: | | AA53: |
L54: | | AA54: |
L55: | | AA55: |
L56: | | AA56: |
L57: | | AA57: |
L58: | | AA58: |
L59: | | AA59: |
L60: ---- | M60: ---- | N60: ---- | O60: ---- | P60: ---- | Q60: ---- | R60: ---- | S60: ---- | T60: ---- | U60: ---- | V60: ---- | W60: ---- | X60: ---- | Y60: ---- | Z60: ---- | AA60: ----
L61: | | AA61: |
L62: | | N62: Now we have to calculate the discounted unpaid values using the same discount rate | AA62: |
L63: | | N63: Use the given incremental unpaid values. | AA63: |
L64: | | N64: Note that we use fractional exponents 0.5, 1.5, 2.5,… because payments are made mid-year. | AA64: |
L65: | | AA65: |
L66: | | N66: =G12 -> 140 | P66: / | Q66: ="( " & 1+Q$12 & " ) ^ 0.5" -> ( 1.04 ) ^ 0.5 | S66: = | T66: =N66/(1+Q$12)^0.5 -> 137.2812946 | AA66: |
L67: | | N67: =G13 -> 90 | P67: / | Q67: ="( " & 1+Q$12 & " ) ^ 1.5" -> ( 1.04 ) ^ 1.5 | S67: = | T67: =N67/(1+Q$12)^1.5 -> 84.85794309 | AA67: |
L68: | | N68: =G14 -> 20 | P68: / | Q68: ="( " & 1+Q$12 & " ) ^ 2.5" -> ( 1.04 ) ^ 2.5 | S68: = | T68: =N68/(1+Q$12)^2.5 -> 18.13203912 | AA68: |
L69: | | T69: =SUM(T66:T68) -> 240.2712768 | AA69: |
L70: | | AA70: |
L71: | | N71: Now we have all the pieces of FV(liabilities) | AA71: |
L72: | | AA72: |
L73: | | N73: risk margin | Q73: =T38 -> 9.68252162 | AA73: |
L74: | | N74: unpaid loss & LAE: | Q74: =T69 -> 240.2712768 | AA74: |
L75: | | N75: other than loss & LAE: | Q75: =G8 -> 100 | R75: <== given in the statement of the problem | AA75: |
L76: | | P76: FV(liabilities) = | Q76: =SUM(Q73:Q75) -> 349.9537984 | AA76: |
L77: | | AA77: |
L78: | | N78: We also know: | P78: FV(assets) = | Q78: =G6 -> 430 | R78: <== given in the statement of the problem | AA78: |
L79: | | P79: P = | Q79: =G9 -> 61 | R79: <== given in the statement of the problem | AA79: |
L80: | | N80: Then: | R80: (purchase price) | AA80: |
L81: | | AA81: |
L82: | | N82: goodwill | O82: = | P82: P | Q82: - | R82: [ | S82: FV(assets) | T82: - | U82: FV(liabs) | V82: ] | AA82: |
L83: | | O83: = | P83: =G9 -> 61 | Q83: - | R83: [ | S83: =Q78 -> 430 | T83: - | U83: =Q76 -> 349.9537984 | V83: ] | AA83: |
L84: | | O84: = | P84: =P83-(S83-U83) -> -19.04620157 | Q84: <== final answer | AA84: |
L85: | | AA85: |
L86: | | AA86: |
L87: | | AA87: |
L88: | | AA88: |
L89: | | AA89: |
L90: | | AA90: |
L91: | | AA91: |
L92: | | AA92: |
L93: | | AA93: |
L94: | | AA94: |
L95: | | AA95: |
L96: | | AA96: |
L97: | | AA97: |
L98: | | AA98: |
L99: | | AA99: |
L100: | | AA100: |
L101: | | AA101: |
L102: | | AA102: |
L103: | | AA103: |
L104: | | AA104: |
L105: | | AA105: |
L106: | | AA106: |
L107: | | AA107: |
L108: | | AA108: |
L109: | | AA109: |
L110: | | AA110: |
L111: | | AA111: |
L112: | | AA112: |
L113: | | AA113: |
L114: | | AA114: |
L115: | | AA115: |
L116: | | AA116: |
L117: | | AA117: |
L118: | | AA118: |
L119: | | AA119: |
L120: | | AA120: |
L121: | | AA121: |
L122: | | AA122: |
L123: | | AA123: |
L124: | | AA124: |
L125: | | AA125: |
L126: | | AA126: |
L127: | | AA127: |
L128: | | AA128: |
L129: | | AA129: |
L130: | | AA130: |
L131: | | AA131: |
L132: | | AA132: |
L133: | | AA133: |
L134: | | AA134: |
L135: | | AA135: |
L136: | | AA136: |
L137: | | AA137: |
L138: | | AA138: |

Sheet SAP-assets
A1: Reading: | C1: Odomirok - Chapter 22/23 | L1: | | AA1: |
A2: Model: | C2: 2016.Spring #15a | L2: | | AA2: |
A3: Problem Type: | C3: SAP admitted assets | L3: | | AA3: |
L4: | | AA4: |
A5: Given | C5: Year-end balances: | L5: | | M5: SAP admitted assets include: | AA5: |
A6: random | L6: | | AA6: |
C7: agents' balances < 90 days past due | H7: 3500 | L7: | | N7: =C7 -> agents' balances < 90 days past due | R7: =H7 -> 3500 | AA7: |
C8: agents' balances > 90 days past due | H8: 1400 | L8: | | N8: NAIC Class 2 bond | R8: =H9 -> 30000 | S8: <== Amortized Cost for Class 1 & 2 | AA8: |
C9: NAIC Class 2 bond, amortized cost | H9: 30000 | L9: | | N9: NAIC Class 3 bond | R9: =MIN(H11,H12) -> 44300 | S9: <== min(Amortized Cost, Fair Value) for Class 3,4,5,6 | AA9: |
C10: NAIC Class 2 bond, fair value | H10: 24900 | L10: | | N10: =C13 -> cash & cash equivalents | R10: =H13 -> 51000 | AA10: |
C11: NAIC Class 3 bond, amortized cost | H11: 54000 | L11: | | N11: DTA minus DTL | R11: =H18-H19 -> 2700 | AA11: |
C12: NAIC Class 3 bond, fair value | H12: 44300 | L12: | | Q12: SAP net admitted assets = | R12: =SUM(R7:R11) -> 131500 | AA12: |
C13: cash & cash equivalents | H13: 51000 | L13: | | AA13: |
C14: DAC | H14: 1200 | L14: | | M14: Everything else is excluded for various reasons. | AA14: |
C15: net UEP | H15: 50000 | L15: | | AA15: |
C16: high-deductible unpaid loss below deductible | H16: 15000 | L16: | | AA16: |
C17: DTA (this and DTL would not appear together) | H17: 5000 | L17: | | AA17: |
C18: DTL (this and DTL would not appear together) | H18: 2700 | L18: | | AA18: |
L19: | | AA19: |
L20: | | AA20: |
L21: | | AA21: |
A22: Find | C22: SAP net admitted assets | L22: | | AA22: |
L23: | | AA23: |
L24: | | AA24: |
L25: | | AA25: |
L26: | | AA26: |
L27: | | AA27: |
L28: | | AA28: |
L29: | | AA29: |
L30: | | AA30: |
L31: | | AA31: |
L32: | | AA32: |
L33: | | AA33: |
L34: | | AA34: |
L35: | | AA35: |
L36: | | AA36: |
L37: | | AA37: |
L38: | | AA38: |
L39: | | AA39: |
L40: | | AA40: |
L41: | | AA41: |
L42: | | AA42: |
L43: | | AA43: |
L44: | | AA44: |
L45: | | AA45: |
L46: | | AA46: |
L47: | | AA47: |
L48: | | AA48: |
L49: | | AA49: |
L50: | | AA50: |
L51: | | AA51: |
L52: | | AA52: |
L53: | | AA53: |
L54: | | AA54: |
L55: | | AA55: |
L56: | | AA56: |
L57: | | AA57: |
L58: | | AA58: |
L59: | | AA59: |
L60: ---- | M60: ---- | N60: ---- | O60: ---- | P60: ---- | Q60: ---- | R60: ---- | S60: ---- | T60: ---- | U60: ---- | V60: ---- | W60: ---- | X60: ---- | Y60: ---- | Z60: ---- | AA60: ----
L61: | | AA61: |
L62: | | AA62: |
L63: | | AA63: |
L64: | | AA64: |
L65: | | AA65: |
L66: | | AA66: |
L67: | | AA67: |
L68: | | AA68: |
L69: | | AA69: |
L70: | | AA70: |
L71: | | AA71: |
L72: | | AA72: |
L73: | | AA73: |
L74: | | AA74: |
L75: | | AA75: |
L76: | | AA76: |
L77: | | AA77: |
L78: | | AA78: |
L79: | | AA79: |
L80: | | AA80: |
L81: | | AA81: |
L82: | | AA82: |
L83: | | AA83: |
L84: | | AA84: |
L85: | | AA85: |
L86: | | AA86: |
L87: | | AA87: |
L88: | | AA88: |
L89: | | AA89: |
L90: | | AA90: |
L91: | | AA91: |
L92: | | AA92: |
L93: | | AA93: |
L94: | | AA94: |
L95: | | AA95: |
L96: | | AA96: |
L97: | | AA97: |
L98: | | AA98: |
L99: | | AA99: |
L100: | | AA100: |
L101: | | AA101: |
L102: | | AA102: |
L103: | | AA103: |
L104: | | AA104: |
L105: | | AA105: |
L106: | | AA106: |
L107: | | AA107: |
L108: | | AA108: |
L109: | | AA109: |
L110: | | AA110: |
L111: | | AA111: |
L112: | | AA112: |
L113: | | AA113: |
L114: | | AA114: |
L115: | | AA115: |
L116: | | AA116: |
L117: | | AA117: |
L118: | | AA118: |
L119: | | AA119: |
L120: | | AA120: |
L121: | | AA121: |
L122: | | AA122: |
L123: | | AA123: |
L124: | | AA124: |
L125: | | AA125: |
L126: | | AA126: |
L127: | | AA127: |
L128: | | AA128: |
L129: | | AA129: |
L130: | | AA130: |
L131: | | AA131: |
L132: | | AA132: |
L133: | | AA133: |
L134: | | AA134: |
L135: | | AA135: |
L136: | | AA136: |
L137: | | AA137: |
L138: | | AA138: |

Sheet SAP-liabs
A1: Reading: | C1: Odomirok - Chapter 22/23 | L1: | | AA1: |
A2: Model: | C2: 2016.Spring #15b | L2: | | AA2: |
A3: Problem Type: | C3: SAP liabilities | L3: | | M3: Step 1: | N3: For direct & assumed unpaid loss & DCC: | AA3: |
L4: | | N4: ==> sum(AY-1, AY) for Case, Bulk & IBNR | S4: = | T4: =SUM(H6:I6)+SUM(H8:I8)+SUM(H10:I10)+SUM(H12:I12) -> 72300 | AA4: |
A5: Given | C5: item | H5: CY/AY-1 | I5: CY/AY | L5: | | AA5: |
A6: random | C6: unpaid loss: Case direct & assumed | H6: 11000 | I6: 13800 | L6: | | M6: Step 2: | N6: For ceded unpaid loss & DCC | AA6: |
C7: unpaid loss: Case ceded | H7: 1400 | I7: 1500 | L7: | | N7: ==> subtract sum(AY-1, AY) for Case, Bulk & IBNR | S7: = | T7: =SUM(H7:I7)+SUM(H9:I9)+SUM(H11:I11)+SUM(H13:I13) -> 8100 | AA7: |
C8: unpaid loss: Bulk & IBNR direct & assumed | H8: 13400 | I8: 19900 | L8: | | AA8: |
C9: unpaid loss: Bulk & IBNR ceded | H9: 900 | I9: 2500 | L9: | | M9: Step 3: | N9: For direct & assumed unpaid A&O: | AA9: |
C10: unpaid DCC: Case direct & assumed | H10: 2600 | I10: 2900 | L10: | | N10: ==> sum(AY-1, AY) for Case | S10: = | T10: =SUM(H14:I14) -> 3000 | AA10: |
C11: unpaid DCC: Case ceded | H11: 600 | I11: 300 | L11: | | AA11: |
C12: unpaid DCC: Bulk & IBNR direct & assumed | H12: 3700 | I12: 5000 | L12: | | M12: Step 4: | N12: For ceded unpaid A&O | AA12: |
C13: unpaid DCC: Bulk & IBNR ceded | H13: 200 | I13: 700 | L13: | | N13: ==> subtract sum(AY-1, AY) for Case | S13: = | T13: =SUM(H15:I15) -> 40 | AA13: |
C14: unpaid A&O: direct & assumed | H14: 1100 | I14: 1900 | L14: | | AA14: |
C15: unpaid A&O: ceded | H15: 10 | I15: 30 | L15: | | M15: Step5: | N15: Add current year net UEP | S15: = | T15: =I17 -> 64900 | AA15: |
C16: anticipated salvage & subrogation | H16: 1400 | I16: 1800 | L16: | | AA16: |
C17: net UEP | H17: n/a | I17: 64900 | L17: | | AA17: |
L18: | | M18: Final answer | AA18: |
L19: | | M19: = | N19: Step 1 | O19: - | P19: Step 2 | Q19: + | R19: Step 3 | S19: - | T19: Step 4 | U19: + | V19: Step 5 | AA19: |
A20: Find | C20: SAP liabilities | L20: | | M20: = | N20: =T4 -> 72300 | O20: - | P20: =T7 -> 8100 | Q20: + | R20: =T10 -> 3000 | S20: - | T20: =T13 -> 40 | U20: + | V20: =T15 -> 64900 | AA20: |
L21: | | M21: = | N21: =N20-P20+R20-T20+V20 -> 132060 | AA21: |
L22: | | AA22: |
L23: | | AA23: |
L24: | | AA24: |
L25: | | AA25: |
L26: | | AA26: |
L27: | | AA27: |
L28: | | AA28: |
L29: | | AA29: |
L30: | | AA30: |
L31: | | AA31: |
L32: | | AA32: |
L33: | | AA33: |
L34: | | AA34: |
L35: | | AA35: |
L36: | | AA36: |
L37: | | AA37: |
L38: | | AA38: |
L39: | | AA39: |
L40: | | AA40: |
L41: | | AA41: |
L42: | | AA42: |
L43: | | AA43: |
L44: | | AA44: |
L45: | | AA45: |
L46: | | AA46: |
L47: | | AA47: |
L48: | | AA48: |
L49: | | AA49: |
L50: | | AA50: |
L51: | | AA51: |
L52: | | AA52: |
L53: | | AA53: |
L54: | | AA54: |
L55: | | AA55: |
L56: | | AA56: |
L57: | | AA57: |
L58: | | AA58: |
L59: | | AA59: |
L60: ---- | M60: ---- | N60: ---- | O60: ---- | P60: ---- | Q60: ---- | R60: ---- | S60: ---- | T60: ---- | U60: ---- | V60: ---- | W60: ---- | X60: ---- | Y60: ---- | Z60: ---- | AA60: ----
L61: | | AA61: |
L62: | | AA62: |
L63: | | AA63: |
L64: | | AA64: |
L65: | | AA65: |
L66: | | AA66: |
L67: | | AA67: |
L68: | | AA68: |
L69: | | AA69: |
L70: | | AA70: |
L71: | | AA71: |
L72: | | AA72: |
L73: | | AA73: |
L74: | | AA74: |
L75: | | AA75: |
L76: | | AA76: |
L77: | | AA77: |
L78: | | AA78: |
L79: | | AA79: |
L80: | | AA80: |
L81: | | AA81: |
L82: | | AA82: |
L83: | | AA83: |
L84: | | AA84: |
L85: | | AA85: |
L86: | | AA86: |
L87: | | AA87: |
L88: | | AA88: |
L89: | | AA89: |
L90: | | AA90: |
L91: | | AA91: |
L92: | | AA92: |
L93: | | AA93: |
L94: | | AA94: |
L95: | | AA95: |
L96: | | AA96: |
L97: | | AA97: |
L98: | | AA98: |
L99: | | AA99: |
L100: | | AA100: |
L101: | | AA101: |
L102: | | AA102: |
L103: | | AA103: |
L104: | | AA104: |
L105: | | AA105: |
L106: | | AA106: |
L107: | | AA107: |
L108: | | AA108: |
L109: | | AA109: |
L110: | | AA110: |
L111: | | AA111: |
L112: | | AA112: |
L113: | | AA113: |
L114: | | AA114: |
L115: | | AA115: |
L116: | | AA116: |
L117: | | AA117: |
L118: | | AA118: |
L119: | | AA119: |
L120: | | AA120: |
L121: | | AA121: |
L122: | | AA122: |
L123: | | AA123: |
L124: | | AA124: |
L125: | | AA125: |
L126: | | AA126: |
L127: | | AA127: |
L128: | | AA128: |
L129: | | AA129: |
L130: | | AA130: |
L131: | | AA131: |
L132: | | AA132: |
L133: | | AA133: |
L134: | | AA134: |
L135: | | AA135: |
L136: | | AA136: |
L137: | | AA137: |
L138: | | AA138: |

Sheet IS1
A1: Reading: | C1: Odomirok - Chapter 8/9 | L1: |
A2: Model: | C2: 2018.Spring #10 | L2: |
A3: Problem Type: | C3: statutory net income (version 1) | L3: | | M3: Just apply the formulas in the wiki
L4: |
A5: Given | C5: CY written premium (year x) | H5: 88600 | L5: | | N5: U/W income | P5: = | Q5: =H6-H7-H8-E12-F12 -> 8343.6
A6: random | C6: CY earned premium (year x) | H6: 84400 | J6: check | L6: | | N6: net investment income | P6: = | Q6: =H16+H17 -> 6895.48
C7: AY ultimate loss (year x) | H7: 66000 | J7: 0.7701421801 | L7: | | N7: other income | P7: = | Q7: =SUM(H19:H21)-H22 -> -83.556
C8: change in AY ultimate loss (year x-1 & prior) | H8: -1000 | L8: | | Q8: =SUM(Q5:Q7) -> 15155.524
L9: |
F10: other U/W | G10: investment | L10: |
E11: LAE | F11: expense | G11: expense | H11: TOTAL | J11: check | L11: |
C12: expenses incurred | E12: 3544.8 | F12: 7511.6 | G12: 422 | H12: 11478.4 | J12: 0.042 | L12: |
C13: expenses paid | E13: 3473.904 | F13: 8262.76 | G13: 506.4 | H13: -100 | J13: 0.089 | L13: |
L14: |
L15: |
C16: net investment income earned | H16: 6752 | L16: |
C17: net realized capital gains | H17: 143.48 | L17: |
C18: net unrealized capital gains | H18: 10.128 | L18: |
C19: net gain from agents' or premium balances charged off | H19: 12.66 | L19: |
C20: finance & service charges not in premiums | H20: 15.192 | L20: |
C21: aggregate write-ins for miscellaneous income | H21: 10.972 | L21: |
C22: dividends to policyholders | H22: 122.38 | L22: |
C23: dividends to stockholders | H23: 903.08 | L23: |
L24: |
L25: |
A26: Find | C26: statutory net income | L26: |
L27: |
L28: |
L29: |
L30: |
L31: |
L32: |
L33: |
L34: |
L35: |
L36: |
L37: |
L38: |
L39: |
L40: |
L41: |
L42: |
L43: |
L44: |
L45: |
L46: |
L47: |
L48: |
L49: |
L50: |
L51: |
L52: |
L53: |
L54: |
L55: |
L56: |
L57: |
L58: |
L59: |
L60: ---- | M60: ---- | N60: ---- | O60: ---- | P60: ---- | Q60: ---- | R60: ---- | S60: ---- | T60: ---- | U60: ---- | V60: ---- | W60: ---- | X60: ---- | Y60: ---- | Z60: ---- | AA60: ----
L61: |
L62: |
L63: |
L64: |
L65: |
L66: |
L67: |
L68: |
L69: |
L70: |
L71: |
L72: |
L73: |
L74: |
L75: |
L76: |
L77: |
L78: |
L79: |
L80: |
L81: |
L82: |
L83: |
L84: |
L85: |
L86: |
L87: |
L88: ---- | M88: ---- | N88: ---- | O88: ---- | P88: ---- | Q88: ---- | R88: ---- | S88: ---- | T88: ---- | U88: ---- | V88: ---- | W88: ---- | X88: ---- | Y88: ---- | Z88: ---- | AA88: ----
L89: |
L90: |
L91: |
L92: |
L93: |
L94: |
L95: |
L96: |
L97: |
L98: |
L99: |
L100: |
L101: |
L102: |
L103: |
L104: |
L105: |
L106: |
L107: |
L108: |
L109: |
L110: |
L111: |
L112: |
L113: |
L114: |
L115: |
L116: |
L117: |
L118: |
L119: |
L120: |
L121: |
L122: |
L123: |
L124: |
L125: |
L126: |
L127: |
L128: |
L129: |
L130: |
L131: |
L132: |
L133: |
L134: |
L135: |
L136: |
L137: |
L138: |
L139: |
L140: |
L141: |
L142: |
L143: |
L144: |
L145: |
L146: |
L147: |
L148: |

Sheet IS2
A1: Reading: | C1: Odomirok - Chapter 8/9 | L1: | | M1: surplus | N1: = | O1: =X23 -> 3378
A2: Model: | C2: 2017.Fall #10 | L2: |
A3: Problem Type: | C3: policyholder's surplus | L3: |
L4: | | T4: Classification
A5: Given | D5: item | H5: 2017 | I5: 2016 | L5: | | M5: +/- | N5: current (unless otherwise stated) | R5: value | T5: net income | V5: other | X5: item
A6: random | C6: A | D6: policyholder's surplus | I6: 4150 | L6: | | M6: + | N6: prior policyholder's surplus | R6: =I6 -> 4150 | V6: =R6 -> 4150 | X6: =N6 -> prior policyholder's surplus
C7: B | D7: NWP | H7: 3990 | I7: 3060 | L7: | | M7: -------- | N7: =D7 -> NWP
C8: C | D8: NEP | H8: 3200 | I8: 2400 | L8: | | M8: + | N8: NEP | R8: =H8 -> 3200 | T8: =R8 -> 3200
C9: D | D9: incurred losses | H9: 2440 | I9: 1410 | L9: | | M9: - | N9: incurred losses | R9: =-H9 -> -2440 | T9: -2440
C10: E | D10: LAE | H10: 550 | I10: 310 | L10: | | M10: - | N10: LAE | R10: =-H10 -> -550 | T10: -550
C11: F | D11: other U/W expenses | H11: 710 | I11: 660 | L11: | | M11: - | N11: other U/W expenses | R11: =-H11 -> -710 | T11: -710
C12: G | D12: net investment income earned | H12: 360 | I12: 330 | L12: | | M12: + | N12: net investment income earned | R12: =H12-72 -> 288 | T12: 288
C13: H | D13: net realized capital gains less tax | H13: 70 | I13: 40 | L13: | | M13: + | N13: net realized capital gains less tax | R13: ---- | T13: ----
C14: I | D14: net unrealized capital gains less tax | H14: 440 | I14: 550 | L14: | | M14: + chg | N14: net unrealized capital gains less tax | R14: =H14-I14 -> -110 | V14: =R14 -> -110 | X14: =N14 -> net unrealized capital gains less tax
C15: J | D15: other income | H15: 40 | I15: 80 | L15: | | M15: + | N15: other income | R15: =H15 -> 40 | T15: =R15 -> 40
C16: K | D16: dividends to policyholders | H16: 40 | I16: 40 | L16: | | M16: - | N16: dividends to policyholders | R16: =-H16 -> -40 | T16: =R16 -> -40
C17: L | D17: dividends to stockholders | H17: 150 | I17: 110 | L17: | | M17: - | N17: dividends to stockholders | R17: =-H17 -> -150 | V17: =R17 -> -150 | X17: =N17 -> dividends to stockholders
C18: M | D18: federal & foreign taxes | H18: 40 | I18: 0 | L18: | | M18: - | N18: federal & foreign taxes | R18: =-H18 -> -40 | T18: =R18 -> -40
C19: N | D19: net deferred income tax | H19: 160 | I19: 160 | L19: | | M19: + chg | N19: net deferred income tax | R19: =H19-I19 -> 0 | V19: =R19 -> 0 | X19: =N19 -> net deferred income tax
C20: O | D20: provision for reinsurance | H20: 40 | I20: 70 | L20: | | M20: - chg | N20: provision for reinsurance | R20: =H20-I20 -> -30 | V20: =-R20 -> 30 | X20: =N20 -> provision for reinsurance
C21: P | D21: total assets | H21: 5780 | I21: 4790 | L21: | | M21: -------- | N21: total assets
C22: Q | D22: non-admitted assets | H22: 690 | I22: 400 | L22: | | M22: - chg | N22: non-admitted assets | R22: =H22-I22 -> 290 | V22: =-R22 -> -290 | X22: =N22 -> non-admitted assets
L23: | | R23: =SUM(R6:R22) -> 3898 | T23: =SUM(T6:T22) -> -252 | U23: + | V23: =SUM(V6:V22) -> 3630 | W23: = | X23: =T23+V23 -> 3378
L24: |
A25: Find | C25: current year's policyholder's surplus | L25: | | M25: Note:
L26: | | N26: net income | T26: =T23 -> -252
A27: Hint: | C27: It helps to figure out which items in the table count as income and which items | L27: | | N27: direct charges to surplus | T27: =SUM(V7:V22) -> -520 | V27: <== sum(other) - prior surpus
C28: count as direct charges to surplus. | L28: | | N28: change in surplus | T28: =SUM(T26:T27) -> -772
L29: |
C30: That's because direct charges to surplus are treated differently. They do not flow | L30: |
C31: through the income statement on their way to surplus. They go directly to surplus. | L31: |
L32: |
L33: |
L34: |
L35: |
L36: |
L37: |
L38: |
L39: |
L40: |
L41: |
L42: |
L43: |
L44: |
L45: |
L46: |
L47: |
L48: |
L49: |
L50: |
L51: |
L52: |
L53: |
L54: |
L55: |
L56: |
L57: |
L58: |
L59: |
L60: ---- | M60: ---- | N60: ---- | O60: ---- | P60: ---- | Q60: ---- | R60: ---- | S60: ---- | T60: ---- | U60: ---- | V60: ---- | W60: ---- | X60: ---- | Y60: ---- | Z60: ---- | AA60: ----
L61: |
L62: |
L63: |
L64: | | M64: 0 | N64: 1
L65: | | M65: 1 | N65: 0.76
L66: | | M66: 0.88 | N66: 0.61
L67: | | M67: 0.64 | N67: 0.38
L68: | | M68: 0.15 | N68: 0.08
L69: | | M69: 0.19 | N69: 0.16
L70: | | M70: 0.09 | N70: 0.08
L71: | | M71: 0.02 | N71: 0.01
L72: | | M72: 0.11 | N72: 0.14
L73: | | M73: 0.01 | N73: 0.02
L74: | | M74: 0.01 | N74: 0.01
L75: | | M75: 0.04 | N75: 0.03
L76: | | M76: 0.01 | N76: 0
L77: | | M77: 0.04 | N77: 0.04
L78: | | M78: 0.01 | N78: 0.02
L79: | | M79: 1.38 | N79: 1.22
L80: | | M80: 0.18 | N80: 0.11
L81: |
L82: |
L83: |
L84: |
L85: |
L86: |
L87: |
L88: |
L89: |
L90: |
L91: |
L92: |
L93: |
L94: |
L95: |
L96: |
L97: |
L98: |
L99: |
L100: |
L101: |
L102: |
L103: |
L104: |
L105: |
L106: |
L107: |
L108: |
L109: |
L110: |
L111: |
L112: |
L113: |
L114: |
L115: |
L116: |
L117: |
L118: |
L119: |
L120: |
L121: |
L122: |
L123: |
L124: |
L125: |
L126: |
L127: |
L128: |
L129: |
L130: |
L131: |
L132: |
L133: |
L134: |
L135: |
L136: |
L137: |
L138: |
L139: |
L140: |
L141: |
L142: |
L143: |
L144: |
L145: |
L146: |
L147: |
L148: |

Sheet IS3
A1: Reading: | C1: Odomirok - Chapter 8/9 | L1: | | M1: NICY = | N1: =P35 -> 22064
A2: Model: | C2: 2017.Spring #9 | L2: |
A3: Problem Type: | C3: statutory net income (version 2) | L3: |
L4: |
A5: Given | C5: Liabilities, Surplus, and Other Funds | G5: current | H5: prior | L5: |
A6: random | G6: year | H6: year | L6: | | M6: Apply the formula to find NICY:
C7: * provision for reinsurance | G7: 359 | H7: 387 | L7: |
C8: surplus notes | G8: 105 | H8: 100 | L8: | | N8: surplusCY = surplusCY-1 + NICY + (direct charge to surplus)CY
C9: gross paid-in & contributed surplus | G9: 7600 | H9: 900 | L9: |
C10: PH surplus | G10: 69350 | H10: 42450 | L10: | | M10: We know:
L11: |
E12: current | F12: prior | L12: | | N12: surplusCY | O12: = | P12: =G10 -> 69350
E13: year | F13: year | G13: * change | L13: | | N13: surplusCY-1 | O13: = | P13: =H10 -> 42450
C14: Nonadmitted Assets | E14: 733 | F14: 495 | G14: -238 | L14: |
L15: | | M15: The hard part is calculating: | P15: (direct charge to surplus)CY
D16: * change = - [ (current year) - (prior year) ] | L16: |
L17: | | M17: The componenets are:
C18: Capital Gains/Losses | L18: |
C19: realized gains on sales/maturity | G19: 53 | L19: | | N19: other surplus changes:
C20: other realized adjustments | G20: 1 | L20: | | O20: changes in unrealized capital gains | T20: = | U20: =G22 -> 21
C21: total capital gain | G21: 54 | L21: | | O21: changes in unrealized foreign exchange | T21: = | U21: =G23 -> -10
C22: * change in unrealized capital gain | G22: 21 | L22: | | O22: changes in deferred income tax | T22: = | U22: =0 -> 0
C23: * change in unrealized foreign exchange | G23: -10 | L23: | | O23: changes in nonadmitted assets | T23: = | U23: =G14 -> -238 | V23: <== sign reversed
L24: | | O24: changes in provision for reinsurance | T24: = | U24: =-(G7-H7) -> 28 | V24: <== sign reversed
D25: * change = + [ (current year) - (prior year) ] | L25: | | O25: cumulative effect of accounting principle change | T25: = | U25: =H29 -> 1000
L26: |
C27: dividends to policyholders | H27: 40 | L27: | | N27: additional capital contributions
C28: dividends to stockholders | H28: 2670 | L28: | | O28: change in surplus notes | R28: = | S28: =G8-H8 -> 5
C29: cumulative effect of accounting principle change | H29: 1000 | L29: | | O29: change in paid-in surplus | R29: = | S29: =G9-H9 -> 6700
L30: |
L31: | | N31: stockholder dividends | P31: = | Q31: =-H28 -> -2670 | R31: <== sign reversed
A32: Find | C32: statutory net income | L32: |
L33: | | M33: Finally: | N33: (direct charge to surplus)CY | Q33: = | R33: =SUM(U20:U25)+SUM(S28:S29)+Q31 -> 4836 | S33: (sum the above items in blue)
L34: |
L35: | | M35: It's now easy to solve for NICY: | P35: =P12-P13-R33 -> 22064
L36: |
L37: |
L38: |
L39: |
L40: |
L41: |
L42: |
L43: |
L44: |
L45: |
L46: |
L47: |
L48: |
L49: |
L50: |
L51: |
L52: |
L53: |
L54: |
L55: |
L56: |
L57: |
L58: |
L59: |
L60: ---- | M60: ---- | N60: ---- | O60: ---- | P60: ---- | Q60: ---- | R60: ---- | S60: ---- | T60: ---- | U60: ---- | V60: ---- | W60: ---- | X60: ---- | Y60: ---- | Z60: ---- | AA60: ----
L61: |
L62: |
L63: |
L64: |
L65: |
L66: |
L67: |
L68: |
L69: |
L70: |
L71: |
L72: |
L73: |
L74: |
L75: |
L76: |
L77: |
L78: |
L79: |
L80: |
L81: |
L82: |
L83: |
L84: |
L85: |
L86: |
L87: |
L88: ---- | M88: ---- | N88: ---- | O88: ---- | P88: ---- | Q88: ---- | R88: ---- | S88: ---- | T88: ---- | U88: ---- | V88: ---- | W88: ---- | X88: ---- | Y88: ---- | Z88: ---- | AA88: ----
L89: |
L90: |
L91: |
L92: |
L93: |
L94: |
L95: |
L96: |
L97: |
L98: |
L99: |
L100: |
L101: |
L102: |
L103: |
L104: |
L105: |
L106: |
L107: |
L108: |
L109: |
L110: |
L111: |
L112: |
L113: |
L114: |
L115: |
L116: |
L117: |
L118: |
L119: |
L120: |
L121: |
L122: |
L123: |
L124: |
L125: |
L126: |
L127: |
L128: |
L129: |
L130: |
L131: |
L132: |
L133: |
L134: |
L135: |
L136: |
L137: |
L138: |
L139: |
L140: |
L141: |
L142: |
L143: |
L144: |
L145: |
L146: |
L147: |
L148: |

Sheet alsuioc
A1: Reading: | C1: Odomirok | L1: |
A2: Model: | C2: original | L2: |
A3: Problem Type: | C3: locating items in B/S and I/S | L3: |
L4: |
A5: Given | C5: item | L5: | | N5: location
A6: random | C6: 36.1 Less treasury stock, at cost: shares common (value included in Line 30) | L6: | | N6: s
C7: 4.1 Real estate: Properties occupied by the company (less $ encumbrances) | L7: | | N7: a
C8: 21. Payable for securities | L8: | | N8: l
C9: 4.1 Real estate: Properties occupied by the company (less $ encumbrances) | L9: | | N9: a
C10: 10. Net realized capital gains (losses) less capital gains tax (Exhibit of Capital Gains (Losses)) | L10: | | N10: i
C11: 15. Remittances and items not allocated | L11: | | N11: l
C12: 33. Surplus adjustments: | L12: | | N12: c
C13: 15.3 Premiums and considerations: Accrued retrospective premiums ($ ) and contracts subject to redetermination | L13: | | N13: a
C14: 9. Net investment income earned (Exhibit of Net Investment Income, Line 17) | L14: | | N14: i
C15: 2502. Other liabilities | L15: | | N15: d
L16: |
L17: |
A18: Find | C18: Indicate the location of each item using the following letters: | L18: |
L19: |
C20: a | D20: B/S: asset side | L20: |
C21: l | D21: B/S: liability side (liability item) | L21: |
C22: s | D22: B/S: liability side (surplus item) | L22: |
C23: d | D23: B/S exhibit: details of write-ins | L23: |
C24: u | D24: I/S exhibit: U/W income | L24: |
C25: i | D25: I/S exhibit: investment income | L25: |
C26: o | D26: I/S exhibit: other income | L26: |
C27: c | D27: I/S exhibit: capital & surplus account | L27: |
L28: |
L29: |
L30: |
L31: |
L32: |
L33: |
L34: |
L35: |
L36: |
L37: |
L38: |
L39: |
L40: |
L41: |
L42: |
L43: |
L44: |
L45: |
L46: |
L47: |
L48: |
L49: |
L50: |
L51: |
L52: |
L53: |
L54: |
L55: |
L56: |
L57: |
L58: |
C59: =SEARCH(" ",C62) ->  | L59: |
L60: ---- | M60: ---- | N60: ---- | O60: ---- | P60: ---- | Q60: ---- | R60: ---- | S60: ---- | T60: ---- | U60: ---- | V60: ---- | W60: ---- | X60: ---- | Y60: ---- | Z60: ---- | AA60: ----
L61: | | U61: copy this column:
L62: | | M62: 1 | N62: ="qaData[" & M62 & "][0] = '" &C62 & "';" -> qaData[1][0] = ''; | R62: ="qaData[" & M62 & "][1] = '" &J62 & "';" -> qaData[1][1] = ''; | U62: =N62&" "&R62 -> qaData[1][0] = ''; qaData[1][1] = '';
L63: | | M63: =M62+1 -> 2 | N63: ="qaData[" & M63 & "][0] = '" &C63 & "';" -> qaData[2][0] = ''; | R63: ="qaData[" & M63 & "][1] = '" &J63 & "';" -> qaData[2][1] = ''; | U63: =N63&" "&R63 -> qaData[2][0] = ''; qaData[2][1] = '';
L64: | | M64: =M63+1 -> 3 | N64: qaData[3][0] = ''; | R64: ="qaData[" & M64 & "][1] = '" &J64 & "';" -> qaData[3][1] = ''; | U64: =N64&" "&R64 -> qaData[3][0] = ''; qaData[3][1] = '';
L65: | | M65: 4 | N65: qaData[4][0] = ''; | R65: qaData[4][1] = ''; | U65: qaData[4][0] = ''; qaData[4][1] = '';
L66: | | M66: 5 | N66: qaData[5][0] = ''; | R66: qaData[5][1] = ''; | U66: qaData[5][0] = ''; qaData[5][1] = '';
L67: | | M67: 6 | N67: qaData[6][0] = ''; | R67: qaData[6][1] = ''; | U67: qaData[6][0] = ''; qaData[6][1] = '';
L68: | | M68: 7 | N68: qaData[7][0] = ''; | R68: qaData[7][1] = ''; | U68: qaData[7][0] = ''; qaData[7][1] = '';
L69: | | M69: 8 | N69: qaData[8][0] = ''; | R69: qaData[8][1] = ''; | U69: qaData[8][0] = ''; qaData[8][1] = '';
L70: | | M70: 9 | N70: qaData[9][0] = ''; | R70: qaData[9][1] = ''; | U70: qaData[9][0] = ''; qaData[9][1] = '';
L71: | | M71: 10 | N71: qaData[10][0] = ''; | R71: qaData[10][1] = ''; | U71: qaData[10][0] = ''; qaData[10][1] = '';
L72: | | M72: 11 | N72: qaData[11][0] = ''; | R72: qaData[11][1] = ''; | U72: qaData[11][0] = ''; qaData[11][1] = '';
L73: | | M73: 12 | N73: qaData[12][0] = ''; | R73: qaData[12][1] = ''; | U73: qaData[12][0] = ''; qaData[12][1] = '';
L74: | | M74: 13 | N74: qaData[13][0] = ''; | R74: qaData[13][1] = ''; | U74: qaData[13][0] = ''; qaData[13][1] = '';
L75: | | M75: 14 | N75: qaData[14][0] = ''; | R75: qaData[14][1] = ''; | U75: qaData[14][0] = ''; qaData[14][1] = '';
L76: | | M76: 15 | N76: qaData[15][0] = ''; | R76: qaData[15][1] = ''; | U76: qaData[15][0] = ''; qaData[15][1] = '';
L77: | | M77: 16 | N77: qaData[16][0] = ''; | R77: qaData[16][1] = ''; | U77: qaData[16][0] = ''; qaData[16][1] = '';
L78: | | M78: 17 | N78: qaData[17][0] = ''; | R78: qaData[17][1] = ''; | U78: qaData[17][0] = ''; qaData[17][1] = '';
L79: | | M79: 18 | N79: qaData[18][0] = ''; | R79: qaData[18][1] = ''; | U79: qaData[18][0] = ''; qaData[18][1] = '';
L80: | | M80: 19 | N80: qaData[19][0] = ''; | R80: qaData[19][1] = ''; | U80: qaData[19][0] = ''; qaData[19][1] = '';
L81: | | M81: 20 | N81: qaData[20][0] = ''; | R81: qaData[20][1] = ''; | U81: qaData[20][0] = ''; qaData[20][1] = '';
L82: | | M82: 21 | N82: qaData[21][0] = ''; | R82: qaData[21][1] = ''; | U82: qaData[21][0] = ''; qaData[21][1] = '';
L83: | | M83: 22 | N83: qaData[22][0] = ''; | R83: qaData[22][1] = ''; | U83: qaData[22][0] = ''; qaData[22][1] = '';
L84: | | M84: 23 | N84: qaData[23][0] = ''; | R84: qaData[23][1] = ''; | U84: qaData[23][0] = ''; qaData[23][1] = '';
L85: | | M85: 24 | N85: qaData[24][0] = ''; | R85: qaData[24][1] = ''; | U85: qaData[24][0] = ''; qaData[24][1] = '';
L86: | | M86: 25 | N86: qaData[25][0] = ''; | R86: qaData[25][1] = ''; | U86: qaData[25][0] = ''; qaData[25][1] = '';
L87: | | M87: 26 | N87: qaData[26][0] = ''; | R87: qaData[26][1] = ''; | U87: qaData[26][0] = ''; qaData[26][1] = '';
L88: | | M88: 27 | N88: qaData[27][0] = ''; | R88: qaData[27][1] = ''; | U88: qaData[27][0] = ''; qaData[27][1] = '';
L89: | | M89: 28 | N89: qaData[28][0] = ''; | R89: qaData[28][1] = ''; | U89: qaData[28][0] = ''; qaData[28][1] = '';
L90: | | M90: 29 | N90: qaData[29][0] = ''; | R90: qaData[29][1] = ''; | U90: qaData[29][0] = ''; qaData[29][1] = '';
L91: | | M91: 30 | N91: qaData[30][0] = ''; | R91: qaData[30][1] = ''; | U91: qaData[30][0] = ''; qaData[30][1] = '';
L92: | | M92: 31 | N92: qaData[31][0] = ''; | R92: qaData[31][1] = ''; | U92: qaData[31][0] = ''; qaData[31][1] = '';
L93: | | M93: 32 | N93: qaData[32][0] = ''; | R93: qaData[32][1] = ''; | U93: qaData[32][0] = ''; qaData[32][1] = '';
L94: | | M94: 33 | N94: qaData[33][0] = ''; | R94: qaData[33][1] = ''; | U94: qaData[33][0] = ''; qaData[33][1] = '';
L95: | | M95: 34 | N95: qaData[34][0] = ''; | R95: qaData[34][1] = ''; | U95: qaData[34][0] = ''; qaData[34][1] = '';
L96: | | M96: 35 | N96: qaData[35][0] = ''; | R96: qaData[35][1] = ''; | U96: qaData[35][0] = ''; qaData[35][1] = '';
L97: | | M97: 36 | N97: qaData[36][0] = ''; | R97: qaData[36][1] = ''; | U97: qaData[36][0] = ''; qaData[36][1] = '';
L98: | | M98: 37 | N98: qaData[37][0] = ''; | R98: qaData[37][1] = ''; | U98: qaData[37][0] = ''; qaData[37][1] = '';
L99: | | M99: 38 | N99: qaData[38][0] = ''; | R99: qaData[38][1] = ''; | U99: qaData[38][0] = ''; qaData[38][1] = '';
L100: | | M100: 39 | N100: qaData[39][0] = ''; | R100: qaData[39][1] = ''; | U100: qaData[39][0] = ''; qaData[39][1] = '';
L101: | | M101: 40 | N101: qaData[40][0] = ''; | R101: qaData[40][1] = ''; | U101: qaData[40][0] = ''; qaData[40][1] = '';
L102: | | M102: 41 | N102: qaData[41][0] = ''; | R102: qaData[41][1] = ''; | U102: qaData[41][0] = ''; qaData[41][1] = '';
L103: | | M103: 42 | N103: qaData[42][0] = ''; | R103: qaData[42][1] = ''; | U103: qaData[42][0] = ''; qaData[42][1] = '';
L104: | | M104: 43 | N104: qaData[43][0] = ''; | R104: qaData[43][1] = ''; | U104: qaData[43][0] = ''; qaData[43][1] = '';
L105: | | M105: 44 | N105: qaData[44][0] = ''; | R105: qaData[44][1] = ''; | U105: qaData[44][0] = ''; qaData[44][1] = '';
L106: | | M106: 45 | N106: qaData[45][0] = ''; | R106: qaData[45][1] = ''; | U106: qaData[45][0] = ''; qaData[45][1] = '';
L107: | | M107: 46 | N107: qaData[46][0] = ''; | R107: qaData[46][1] = ''; | U107: qaData[46][0] = ''; qaData[46][1] = '';
L108: | | M108: 47 | N108: qaData[47][0] = ''; | R108: qaData[47][1] = ''; | U108: qaData[47][0] = ''; qaData[47][1] = '';
L109: | | M109: 48 | N109: qaData[48][0] = ''; | R109: qaData[48][1] = ''; | U109: qaData[48][0] = ''; qaData[48][1] = '';
L110: | | M110: 49 | N110: qaData[49][0] = ''; | R110: qaData[49][1] = ''; | U110: qaData[49][0] = ''; qaData[49][1] = '';
L111: | | M111: 50 | N111: qaData[50][0] = ''; | R111: qaData[50][1] = ''; | U111: qaData[50][0] = ''; qaData[50][1] = '';
L112: | | M112: 51 | N112: qaData[51][0] = ''; | R112: qaData[51][1] = ''; | U112: qaData[51][0] = ''; qaData[51][1] = '';
L113: | | M113: 52 | N113: qaData[52][0] = ''; | R113: qaData[52][1] = ''; | U113: qaData[52][0] = ''; qaData[52][1] = '';
L114: | | M114: 53 | N114: qaData[53][0] = ''; | R114: qaData[53][1] = ''; | U114: qaData[53][0] = ''; qaData[53][1] = '';
L115: | | M115: 54 | N115: qaData[54][0] = ''; | R115: qaData[54][1] = ''; | U115: qaData[54][0] = ''; qaData[54][1] = '';
L116: | | M116: 55 | N116: qaData[55][0] = ''; | R116: qaData[55][1] = ''; | U116: qaData[55][0] = ''; qaData[55][1] = '';
L117: | | M117: 56 | N117: qaData[56][0] = ''; | R117: qaData[56][1] = ''; | U117: qaData[56][0] = ''; qaData[56][1] = '';
L118: | | M118: 57 | N118: qaData[57][0] = ''; | R118: qaData[57][1] = ''; | U118: qaData[57][0] = ''; qaData[57][1] = '';
L119: | | M119: 58 | N119: qaData[58][0] = ''; | R119: qaData[58][1] = ''; | U119: qaData[58][0] = ''; qaData[58][1] = '';
L120: | | M120: 59 | N120: qaData[59][0] = ''; | R120: qaData[59][1] = ''; | U120: qaData[59][0] = ''; qaData[59][1] = '';
L121: | | M121: 60 | N121: qaData[60][0] = ''; | R121: qaData[60][1] = ''; | U121: qaData[60][0] = ''; qaData[60][1] = '';
L122: | | M122: 61 | N122: qaData[61][0] = ''; | R122: qaData[61][1] = ''; | U122: qaData[61][0] = ''; qaData[61][1] = '';
L123: | | M123: 62 | N123: qaData[62][0] = ''; | R123: qaData[62][1] = ''; | U123: qaData[62][0] = ''; qaData[62][1] = '';
L124: | | M124: 63 | N124: qaData[63][0] = ''; | R124: qaData[63][1] = ''; | U124: qaData[63][0] = ''; qaData[63][1] = '';
L125: | | M125: 64 | N125: qaData[64][0] = ''; | R125: qaData[64][1] = ''; | U125: qaData[64][0] = ''; qaData[64][1] = '';
L126: | | M126: 65 | N126: qaData[65][0] = ''; | R126: qaData[65][1] = ''; | U126: qaData[65][0] = ''; qaData[65][1] = '';
L127: | | M127: 66 | N127: ="qaData[" & M127 & "][0] = '" &C127 & "';" -> qaData[66][0] = ''; | R127: ="qaData[" & M127 & "][1] = '" &J127 & "';" -> qaData[66][1] = ''; | U127: qaData[66][0] = ''; qaData[66][1] = '';
L128: | | M128: =M127+1 -> 67 | N128: qaData[67][0] = ''; | R128: qaData[67][1] = ''; | U128: =N128&" "&R128 -> qaData[67][0] = ''; qaData[67][1] = '';
L129: | | M129: 68 | N129: qaData[68][0] = ''; | R129: qaData[68][1] = ''; | U129: qaData[68][0] = ''; qaData[68][1] = '';
L130: | | M130: 69 | N130: qaData[69][0] = ''; | R130: qaData[69][1] = ''; | U130: qaData[69][0] = ''; qaData[69][1] = '';
L131: | | M131: 70 | N131: qaData[70][0] = ''; | R131: qaData[70][1] = ''; | U131: qaData[70][0] = ''; qaData[70][1] = '';
L132: | | M132: 71 | N132: qaData[71][0] = ''; | R132: qaData[71][1] = ''; | U132: qaData[71][0] = ''; qaData[71][1] = '';
L133: | | M133: 72 | N133: qaData[72][0] = ''; | R133: qaData[72][1] = ''; | U133: qaData[72][0] = ''; qaData[72][1] = '';
L134: | | M134: 73 | N134: qaData[73][0] = ''; | R134: qaData[73][1] = ''; | U134: qaData[73][0] = ''; qaData[73][1] = '';
L135: | | M135: 74 | N135: qaData[74][0] = ''; | R135: qaData[74][1] = ''; | U135: qaData[74][0] = ''; qaData[74][1] = '';
L136: | | M136: 75 | N136: qaData[75][0] = ''; | R136: qaData[75][1] = ''; | U136: qaData[75][0] = ''; qaData[75][1] = '';
L137: | | M137: 76 | N137: qaData[76][0] = ''; | R137: qaData[76][1] = ''; | U137: qaData[76][0] = ''; qaData[76][1] = '';
L138: | | M138: 77 | N138: qaData[77][0] = ''; | R138: qaData[77][1] = ''; | U138: qaData[77][0] = ''; qaData[77][1] = '';
L139: | | M139: 78 | N139: qaData[78][0] = ''; | R139: qaData[78][1] = ''; | U139: qaData[78][0] = ''; qaData[78][1] = '';
L140: | | M140: 79 | N140: qaData[79][0] = ''; | R140: qaData[79][1] = ''; | U140: qaData[79][0] = ''; qaData[79][1] = '';
L141: | | M141: 80 | N141: qaData[80][0] = ''; | R141: qaData[80][1] = ''; | U141: qaData[80][0] = ''; qaData[80][1] = '';
L142: | | M142: 81 | N142: qaData[81][0] = ''; | R142: qaData[81][1] = ''; | U142: qaData[81][0] = ''; qaData[81][1] = '';
L143: | | M143: 82 | N143: qaData[82][0] = ''; | R143: qaData[82][1] = ''; | U143: qaData[82][0] = ''; qaData[82][1] = '';
L144: | | M144: 83 | N144: qaData[83][0] = ''; | R144: qaData[83][1] = ''; | U144: qaData[83][0] = ''; qaData[83][1] = '';
L145: | | M145: 84 | N145: qaData[84][0] = ''; | R145: qaData[84][1] = ''; | U145: qaData[84][0] = ''; qaData[84][1] = '';
L146: | | M146: 85 | N146: qaData[85][0] = ''; | R146: qaData[85][1] = ''; | U146: qaData[85][0] = ''; qaData[85][1] = '';
L147: | | M147: 86 | N147: qaData[86][0] = ''; | R147: qaData[86][1] = ''; | U147: qaData[86][0] = ''; qaData[86][1] = '';
L148: | | M148: 87 | N148: qaData[87][0] = ''; | R148: qaData[87][1] = ''; | U148: qaData[87][0] = ''; qaData[87][1] = '';
L149: | | M149: 88 | N149: qaData[88][0] = ''; | R149: qaData[88][1] = ''; | U149: qaData[88][0] = ''; qaData[88][1] = '';
L150: | | M150: 89 | N150: qaData[89][0] = ''; | R150: qaData[89][1] = ''; | U150: qaData[89][0] = ''; qaData[89][1] = '';
L151: | | M151: 90 | N151: qaData[90][0] = ''; | R151: qaData[90][1] = ''; | U151: qaData[90][0] = ''; qaData[90][1] = '';
L152: | | M152: 91 | N152: qaData[91][0] = ''; | R152: qaData[91][1] = ''; | U152: qaData[91][0] = ''; qaData[91][1] = '';
L153: | | M153: 92 | N153: qaData[92][0] = ''; | R153: qaData[92][1] = ''; | U153: qaData[92][0] = ''; qaData[92][1] = '';
L154: | | M154: 93 | N154: qaData[93][0] = ''; | R154: qaData[93][1] = ''; | U154: qaData[93][0] = ''; qaData[93][1] = '';
L155: | | M155: 94 | N155: qaData[94][0] = ''; | R155: qaData[94][1] = ''; | U155: qaData[94][0] = ''; qaData[94][1] = '';
L156: | | M156: 95 | N156: qaData[95][0] = ''; | R156: qaData[95][1] = ''; | U156: qaData[95][0] = ''; qaData[95][1] = '';
L157: | | M157: 96 | N157: qaData[96][0] = ''; | R157: qaData[96][1] = ''; | U157: qaData[96][0] = ''; qaData[96][1] = '';
L158: | | M158: 97 | N158: qaData[97][0] = ''; | R158: qaData[97][1] = ''; | U158: qaData[97][0] = ''; qaData[97][1] = '';
L159: | | M159: 98 | N159: qaData[98][0] = ''; | R159: qaData[98][1] = ''; | U159: qaData[98][0] = ''; qaData[98][1] = '';
L160: | | M160: 99 | N160: qaData[99][0] = ''; | R160: qaData[99][1] = ''; | U160: qaData[99][0] = ''; qaData[99][1] = '';
L161: | | M161: 100 | N161: qaData[100][0] = ''; | R161: qaData[100][1] = ''; | U161: qaData[100][0] = ''; qaData[100][1] = '';
L162: | | M162: 101 | N162: qaData[101][0] = ''; | R162: qaData[101][1] = ''; | U162: qaData[101][0] = ''; qaData[101][1] = '';
L163: | | M163: 102 | N163: qaData[102][0] = ''; | R163: qaData[102][1] = ''; | U163: qaData[102][0] = ''; qaData[102][1] = '';
L164: | | M164: 103 | N164: qaData[103][0] = ''; | R164: qaData[103][1] = ''; | U164: qaData[103][0] = ''; qaData[103][1] = '';
L165: | | M165: 104 | N165: qaData[104][0] = ''; | R165: qaData[104][1] = ''; | U165: qaData[104][0] = ''; qaData[104][1] = '';
L166: | | M166: 105 | N166: qaData[105][0] = ''; | R166: qaData[105][1] = ''; | U166: qaData[105][0] = ''; qaData[105][1] = '';
L167: | | M167: 106 | N167: qaData[106][0] = ''; | R167: qaData[106][1] = ''; | U167: qaData[106][0] = ''; qaData[106][1] = '';
L168: | | M168: 107 | N168: qaData[107][0] = ''; | R168: qaData[107][1] = ''; | U168: qaData[107][0] = ''; qaData[107][1] = '';
L169: | | M169: 108 | N169: qaData[108][0] = ''; | R169: qaData[108][1] = ''; | U169: qaData[108][0] = ''; qaData[108][1] = '';
L170: | | M170: 109 | N170: qaData[109][0] = ''; | R170: qaData[109][1] = ''; | U170: qaData[109][0] = ''; qaData[109][1] = '';
L171: | | M171: 110 | N171: qaData[110][0] = ''; | R171: qaData[110][1] = ''; | U171: qaData[110][0] = ''; qaData[110][1] = '';
L172: | | M172: 111 | N172: qaData[111][0] = ''; | R172: qaData[111][1] = ''; | U172: qaData[111][0] = ''; qaData[111][1] = '';
L173: | | M173: 112 | N173: qaData[112][0] = ''; | R173: qaData[112][1] = ''; | U173: qaData[112][0] = ''; qaData[112][1] = '';
L174: | | M174: 113 | N174: qaData[113][0] = ''; | R174: qaData[113][1] = ''; | U174: qaData[113][0] = ''; qaData[113][1] = '';
L175: | | M175: 114 | N175: qaData[114][0] = ''; | R175: qaData[114][1] = ''; | U175: qaData[114][0] = ''; qaData[114][1] = '';
L176: | | M176: 115 | N176: qaData[115][0] = ''; | R176: qaData[115][1] = ''; | U176: qaData[115][0] = ''; qaData[115][1] = '';
L177: | | M177: 116 | N177: qaData[116][0] = ''; | R177: qaData[116][1] = ''; | U177: qaData[116][0] = ''; qaData[116][1] = '';
L178: | | M178: 117 | N178: qaData[117][0] = ''; | R178: qaData[117][1] = ''; | U178: qaData[117][0] = ''; qaData[117][1] = '';
L179: | | M179: 118 | N179: qaData[118][0] = ''; | R179: qaData[118][1] = ''; | U179: qaData[118][0] = ''; qaData[118][1] = '';
L180: | | M180: 119 | N180: qaData[119][0] = ''; | R180: qaData[119][1] = ''; | U180: qaData[119][0] = ''; qaData[119][1] = '';
L181: | | M181: 120 | N181: qaData[120][0] = ''; | R181: qaData[120][1] = ''; | U181: qaData[120][0] = ''; qaData[120][1] = '';
L182: | | M182: 121 | N182: qaData[121][0] = ''; | R182: qaData[121][1] = ''; | U182: qaData[121][0] = ''; qaData[121][1] = '';
L183: | | M183: 122 | N183: qaData[122][0] = ''; | R183: qaData[122][1] = ''; | U183: qaData[122][0] = ''; qaData[122][1] = '';
L184: | | M184: 123 | N184: qaData[123][0] = ''; | R184: qaData[123][1] = ''; | U184: qaData[123][0] = ''; qaData[123][1] = '';
L185: | | M185: 124 | N185: qaData[124][0] = ''; | R185: qaData[124][1] = ''; | U185: qaData[124][0] = ''; qaData[124][1] = '';
L186: | | M186: 125 | N186: qaData[125][0] = ''; | R186: qaData[125][1] = ''; | U186: qaData[125][0] = ''; qaData[125][1] = '';
L187: | | M187: 126 | N187: qaData[126][0] = ''; | R187: qaData[126][1] = ''; | U187: qaData[126][0] = ''; qaData[126][1] = '';
L188: | | M188: 127 | N188: qaData[127][0] = ''; | R188: qaData[127][1] = ''; | U188: qaData[127][0] = ''; qaData[127][1] = '';
L189: | | M189: 128 | N189: qaData[128][0] = ''; | R189: qaData[128][1] = ''; | U189: qaData[128][0] = ''; qaData[128][1] = '';
L190: | | M190: 129 | N190: qaData[129][0] = ''; | R190: qaData[129][1] = ''; | U190: qaData[129][0] = ''; qaData[129][1] = '';
L191: | | M191: 130 | N191: ="qaData[" & M191 & "][0] = '" &C191 & "';" -> qaData[130][0] = ''; | R191: ="qaData[" & M191 & "][1] = '" &J191 & "';" -> qaData[130][1] = ''; | U191: qaData[130][0] = ''; qaData[130][1] = '';
L192: | | M192: =M191+1 -> 131 | N192: ="qaData[" & M192 & "][0] = '" &C192 & "';" -> qaData[131][0] = ''; | R192: ="qaData[" & M192 & "][1] = '" &J192 & "';" -> qaData[131][1] = ''; | U192: =N192&" "&R192 -> qaData[131][0] = ''; qaData[131][1] = '';
L193: | | M193: =M192+1 -> 132 | N193: ="qaData[" & M193 & "][0] = '" &C193 & "';" -> qaData[132][0] = ''; | R193: ="qaData[" & M193 & "][1] = '" &J193 & "';" -> qaData[132][1] = ''; | U193: =N193&" "&R193 -> qaData[132][0] = ''; qaData[132][1] = '';
L194: | | M194: =M193+1 -> 133 | N194: ="qaData[" & M194 & "][0] = '" &C194 & "';" -> qaData[133][0] = ''; | R194: ="qaData[" & M194 & "][1] = '" &J194 & "';" -> qaData[133][1] = ''; | U194: =N194&" "&R194 -> qaData[133][0] = ''; qaData[133][1] = '';
L195: | | M195: =M194+1 -> 134 | N195: ="qaData[" & M195 & "][0] = '" &C195 & "';" -> qaData[134][0] = ''; | R195: ="qaData[" & M195 & "][1] = '" &J195 & "';" -> qaData[134][1] = ''; | U195: =N195&" "&R195 -> qaData[134][0] = ''; qaData[134][1] = '';
L196: |
L197: |
L198: |
L199: |
L200: |

Sheet 17F.11
A1: Reading: | C1: Odomirok - Chapter 15 | L1: | | M1: (a) CY 2016 case incurred = | O1: =N24 -> 3780
A2: Model: | C2: 2017.Fall #11 | L2: | | M2: (b) CY 2016 paid = | O2: =Q23 -> 3780
A3: Problem Type: | C3: Schedule P | L3: |
L4: | | T4: chg in
A5: Given | C5: Sch. P, Part 2 - Incurred Net Loss & DCC Expense Reported at Year-End | L5: | | M5: case = (part 2) - (part 3) - (part 4) | T5: case
A6: random | C6: AY | D6: 2012 | E6: 2013 | F6: 2014 | G6: 2015 | H6: 2016 | L6: | | M6: AY | N6: 2012 | O6: =N6+1 -> 2013 | P6: =O6+1 -> 2014 | Q6: =P6+1 -> 2015 | R6: =Q6+1 -> 2016 | T6: 2016
C7: 2012 | D7: 1000 | E7: 1100 | F7: 1400 | G7: 1200 | H7: 1200 | L7: | | M7: 2012 | Q7: =G7-G15-G23 -> 10 | R7: 20 | T7: =R7-Q7 -> 10
C8: 2013 | E8: 1700 | F8: 2800 | G8: 3100 | H8: 3100 | L8: | | M8: =M7+1 -> 2013 | Q8: 610 | R8: 410 | T8: =R8-Q8 -> -200
C9: 2014 | F9: 3600 | G9: 2900 | H9: 2600 | L9: | | M9: =M8+1 -> 2014 | Q9: 770 | R9: 290 | T9: =R9-Q9 -> -480
C10: 2015 | G10: 2900 | H10: 3100 | L10: | | M10: =M9+1 -> 2015 | Q10: 170 | R10: 560 | T10: =R10-Q10 -> 390
C11: 2016 | H11: 3500 | L11: | | M11: =M10+1 -> 2016 | Q11: 0 | R11: 280 | T11: =R11-Q11 -> 280
L12: | | T12: =SUM(T7:T11) -> 0
C13: Sch. P, Part 3 - Cumulative Paid Net Loss & DCC Reported at Year-End | L13: | | M13: paid in 2016 = (cum paid in 2016) - (cum paid in 2015)
C14: AY | D14: 2012 | E14: 2013 | F14: 2014 | G14: 2015 | H14: 2016 | L14: | | M14: AY | N14: 2012 | O14: =N14+1 -> 2013 | P14: =O14+1 -> 2014 | Q14: =P14+1 -> 2015 | R14: =Q14+1 -> 2016
C15: 2012 | D15: 180 | E15: 580 | F15: 1130 | G15: 1180 | H15: 1180 | L15: | | M15: 2012 | R15: =H15-G15 -> 0
C16: 2013 | E16: 410 | F16: 1530 | G16: 2270 | H16: 2540 | L16: | | M16: =M15+1 -> 2013 | R16: =H16-G16 -> 270
C17: 2014 | F17: 1190 | G17: 1550 | H17: 2180 | L17: | | M17: =M16+1 -> 2014 | R17: =H17-G17 -> 630
C18: 2015 | G18: 1130 | H18: 2260 | L18: | | M18: =M17+1 -> 2015 | R18: =H18-G18 -> 1130
C19: 2016 | H19: 1750 | L19: | | M19: =M18+1 -> 2016 | R19: =H19-G19 -> 1750
L20: |
C21: Sch. P, Part 4 - Bulk & IBNR Reserves on Net Loss & DCC Reported at Year-End | L21: | | M21: case incurred 2016
C22: AY | D22: 2012 | E22: 2013 | F22: 2014 | G22: 2015 | H22: 2016 | L22: | | M22: = | N22: sum(chg in case 2016) | P22: + | Q22: sum(paid in 2016)
C23: 2012 | D23: 540 | E23: 260 | F23: 130 | G23: 10 | H23: 0 | L23: | | M23: = | N23: =T12 -> 0 | P23: + | Q23: =SUM(R15:R19) -> 3780
C24: 2013 | E24: 920 | F24: 570 | G24: 220 | H24: 150 | L24: | | M24: = | N24: =N23+Q23 -> 3780
C25: 2014 | F25: 1700 | G25: 580 | H25: 130 | L25: |
C26: 2015 | G26: 1600 | H26: 280 | L26: |
C27: 2016 | H27: 1470 | L27: |
L28: |
L29: |
A30: Find | B30: (a) | C30: Calendar year 2016 case incurred net loss & DCC expense | L30: |
B31: (b) | C31: Calendar year 2016 paid net loss & DCC expense | L31: |
L32: |
L33: |
L34: |
L35: |
L36: |
L37: |
L38: |
L39: |
L40: |
L41: |
L42: |
L43: |
L44: |
L45: |
L46: |
L47: |
L48: |
L49: |
L50: |
L51: |
L52: |
L53: |
L54: |
L55: |
L56: |
L57: |
L58: |
L59: |
L60: ---- | M60: ---- | N60: ---- | O60: ---- | P60: ---- | Q60: ---- | R60: ---- | S60: ---- | T60: ---- | U60: ---- | V60: ---- | W60: ---- | X60: ---- | Y60: ---- | Z60: ---- | AA60: ----
L61: |
L62: | | V62: M = | W62: 1 | Y62: Rand %: | Z62: 85 | AA62: 115
L63: |
L64: | | M64: Sch. P, Part 2 - Incurred Net Loss & DCC Expense Reported at Year-End
L65: | | M65: AY | N65: 2012 | O65: =N65+1 -> 2013 | P65: =O65+1 -> 2014 | Q65: =P65+1 -> 2015 | R65: =Q65+1 -> 2016 | V65: =D65 -> 0 | W65: =E65 -> 0 | X65: =F65 -> 0 | Y65: =G65 -> 0 | Z65: =H65 -> 0
L66: | | M66: 2012 | N66: =ROUND(RANDBETWEEN($G$62,$H$62)/100*D66/$R$70,2) -> 0 | O66: =ROUND(RANDBETWEEN($G$62,$H$62)/100*E66/$R$70,2) -> 0 | P66: 0 | Q66: 0 | R66: 0 | V66: =D66*W62 -> 0 | W66: =E66/D66 ->  | X66: =F66/E66 ->  | Y66: =G66/F66 ->  | Z66: =H66/G66 -> 
L67: | | M67: =M66+1 -> 2013 | O67: 0 | P67: 0 | Q67: 0 | R67: 0 | W67: =E67/$D$66 ->  | X67: =F67/E67 ->  | Y67: =G67/F67 ->  | Z67: =H67/G67 -> 
L68: | | M68: =M67+1 -> 2014 | P68: 0 | Q68: 0 | R68: 0 | X68: =F68/$D$66 ->  | Y68: =G68/F68 ->  | Z68: =H68/G68 -> 
L69: | | M69: =M68+1 -> 2015 | Q69: 0 | R69: 0 | Y69: =G69/$D$66 ->  | Z69: =H69/G69 -> 
L70: | | M70: =M69+1 -> 2016 | R70: 3000 | Z70: =H70/$D$66 -> 
L71: |
L72: | | M72: Sch. P, Part 3 - Cumulative Paid Net Loss & DCC Reported at Year-End | V72: paid/ultimate
L73: | | M73: AY | N73: 2012 | O73: =N73+1 -> 2013 | P73: =O73+1 -> 2014 | Q73: =P73+1 -> 2015 | R73: =Q73+1 -> 2016 | V73: =D73 -> 0 | W73: =E73 -> 0 | X73: =F73 -> 0 | Y73: =G73 -> 0 | Z73: =H73 -> 0
L74: | | M74: 2012 | N74: =ROUND(RANDBETWEEN($G$62,$H$62)/100*D74/$R$70,2) -> 0 | O74: 0 | P74: 0 | Q74: 0 | R74: 0 | V74: =D74/D66 ->  | W74: =E74/E66 ->  | X74: =F74/F66 ->  | Y74: =G74/G66 ->  | Z74: =H74/H66 -> 
L75: | | M75: =M74+1 -> 2013 | O75: 0 | P75: 0 | Q75: 0 | R75: 0 | W75: =E75/E67 ->  | X75: =F75/F67 ->  | Y75: =G75/G67 ->  | Z75: =H75/H67 -> 
L76: | | M76: =M75+1 -> 2014 | P76: 0 | Q76: 0 | R76: 0 | X76: =F76/F68 ->  | Y76: =G76/G68 ->  | Z76: =H76/H68 -> 
L77: | | M77: =M76+1 -> 2015 | Q77: 0 | R77: 0 | Y77: =G77/G69 ->  | Z77: =H77/H69 -> 
L78: | | M78: =M77+1 -> 2016 | R78: =ROUND(RANDBETWEEN($G$62,$H$62)/100*H78/$R$70,2) -> 0 | Z78: =H78/H70 -> 
L79: |
L80: | | M80: Sch. P, Part 4 - Bulk & IBNR Reserves on Net Loss & DCC Reported at Year-End | V80: IBNR / (ult - pd)
L81: | | M81: AY | N81: 2012 | O81: =N81+1 -> 2013 | P81: =O81+1 -> 2014 | Q81: =P81+1 -> 2015 | R81: =Q81+1 -> 2016 | V81: =D81 -> 0 | W81: =E81 -> 0 | X81: =F81 -> 0 | Y81: =G81 -> 0 | Z81: =H81 -> 0
L82: | | M82: 2012 | N82: =ROUND(RANDBETWEEN($G$62,$H$62)/100*D82/$R$70,2) -> 0 | O82: 0 | P82: 0 | Q82: 0 | R82: 0 | V82: 0.6 | W82: 0.55 | X82: 0.5 | Y82: 0.45 | Z82: 0
L83: | | M83: =M82+1 -> 2013 | O83: 0 | P83: 0 | Q83: 0 | R83: 0 | W83: 0.65 | X83: 0.5 | Y83: 0.3 | Z83: 0.25
L84: | | M84: =M83+1 -> 2014 | P84: 0 | Q84: 0 | R84: 0 | X84: =IF(F68-F76=0,0,F84/(F68-F76)) -> 0 | Y84: 0.4 | Z84: 0.35
L85: | | M85: =M84+1 -> 2015 | Q85: 0 | R85: 0 | Y85: 0.8 | Z85: 0.35
L86: | | M86: =M85+1 -> 2016 | R86: =ROUND(RANDBETWEEN($G$62,$H$62)/100*H86/$R$70,2) -> 0 | Z86: 0.85
L87: |
L88: ---- | M88: ---- | N88: ---- | O88: ---- | P88: ---- | Q88: ---- | R88: ---- | S88: ---- | T88: ---- | U88: ---- | V88: ---- | W88: ---- | X88: ---- | Y88: ---- | Z88: ---- | AA88: ----
L89: |
L90: |
L91: |
L92: |
L93: |
L94: |
L95: |
L96: |
L97: |
L98: |
L99: |
L100: |
L101: |
L102: |
L103: |
L104: |
L105: |
L106: |
L107: |
L108: |
L109: |
L110: |
L111: |
L112: |
L113: |

Sheet 17F.13
A1: Reading: | C1: Odomirok - Chapter 8/9 | L1: | | M1: carrying value = | O1: =R10 -> 49500
A2: Model: | C2: 2017.Fall #13 | L2: |
A3: Problem Type: | C3: carrying value of bonds under SAP | L3: |
L4: |
A5: Given | C5: Assume an insurer owns the following BOND portfolio: | L5: | | R5: carrying
A6: random | L6: | | M6: NAIC Rating | N6: method | R6: value
D7: Amortized | E7: Fair | F7: Actual | L7: | | M7: 1 | N7: use amortized cost | R7: =D9 -> 10000
C8: NAIC Rating | D8: Cost | E8: Value | F8: Cost | L8: | | M8: 3 | N8: use min(amortized cost, fair value) | R8: =MIN(D10,E10) -> 35700
C9: 1 | D9: 10000 | E9: 8600 | F9: 9500 | L9: | | M9: 6 | N9: use min(amortized cost, fair value) | R9: =MIN(D11,E11) -> 3800
C10: 3 | D10: 37600 | E10: 35700 | F10: 33800 | L10: | | R10: =SUM(R7:R9) -> 49500
C11: 6 | D11: 3800 | E11: 4300 | F11: 3300 | L11: |
L12: |
L13: |
A14: Find | C14: total adjusted carrying value of BONDS under SAP | L14: |
L15: |
L16: |
L17: |
L18: |
L19: |
L20: |
L21: |
L22: |
L23: |
L24: |
L25: |
L26: |
L27: |
L28: |
L29: |
L30: |
L31: |
L32: |
L33: |
L34: |
L35: |
L36: |
L37: |
L38: |
L39: |
L40: |
L41: |
L42: |
L43: |
L44: |
L45: |
L46: |
L47: |
L48: |
L49: |
L50: |
L51: |
L52: |
L53: |
L54: |
L55: |
L56: |
L57: |
L58: |
L59: |
L60: ---- | M60: ---- | N60: ---- | O60: ---- | P60: ---- | Q60: ---- | R60: ---- | S60: ---- | T60: ---- | U60: ---- | V60: ---- | W60: ---- | X60: ---- | Y60: ---- | Z60: ---- | AA60: ----
L61: |
L62: |
L63: |
L64: | | N64: Amortized | O64: Fair | P64: Actual
L65: | | M65: NAIC Rating | N65: Cost | O65: Value | P65: Cost
L66: | | M66: 1 | N66: 21000 | O66: =ROUND(RANDBETWEEN($G$62,$H$62)/100*E66/$N$66,2) -> 0 | P66: 0
L67: | | M67: 3 | N67: =ROUND(RANDBETWEEN($G$62,$H$62)/100*D67/$N$66,2) -> 0 | O67: 0 | P67: 0
L68: | | M68: 6 | N68: =ROUND(RANDBETWEEN($G$62,$H$62)/100*D68/$N$66,2) -> 0 | O68: 0 | P68: 0
L69: |
L70: |
L71: |
L72: |
L73: |
L74: |
L75: |
L76: |
L77: |
L78: |
L79: |
L80: |
L81: |
L82: |
L83: |
L84: |
L85: |
L86: |

Sheet 17F.14
A1: Reading: | C1: Odomirok - Chapter 14 | L1: |
A2: Model: | C2: 2017.Fall #14 | L2: |
A3: Problem Type: | C3: restating balance sheet | L3: |
L4: |
A5: Given | C5: ceded loss & LAE reserves (Schedule P, Part 1 Summ., Cols 14+16+18+20+22) | J5: 1190 | L5: | | M5: Note: | N5: The numeric labels for these items in the table DO NOT correspond to the labels
A6: random | C6: ceded unearned premium reserves (Schedule F, Part 3, Column 13) | J6: 90 | L6: | | N6: in the annual statement. (See below table for more information)
L7: |
C8: Schedule F, Part 9 for year 2016 (figures in 000's) | L8: |
L9: |
J10: net of | L10: | | T10: net of | V10: gross of
D11: Assets | J11: ceded | L11: | | N11: Assets | T11: ceded | U11: Adj. | V11: ceded
C12: 1 | D12: cash & invested assets | J12: 4390 | L12: | | M12: 1 | N12: cash & invested assets | T12: =J12 -> 4390 | V12: =T12+U12 -> 4390
C13: 2 | D13: premiums & considerations | J13: 400 | L13: | | M13: =M12+1 -> 2 | N13: premiums & considerations | T13: 400 | V13: 400
C14: 3 | D14: reinsurance recoverables on loss & LAE payments | J14: 220 | L14: | | M14: 3 | N14: reinsurance recoverables on loss & LAE payments | T14: 220 | U14: =-T14 -> -220 | V14: 0 | W14: <== reversal
C15: 4 | D15: funds held by OR deposited with reinsured companies | J15: 660 | L15: | | M15: 4 | N15: funds held by OR deposited with reinsured companies | T15: 660 | V15: 660
C16: 5 | D16: other assets | J16: 180 | L16: | | M16: 5 | N16: other assets | T16: 180 | V16: 180
C17: 6 | D17: net recoverable from reinsurers | J17: 90 | L17: | | M17: 6 | N17: net recoverable from reinsurers | T17: 90 | U17: =N48 -> 530 | V17: 620 | W17: <== balances liabilites
C18: 7 | D18: TOTAL | J18: 5940 | L18: | | M18: 7 | N18: TOTAL ASSETS (net & gross totals may be different) | T18: =SUM(T12:T17) -> 5940 | V18: =SUM(V12:V17) -> 6250
L19: |
J20: net of | L20: | | T20: net of | V20: gross of
D21: Liabilities | J21: ceded | L21: | | N21: Liabilities | T21: ceded | U21: Adj. | V21: ceded
C22: 8 | D22: losses & LAE | J22: 2200 | L22: | | M22: 8 | N22: losses & LAE | T22: =J22 -> 2200 | U22: =J5 -> 1190 | V22: =T22+U22 -> 3390 | W22: <== Sched P ceded
C23: 9 | D23: unearned premiums | J23: 570 | L23: | | M23: =M22+1 -> 9 | N23: unearned premiums | T23: 570 | U23: =J6 -> 90 | V23: 660 | W23: <== Sched F ceded
C24: 10 | D24: advance premiums | J24: 90 | L24: | | M24: =M23+1 -> 10 | N24: advance premiums | T24: 90 | V24: 90
C25: 11 | D25: dividends declared & unpaid | J25: 400 | L25: | | M25: 11 | N25: dividends declared & unpaid | T25: 400 | V25: 400
C26: 12 | D26: ceded reinsurance premiums payable | J26: 180 | L26: | | M26: 12 | N26: ceded reinsurance premiums payable | T26: 180 | U26: =-T26 -> -180 | V26: 0 | W26: <== reversal
C27: 13 | D27: funds held by company under reinsurance treaties | J27: 440 | L27: | | M27: 13 | N27: funds held by company under reinsurance treaties | T27: 440 | U27: =-T27 -> -440 | V27: 0 | W27: <== reversal
C28: 14 | D28: provision for reinsurance | J28: 350 | L28: | | M28: 14 | N28: provision for reinsurance | T28: 350 | U28: =-T28 -> -350 | V28: 0 | W28: <== reversal
C29: 15 | D29: TOTAL LIABILITIES | J29: 4230 | L29: | | M29: 15 | N29: TOTAL LIABILITIES (net & gross totals may be different) | T29: =SUM(T22:T28) -> 4230 | V29: =SUM(V22:V28) -> 4540
C30: 16 | D30: SURPLUS | J30: 1710 | L30: | | M30: 16 | N30: SURPLUS (no change to surplus) | T30: =T18-T29 -> 1710 | V30: =V18-V29 -> 1710
C31: 17 | D31: TOTAL | J31: 5940 | L31: | | M31: 17 | N31: TOTAL ASSETS (from above) | T31: =T18 -> 5940 | V31: =V18 -> 6250
L32: |
L33: |
A34: Find | C34: restate the balance sheet to a gross of ceded basis | L34: | | M34: gross of ceded | O34: = | P34: (net of ceded) + (adjustment)
L35: |
L36: | | M36: items 3,12,13,14: (corresponds to Schedule F, Part 8, lines 3,14,15,17)
L37: | | M37: - simple reversals of the given ceded amounts.
L38: |
L39: | | M39: items 8,9: (corresponds to Schedule F, Part 8, lines 9,11)
L40: | | M40: - add the ceded amounts from Schedules P & F back into the corresponding net amounts
L41: |
L42: | | M42: item 6: (corresponds to Schedule F, Part 8, line 6)
L43: | | M43: - this is a balancing item that forces the total asset adjustments to equal the total liabilitiy adjustments
L44: |
L45: | | M45: item 6 adjustment
L46: | | M46: = | N46: (total liability adjustments) | Q46: - | R46: (adjustment to reinsurance recoverables on loss & LAE payments)
L47: | | M47: = | N47: =SUM(U22:U31) -> 310 | Q47: - | R47: =U14 -> -220
L48: | | M48: = | N48: =N47-R47 -> 530
L49: |
L50: |
L51: |
L52: |
L53: |
L54: |
L55: |
L56: |
L57: |
L58: |
L59: |
L60: ---- | M60: ---- | N60: ---- | O60: ---- | P60: ---- | Q60: ---- | R60: ---- | S60: ---- | T60: ---- | U60: ---- | V60: ---- | W60: ---- | X60: ---- | Y60: ---- | Z60: ----
L61: | | M61: multipliers
L62: | | M62: =J62/J$69 -> 
L63: | | M63: =J63/J$69 -> 
L64: |
L65: |
L66: |
L67: |
L68: |
L69: | | M69: BASE
L70: | | M70: =J70/J$69 -> 
L71: | | M71: =J71/J$69 -> 
L72: | | M72: =J72/J$69 -> 
L73: | | M73: =J73/J$69 -> 
L74: | | M74: =J74/J$69 -> 
L75: | | M75: CALC | O75: =SUM(J69:J74) -> 0
L76: |
L77: |
L78: |
L79: | | M79: =J79/J$69 -> 
L80: |
L81: |
L82: |
L83: |
L84: |
L85: |
L86: | | M86: CALC | O86: =SUM(J79:J85) -> 0
L87: | | M87: CALC | O87: =O75-O86 -> 0
L88: | | M88: CALC | O88: =O87+O86 -> 0
L89: |
L90: |
L91: |
L92: |
L93: |
L94: |
L95: |
L96: |
L97: |
L98: |
L99: |
L100: |
L101: |
L102: |
L103: |
L104: |
L105: |
L106: |
L107: |
L108: |
L109: |
L110: ---- | M110: ---- | N110: ---- | O110: ---- | P110: ---- | Q110: ---- | R110: ---- | S110: ---- | T110: ---- | U110: ---- | V110: ---- | W110: ---- | X110: ---- | Y110: ---- | Z110: ----
L111: |
L112: | | M112: 17F.14: | N112: using Sched F as a solvency monitoring tool | S112: RP = Reinsurance Provision
L113: |
L114: | | N114: strengths
L115: | | N115: 1 | O115: formulaic - easy to compare across years & companies
L116: | | N116: 2 | O116: formulaic - hard to manipulate
L117: | | N117: 3 | O117: identifies credit risk by highlighting slow-paying & unauthorized reinsurers
L118: | | N118: 4 | O118: identifies reinsurance recoverables in dispute (may indicate weak insurer desperate to over-collect)
L119: | | N119: 5 | O119: shows impact on surplus if reinsurance contracts are canceled
L120: | | N120: 6 | O120: Sched F is retrospective (not prospective) - won't consider changes due to growth of cat risk
L121: |
L122: | | N122: weaknesses
L123: | | N123: 1 | O123: formulaic - doesn't consider management input
L124: | | N124: 2 | O124: formulaic - complexity may give false sense of accuracy
L125: | | N125: 3 | O125: doesn't consider reinsurer's financial strength
L126: | | N126: 4 | O126: provision for reinsurance - penalizes unauthorized reinsurers (regardless of their financial strength)
L127: | | N127: 5 | O127: provision for reinsurance - no statistical basis (may provide false sense of security regarding collectability risk)
L128: |
L129: | | M129: 16F.13 | N129: using Sched F as a solvency monitoring tool
L130: |
L131: | | N131: weaknesses
L132: | | N132: 1 | O132: provision for reinsurance - formulaic - may mask management's true estimate of uncollectability
L133: | | N133: 2 | O133: provision for reinsurance - no statistical basis (may provide false sense of security regarding collectability risk)
L134: | | N134: 3 | O134: provision for reinsurance - penalizes unauthorized reinsurers (regardless of their financial strength)
L135: | | N135: 4 | O135: financially strong slow-payers are penalized BUT financially weak current-payers are not (financial strength of reinsurers not considered)
L136: | | N136: 5 | O136: provision for reinsurance - formulaic - complexity may give false sense of accuracy
L137: | | N137: 6 | O137: collateral requirments?
L138: | | N138: 7 | O138: high penalty for unauthorized reinsurance can limit competition to U.S. market
L139: | | N139: 8 | O139: adequacy of reinsurance is not considered (Ex: for potential cat event)
L140: | | N140: 9 | O140: Sched F is retrospective (not prospective) - doesn't consider collectability of reinsurance recoverables on a prospective basis
L141: | | N141: 10 | O141: a hard 20% threhold for slow-paying reinsurer's is arbitrary (no significant difference between 19.9% and 20.1% a sliding scale would be better)
L142: | | N142: 11 | O142: history of uncollectability for a reinsurer is not available (BUT this is clearly a credit risk factor)
L143: | | N143: 12 | O143: 20% threshold for slow-paying reinsurer may motivate disputes because disputres are EXCLUDED from reinsurance provision formula
L144: | | N144: 13 | O144: provision for reinsurance - riskiness of line of business is not considered in the formula
L145: | | N145: 14 | O145: provision for reinsurance - booking paid recoverables too quickly may mask a slow-paying reinsurer and lower the associated charge
L146: |
L147: | | M147: 12F.19 | N147: using the reinsurance provision to monitor solvency
L148: |
L149: | | N149: weaknesses
L150: | | M150: best ==> | N150: 1 | O150: doesn't measure the most serious & controllable risk - poor reinsurance arangements
L151: | | M151: best ==> | N151: 2 | O151: ignores major risk factors for uncollectability - financial weakness of reinsurer or extent of liabilities in an adverse scenario
L152: | | N152: 3 | O152: discourages use of unauthorized reinsurers (that may be cheaper BUT just as reliable)
L153: | | N153: 4 | O153: reinsurance provision - can be manipulated (must provide example)
L154: | | N154: 5 | O154: 20% threshold for slow-payer charge is arbitray
L155: | | N155: 6 | O155: encourages use of collateral to lower reinsurance provision (which increases expenses in other ways)
L156: |
L157: |
L158: |
L159: |
L160: ---- | M160: ---- | N160: ---- | O160: ---- | P160: ---- | Q160: ---- | R160: ---- | S160: ---- | T160: ---- | U160: ---- | V160: ---- | W160: ---- | X160: ---- | Y160: ---- | Z160: ----
L161: |
L162: | | M162: Text | N162: using Sched F as a solvency monitoring tool
L163: |
L164: | | N164: weaknesses
L165: | | N165: 1 | O165: RP is formulaic - may mask management's better informed estimate of collectability risk
L166: | | N166: 2 | O166: RP is formulaic - but no statistical basis for formula - may not represent true collectability risk
L167: | | N167: 3 | O167: RP penalizes unauthorized reinsurers (regardless of their financial strength)
L168: | | N168: 4 | O168: RP penalizes slow-paying reinsurers (regardless of their financial strength) & 20% threshold is arbitrary
L169: | | N169: 5 | O169: Sched F doesn't directly measure reinsurer's solvency which is the true source of uncollectability risk
L170: | | N170: 6 | O170: Sched F doesn't measure the quality of an insurer's reinsurance
L171: |
L172: |
L173: |
L174: |
L175: |
L176: |
L177: |
L178: |
L179: |
L180: |
L181: |
L182: |
L183: |
L184: |
L185: |
L186: |
L187: |
L188: |
L189: |
L190: |
L191: |
L192: |
L193: |
L194: |
L195: |
L196: |
L197: |
L198: |
L199: |
L200: |
... 10 more rows

Sheet 17F.27b
A1: Reading: | C1: Klann.ReinsComm | L1: | | X1: |
A2: Model: | C2: 2017.Fall #27b | L2: | | M2: Note: | N2: gross pd | O2: = | P2: ceded pd | Q2: / | R2: qs% | X2: |
A3: Problem Type: | C3: restate triangles after commutation | L3: | | N3: net pd | O3: = | P3: gross pd | Q3: x | R3: (1 - qs%) | X3: |
L4: | | X4: |
A5: Given | C5: Primary Insurer | L5: | | M5: ==> | N5: net pd | O5: = | P5: ceded pd | Q5: x | R5: (1 - qs%) | S5: / | T5: qs% | X5: |
A6: random | C6: Ceded Paid Losses without Commutation | H6: In the exam problem, PY = 2016 | L6: | | X6: |
C7: policy year | D7: 12 | E7: 24 | F7: 36 | L7: | | N7: Primary Insurer | X7: |
C8: PY-2 | D8: 900 | E8: 1190 | F8: 1210 | L8: | | N8: Net Paid Losses without Commutation | S8: Step 1: | X8: |
C9: PY-1 | D9: 1000 | E9: 1270 | L9: | | N9: policy year | O9: 12 | P9: 24 | Q9: 36 | S9: - use the above formula to create the net paid | X9: |
C10: PY | D10: 1100 | L10: | | N10: PY-2 | O10: =D8*(1-$E$19)/$E$19 -> 484.6153846 | P10: =E8*(1-$E$19)/$E$19 -> 640.7692308 | Q10: =F8*(1-$E$19)/$E$19 -> 651.5384615 | S10: triangle without commutation (on left) | X10: |
L11: | | N11: PY-1 | O11: =D9*(1-$E$19)/$E$19 -> 538.4615385 | P11: =E9*(1-$E$19)/$E$19 -> 683.8461538 | X11: |
C12: Primary Insurer | L12: | | N12: PY | O12: =D10*(1-$E$19)/$E$19 -> 592.3076923 | S12: Step 2: | X12: |
C13: Net Reserves without Commutation | L13: | | S13: - adjust the appropriate entry from Step 1 (see below) | X13: |
C14: policy year | D14: 12 | E14: 24 | F14: 36 | L14: | | N14: Primary Insurer (this is the answer to part i) | X14: |
C15: PY-2 | D15: 1400 | E15: 1030 | F15: 710 | L15: | | N15: Net Paid Losses with Commutation | U15: commutation | X15: |
C16: PY-1 | D16: 500 | E16: 400 | L16: | | N16: policy year | O16: 12 | P16: 24 | Q16: 36 | U16: price | X16: |
C17: PY | D17: 1500 | L17: | | N17: PY-2 | O17: =O10 -> 484.6153846 | P17: =P10 -> 640.7692308 | Q17: =Q10-E20 -> 151.5384615 | R17: = | S17: =Q10 -> 651.5384615 | T17: - | U17: =E20 -> 500 | X17: |
L18: | | N18: PY-1 | O18: =O11 -> 538.4615385 | P18: =P11 -> 683.8461538 | X18: |
C19: quota-share % | E19: 0.65 | L19: | | N19: PY | O19: =O12 -> 592.3076923 | X19: |
C20: commutation price: | E20: 500 | L20: | | X20: |
L21: | | M21: For part ii, proceed as follows: | X21: |
A22: Problem | C22: The insurer has decided to commute this contract for PY-2 within the latest calendar year. | L22: | | S22: Step 1: | X22: |
L23: | | N23: Primary Insurer | S23: - compute net ultimate loss triangle without | X23: |
C24: i | D24: Restate the primary insurer's net paid loss triangle after commutation. | L24: | | N24: Net Ultimate Losses without Commutation | S24: commutation by summing net paid loss | X24: |
C25: ii | D25: Restate the primary insurer's net ultimate loss triangle after commutation. | L25: | | N25: policy year | O25: 12 | P25: 24 | Q25: 36 | S25: & net reserve (on left) | X25: |
L26: | | N26: PY-2 | O26: =O10+D15 -> 1884.615385 | P26: =P10+E15 -> 1670.769231 | Q26: =Q10+F15 -> 1361.538462 | X26: |
A27: Hint 1: | C27: State the desired triangles without commutation, then make the appropriate adjustments. | L27: | | N27: PY-1 | O27: =O11+D16 -> 1038.461538 | P27: =P11+E16 -> 1083.846154 | S27: Step 2: | X27: |
L28: | | N28: PY | O28: =O12+D17 -> 2092.307692 | S28: - adjust the appropriate entry from Step 1 (see below) | X28: |
A29: Hint 2: | C29: Identify that cells in the triangle that are impacted by the commutation: | L29: | | X29: |
C30: ==> the only cell that is impacted is PY-2 & 36 months | L30: | | N30: Primary Insurer | S30: paid loss | U30: net resv | W30: ceded resv | X30: |
L31: | | N31: Net Ultimate Losses with Commutation | S31: with | U31: without | W31: without | X31: |
L32: | | N32: policy year | O32: 12 | P32: 24 | Q32: 36 | S32: commutation | U32: commutation | W32: commutation | X32: |
L33: | | N33: PY-2 | O33: =O26 -> 1884.615385 | P33: =P26 -> 1670.769231 | Q33: =S33+U33+W33 -> 2180.10989 | R33: = | S33: =Q17 -> 151.5384615 | T33: + | U33: =F15 -> 710 | V33: + | W33: =F15*E19/(1-E19) -> 1318.571429 | X33: |
L34: | | N34: PY-1 | O34: =O27 -> 1038.461538 | P34: =P27 -> 1083.846154 | X34: |
L35: | | N35: PY | O35: =O28 -> 2092.307692 | X35: |
L36: | | X36: |
L37: | | M37: Note: | N37: gross resv | O37: = | P37: net resv | Q37: / | R37: (1 - qs%) | X37: |
L38: | | N38: ceded resv | O38: = | P38: gross resv | Q38: x | R38: qs% | X38: |
L39: | | X39: |
L40: | | M40: ==> | N40: ceded resv | O40: = | P40: net resv | Q40: x | R40: qs% | S40: / | T40: (1 - qs%) | X40: |
L41: | | X41: |
L42: | | X42: |
L43: | | X43: |
L44: | | X44: |
L45: | | X45: |
L46: | | X46: |
L47: | | X47: |
L48: | | X48: |
L49: | | X49: |
L50: | | X50: |
L51: | | X51: |
L52: | | X52: |
L53: | | X53: |
L54: | | X54: |
L55: | | X55: |
L56: | | X56: |
L57: | | X57: |
L58: | | X58: |
L59: | | X59: |
L60: | | M60: ---- | N60: ---- | O60: ---- | P60: ---- | Q60: ---- | R60: ---- | S60: ---- | T60: ---- | U60: ---- | V60: ---- | W60: ---- | X60: |
L61: | | X61: |
L62: | | X62: |
L63: | | X63: |
L64: | | X64: |
L65: | | X65: |
L66: | | X66: |
L67: | | X67: |
L68: | | X68: |
L69: | | X69: |
L70: | | X70: |
L71: | | X71: |
L72: | | X72: |
L73: | | X73: |
L74: | | X74: |
L75: | | X75: |
L76: | | X76: |
L77: | | X77: |
L78: | | X78: |
L79: | | X79: |
L80: | | X80: |
L81: | | X81: |
L82: | | X82: |
L83: | | X83: |
L84: | | X84: |
L85: | | X85: |
L86: | | X86: |
L87: | | X87: |
L88: | | X88: |
L89: | | X89: |
L90: | | X90: |
L91: | | X91: |
L92: | | X92: |
L93: | | X93: |
L94: | | X94: |
L95: | | M95: ---- | N95: ---- | O95: ---- | P95: ---- | Q95: ---- | R95: ---- | S95: ---- | T95: ---- | U95: ---- | V95: ---- | W95: ---- | X95: |

Sheet RBC(ratio)
A1: Reading: | C1: Odomirok.19-RBC | L1: |
A2: Model: | C2: Basic RBC problem | L2: |
A3: Problem Type: | C3: Calculating the RBC ratio | L3: |
L4: |
A5: Given | C5: company net loss & LAE ratio | F5: 0.75 | L5: | | M5: RBC Capital Required: | P5: =F9+SQRT(F10^2+F11^2+F12^2+F13^2+F14^2) -> 11607.19499
A6: random | C6: company expense ratio | F6: 0.35 | L6: | | M6: ACL: | P6: =0.5*P5 -> 5803.597496
C7: policyholder dividend ratio | F7: 0.1 | L7: |
C8: Total Adjusted Capital | F8: 15000 | L8: | | M8: TAC: | P8: =F8 -> 15000
C9: R0 charge | F9: 40 | L9: |
C10: R1 charge | F10: 900 | L10: | | M10: RBC ratio: | N10: =P8/P6 -> 2.584603775 | O10: =IF(AND(N10>=200%,N10<300%)," <== trend test required"," <== no trend test required") -> <== trend test required
C11: R2 charge | F11: 1700 | L11: |
C12: R3 charge | F12: 500 | L12: | | M12: COR: | N12: =IF(AND(N10>=200%,N10<300%),SUM(F5:F7),"") -> 1.2 | O12: <== need this only if trend test is required
C13: R4 charge | F13: 11200 | L13: |
C14: R5 charge | F14: 2100 | L14: | | M14: level | N14: threshhold | O14: action | P14: =IF(AND(O15="",O16="",O17="",O18="")," no action required","") -> no action required
L15: | | M15: CAL | N15: 2 | O15: =IF(OR(AND(N10>=150%,N10<200%),AND(N10>=200%,N10<300%,N12>120%))," <==","") -> 
L16: | | M16: RAL | N16: 1.5 | O16: =IF(AND(N10>=100%,N10<150%)," <==","") -> 
A17: Formulas | L17: | | M17: ACL | N17: 1 | O17: =IF(AND(N10>=70%,N10<100%)," <==","") -> 
L18: | | M18: MCL | N18: 0.7 | O18: =IF(N10<70%," <==","") -> 
L19: |
L20: |
L21: |
L22: |
L23: |
L24: |
L25: |
L26: |
L27: |
L28: |
L29: |
L30: |
L31: |
L32: |
L33: |
L34: |
L35: |
L36: |
L37: |
L38: |
L39: |
L40: |
L41: |
L42: |
L43: |
L44: |
L45: |
L46: |
L47: |
L48: |
L49: |
L50: |
L51: |
L52: |
L53: |
L54: |
L55: |
L56: |
L57: |
L58: |
L59: |
L60: ---- | M60: ---- | N60: ---- | O60: ---- | P60: ---- | Q60: ---- | R60: ---- | S60: ---- | T60: ---- | U60: ---- | V60: ---- | W60: ---- | X60: ---- | Y60: ---- | Z60: ---- | AA60: ----
L61: |
L62: |
L63: |
L64: |
L65: |
L66: |
L67: |
L68: |
L69: |
L70: |
L71: |
L72: |
L73: |
L74: |
L75: |
L76: |
L77: |
L78: |
L79: |
L80: |
L81: |
L82: |
L83: |
L84: |
L85: |
L86: |
L87: |
L88: ---- | M88: ---- | N88: ---- | O88: ---- | P88: ---- | Q88: ---- | R88: ---- | S88: ---- | T88: ---- | U88: ---- | V88: ---- | W88: ---- | X88: ---- | Y88: ---- | Z88: ---- | AA88: ----
L89: |
L90: |
L91: |
L92: |
L93: |
L94: |
L95: |
L96: |
L97: |
L98: |
L99: |
L100: |
L101: |
L102: |
L103: |
L104: |
L105: |
L106: |
L107: |
L108: |
L109: |
L110: |
L111: |
L112: |
L113: |
L114: |
L115: |
L116: |
L117: |
L118: |
L119: |
L120: |
L121: |
L122: |
L123: |
L124: |
L125: |
L126: |
L127: |
L128: |
L129: |
L130: |
L131: |
L132: |
L133: |
L134: |
L135: |
L136: |
L137: |
L138: |
L139: |
L140: |
L141: |
L142: |
L143: |
L144: |
L145: |
L146: |
L147: |
L148: |

Sheet RBC(charge)
A1: Reading: | C1: Odomirok.19-RBC | L1: |
A2: Model: | C2: 2017.Spring #19 | L2: |
A3: Problem Type: | C3: Calculating the RBC charges (not the ratio) | L3: |
L4: | | S4: A | T4: F | U4: E | V4: C | W4: reserve | X4: NWP
A5: Given | C5: item | H5: RBC charge | L5: | | M5: item | R5: RBC charge | S5: R0 | T5: R1 | U5: R2 | V5: R3 | W5: R4 | X5: R5
A6: random | C6: Investment income due and accrued | H6: 2500 | L6: | | M6: Investment income due and accrued | R6: =H6 -> 2500 | V6: 1
C7: Federal income tax recoverable | H7: 4300 | L7: | | M7: Federal income tax recoverable | R7: =H7 -> 4300 | V7: 1
C8: Recoverable from parent, subsidiaries, or affiliates | H8: 7300 | L8: | | M8: Recoverable from parent, subsidiaries, or affiliates | R8: 7300 | V8: 1
C9: Reinsurance recoverable | H9: 7900 | L9: | | M9: Reinsurance recoverable | R9: 7900 | V9: 0.5 | W9: 0.5
C10: Reserve | H10: 58300 | L10: | | M10: Reserve | R10: 58300 | W10: 1
C11: Written premium | H11: 39000 | L11: | | M11: Written premium | R11: 39000 | X11: 1
C12: Cash and cash equivalents | H12: 7600 | L12: | | M12: Cash and cash equivalents | R12: 7600 | T12: 1
C13: Unaffiliated bond | H13: 13500 | L13: | | M13: Unaffiliated bond | R13: 13500 | T13: 1
C14: Unaffiliated stocks | H14: 17800 | L14: | | M14: Unaffiliated stocks | R14: 17800 | U14: 1
C15: Real estate | H15: 4500 | L15: | | M15: Real estate | R15: 4500 | U15: 1
C16: Asset concentration | H16: 11300 | L16: | | M16: Asset concentration | R16: 11300 | U16: 1
C17: Other non-insurance subsidiaries | H17: 16400 | L17: | | M17: Other non-insurance subsidiaries | R17: 16400 | T17: 1
C18: Investments in insurance affiliates | H18: 700 | L18: | | M18: Investments in insurance affiliates | R18: 700 | S18: 1
L19: | | R19: reasoning from Sample 2 from examiner's report ==> | S19: =SUMPRODUCT($R6:$R18,S6:S18) -> 700 | T19: 37500 | U19: 33600 | V19: 18050 | W19: 62250 | X19: 39000
C20: Non-Tabular Discount | H20: 15200 | L20: |
C21: Tabular Discount in Reserves | H21: 4400 | L21: | | Q21: sum check: | R21: =SUM(R6:R18) -> 191100
L22: | | Q22: sum check: | R22: =SUM(S19:X19) -> 191100
A23: Find | B23: (a) | C23: RBC total risk charge | L23: | | Q23: difference: | R23: =R21-R22 -> 0
B24: (b) | C24: range of surplus corresponding to RAL (Regulatory Action Level) | L24: |
L25: | | M25: RBC charge = R0 + [ R12+ R22 + R32 + R42 + R52 ] 0.5 = | R25: =S19+SQRT(T19^2+U19^2+V19^2+W19^2+X19^2) -> 91568.44887 | S25: <== final answer (part a)
A26: Note | C26: This question was ambiguous and many different solutions were accepted. My | L26: | | S26: (sample answer #7 in examiner's report)
C27: answer corresponds to Sample Answer 2 because that seemed the simplest. (It might be | L27: | | M27: (part b)
C28: helpful also to spend a moment looking over the answers in the examiner's report.) | L28: |
L29: | | M29: Let NTB | N29: = Non-Tabular DIscount | Q29: = | R29: =H20 -> 15200 | S29: (given)
A30: Concept | C30: You just have to figure out which risk category each RBC charge goes into. Then apply | L30: | | M30: Let TB | N30: = Tabular Dicsount | Q30: = | R30: =H21 -> 4400 | S30: (given)
C31: the basic formula for the RBC charge. | L31: |
L32: | | M32: Required Facts:
A33: Concept | C33: It's straightforward except for 3 items: | L33: | | N33: * RAL corresponds to a range of 100-150% for the RBC ratio
L34: | | N34: * RBC Ratio = TAC / ACL | Q34: = | R34: ="TAC / " & ROUND(0.5*R25,0) -> TAC / 45784 | S34: (ACL = 50% of the RBC charge from part a)
C35: i | D35: Reinsurance recoverable is split 50/50 between R3 and R4. | L35: | | N35: * TAC = PHS - NTB - TB | Q35: = | R35: ="PHS - " & SUM(R29:R30) -> PHS - 19600
C36: ii | D36: Asset concentration factor can be split in any proportion between R1 and R2. | L36: | | M36: Then
D37: (I chose 100% for R2.) | L37: | | M37: 1 | N37: = | O37: ="(PHS - "&SUM(R29:R30)&") / "&ROUND(R25/2,0) -> (PHS - 19600) / 45784 | R37: ==> | S37: PHS | T37: = | U37: =M37*R$25/2+SUM(R$29:R$30) -> 65384.22443 | V37: <== low end of range
C38: iii | D38: Other non-insurance subsidiaries can go into either R1 or R2, depending on | L38: | | M38: 1.5 | N38: = | O38: ="(PHS - " & SUM(R29:R30)&") / "&ROUND(R25/2,0) -> (PHS - 19600) / 45784 | R38: ==> | S38: PHS | T38: = | U38: =M38*R$25/2+SUM(R$29:R$30) -> 88276.33665 | V38: <== high end of range
D39: whether it is considered a fixed-income or equity investment. | L39: |
L40: |
A41: RBC Ratio | C41: You cannot calculate the RBC Ratio because they don't provide TAC (Total Adjusted Capital) | L41: |
L42: |
L43: |
L44: |
L45: |
L46: |
L47: |
L48: |
L49: |
L50: |
L51: |
L52: |
L53: |
L54: |
L55: |
L56: |
L57: |
L58: |
L59: |
L60: ---- | M60: ---- | N60: ---- | O60: ---- | P60: ---- | Q60: ---- | R60: ---- | S60: ---- | T60: ---- | U60: ---- | V60: ---- | W60: ---- | X60: ---- | Y60: ---- | Z60: ---- | AA60: ----
L61: |
L62: |
L63: |
L64: |
L65: |
L66: |
L67: |
L68: |
L69: |
L70: |
L71: |
L72: |
L73: |
L74: |
L75: |
L76: |
L77: |
L78: |
L79: |
L80: |
L81: |
L82: ---- | M82: ---- | N82: ---- | O82: ---- | P82: ---- | Q82: ---- | R82: ---- | S82: ---- | T82: ---- | U82: ---- | V82: ---- | W82: ---- | X82: ---- | Y82: ---- | Z82: ---- | AA82: ----
L83: |
L84: |
L85: |
L86: |
L87: |
L88: |
L89: |
L90: |
L91: |
L92: |
L93: |
L94: |
L95: |
L96: |
L97: |
L98: |
L99: |
L100: |
L101: |
L102: |
L103: |
L104: |
L105: |
L106: |
L107: |
L108: |
L109: |
L110: |
L111: |
L112: |
L113: |
L114: |
L115: |
L116: |
L117: |
L118: |
L119: |
L120: |
L121: |
L122: |
L123: |
L124: |
L125: |
L126: |
L127: |
L128: |
L129: |
L130: |
L131: |
L132: |
L133: |
L134: |
L135: |
L136: |
L137: |
L138: |
L139: |
L140: |
L141: |
L142: |

Sheet RBC(1a)
A1: Reading: | C1: Odomirok.19-RBC | L1: |
A2: Model: | C2: 2015.Fall #17 | L2: |
A3: Problem Type: | C3: Calculate RBC charge R1. | L3: | | M3: R1 | N3: = | O3: basic | P3: + | Q3: BSC | R3: + | S3: ACC
L4: | | N4: = | O4: =O12 -> 543 | P4: + | Q4: =O16 -> 814.5 | R4: + | S4: =O22 -> 538
A5: Given | F5: Assets | H5: Notation | L5: | | N5: = | O5: =O4+Q4+S4 -> 1895.5 | P5: <== final answer
A6: random | D6: Unaffiliated | E6: Unaffiliated | F6: subject to | H6: basic | I6: basic R1 charge | L6: |
D7: Bonds NAIC | E7: Common | F7: Asset | H7: BSC | I7: Bond Size Charge | L7: | | M7: ---- | N7: ---- | O7: ---- | P7: ---- | Q7: ---- | R7: ---- | S7: ---- | T7: ---- | U7: ----
C8: # | D8: Class 02 | E8: Stock | F8: Concentration | H8: BSF | I8: Bond Size Factor | L8: |
C9: 1 | D9: 0 | E9: 28000 | F9: 28000 | H9: ACC | I9: Asset Contentration Charge | L9: | | M9: basic | N9: = | O9: SUM over n: [ (total fixed income assets of category i) x (RBC factor for category i) ]
C10: 2 | D10: 20200 | E10: 0 | F10: 20200 | H10: R1 = | I10: basic + BSC + ACC | L10: | | N10: = | O10: (total bonds of class 02) | R10: x | S10: (RBC factor for class 02)
C11: 3 | D11: 16800 | E11: 0 | F11: 16800 | L11: | | N11: = | O11: =SUM(D9:D20) -> 54300 | R11: x | S11: =F34 -> 0.01
C12: 4 | D12: 0 | E12: 12800 | F12: 12800 | L12: | | N12: = | O12: =O11*S11 -> 543
C13: 5 | D13: 10200 | E13: 0 | F13: 10200 | L13: |
C14: 6 | D14: 5100 | E14: 0 | F14: 5100 | L14: | | M14: BSC | N14: = | O14: BSF | P14: x | Q14: basic
C15: 7 | D15: 1500 | E15: 1100 | F15: 2600 | L15: | | N15: = | O15: =SUMPRODUCT(E26:E29,F26:F29)/SUM(E26:E29)-1 -> 1.5 | P15: x | Q15: =O12 -> 543
C16: 8 | D16: 0 | E16: 2100 | F16: 2100 | L16: | | N16: = | O16: =O15*Q15 -> 814.5
C17: 9 | D17: 0 | E17: 1400 | F17: 1400 | L17: |
C18: 10 | D18: 0 | E18: 700 | F18: 700 | L18: | | M18: ---- | N18: ---- | O18: ---- | P18: ---- | Q18: ---- | R18: ---- | S18: ---- | T18: ---- | U18: ----
C19: 11 | D19: 0 | E19: 500 | F19: 500 | L19: |
C20: 12 | D20: 500 | E20: 0 | F20: 500 | L20: | | M20: ACC | N20: = | O20: (total bonds from TOP 10 issuers) | S20: x | T20: (RBC factor)
D21: 54300 | E21: 46600 | F21: 100900 | G21: * Issuers are sorted from largest to smallest. | L21: | | N21: = | O21: =SUM(D9:D18) -> 53800 | S21: x | T21: =F34 -> 0.01
L22: | | N22: = | O22: =O21*T21 -> 538
C23: Bond Size Adjustment Factor WEIGHTS | L23: |
L24: | | M24: ---- | N24: ---- | O24: ---- | P24: ---- | Q24: ---- | R24: ---- | S24: ---- | T24: ---- | U24: ----
D25: bond count | E25: # issuers | F25: weights | G25: * BSF = sumproduct(issuers, weights) / sum(issuers) | L25: |
D26: 1-50 | E26: 12 | F26: 2.5 | L26: | | M26: Notes on the BSF term (Bond Size Factor)
D27: 51-100 | E27: 0 | F27: 1.3 | L27: |
D28: 101-400 | E28: 0 | F28: 1 | L28: | | M28: ==> Since we have at most 12 issuers in this problem, BSF always equals 1.5
D29: > 400 | E29: 0 | F29: 0.9 | L29: | | M29: ==> In general BSF = sumproduct(# issuers, weights) / sum(# issuers) - 1
L30: | | M30: ==> if (bond count) > 1300 then BSF is set to 0.
C31: RBC Factors by Asset Category | L31: | | M31: ==> BSF decreases as bond count increases
L32: |
D33: Asset Category | F33: RBC Factor | L33: |
D34: Unaffiliated Bonds Class 02 | F34: 0.01 | L34: |
D35: Unaffiliated Common Stock | F35: 0.15 | L35: |
L36: |
A37: Find | C37: Calculate the RBC charge R1. | L37: |
L38: |
L39: |
L40: |
L41: |
L42: |
L43: |
L44: |
L45: |
L46: |
L47: |
L48: |
L49: |
L50: |
L51: |
L52: |
L53: |
L54: |
L55: |
L56: |
L57: |
L58: |
L59: |
L60: ---- | M60: ---- | N60: ---- | O60: ---- | P60: ---- | Q60: ---- | R60: ---- | S60: ---- | T60: ---- | U60: ---- | V60: ---- | W60: ---- | X60: ---- | Y60: ---- | Z60: ---- | AA60: ----
L61: |
L62: |
L63: |
L64: |
L65: |
L66: |
L67: |
L68: |
L69: |
L70: |
L71: |
L72: |
L73: |
L74: |
L75: |
L76: |
L77: |
L78: ---- | M78: ---- | N78: ---- | O78: ---- | P78: ---- | Q78: ---- | R78: ---- | S78: ---- | T78: ---- | U78: ---- | V78: ---- | W78: ---- | X78: ---- | Y78: ---- | Z78: ---- | AA78: ----
L79: |
L80: |
L81: |
L82: |
L83: |
L84: |
L85: |
L86: |
L87: |
L88: |
L89: |
L90: |
L91: |
L92: |
L93: |
L94: |
L95: |
L96: |
L97: |
L98: |
L99: |
L100: |
L101: |
L102: |
L103: |
L104: |
L105: |
L106: |
L107: |
L108: |
L109: |
L110: |
L111: |
L112: |
L113: |
L114: |
L115: |
L116: |
L117: |
L118: |
L119: |
L120: |
L121: |
L122: |
L123: |
L124: |
L125: |
L126: |
L127: |
L128: |
L129: |
L130: |
L131: |
L132: |
L133: |
L134: |
L135: |
L136: |
L137: |
L138: |

Sheet RBC(1b)
A1: Reading: | C1: Odomirok.19-RBC | L1: |
A2: Model: | C2: mixture of 2 examples from Odomirok text (tables 86, 87, 88) | L2: | | M2: R1 | N2: = | O2: basic charge | P2: + | Q2: BSC | R2: + | S2: ACC
A3: Problem Type: | C3: Calculate RBC charge R1. | L3: | | N3: = | O3: =R9 -> 2164.08 | P3: + | Q3: =P31 -> 3060.6 | R3: + | S3: =S57 -> 467.8333333
L4: | | N4: = | O4: =O3+Q3+S3 -> 5692.513333 | P4: <== final answer
A5: Given | C5: data for R1 calculation | L5: |
A6: random | C6: item | F6: amount | G6: RBC factor | L6: | | M6: step 1: | N6: calculate the basic R1 RBC charge
D7: cash & equivalents | F7: 1330 | G7: 0.003 | L7: | | N7: (multiply amounts by RBC factors for each item in the table)
D8: other short-term investmemts | F8: 5730 | G8: 0.003 | L8: |
D9: mortgage bonds | F9: 2050 | G9: 0.05 | L9: | | N9: basic R1 charge = orange + blue highlights = | R9: =SUM(Q12:Q15)+SUM(Q18:Q24) -> 2164.08
D10: net admitted collateral loans | F10: 0 | G10: 0.05 | L10: |
C11: bonds | F11: amount | G11: RBC factor | L11: | | N11: item | Q11: RBC charge
D12: U.S. government | F12: 66300 | G12: 0 | L12: | | O12: cash & equivalents | Q12: =F7*G7 -> 3.99
D13: Class 01 U.S. govt. bonds | F13: 0 | G13: 0.003 | L13: | | O13: other short-term investmemts | Q13: =F8*G8 -> 17.19
D14: Class 01 non-govt bonds | F14: 385900 | G14: 0.003 | L14: | | O14: mortgage bonds | Q14: =F9*G9 -> 102.5
D15: Class 02 unaffiliated bonds | F15: 38300 | G15: 0.01 | L15: | | O15: net admitted collateral loans | Q15: =F10*G10 -> 0
D16: Class 03 unaffiliated bonds | F16: 6510 | G16: 0.02 | L16: | | N16: bonds | Q16: RBC charge
D17: Class 04 unaffiliated bonds | F17: 3500 | G17: 0.045 | L17: | | O17: U.S. government | Q17: =F12*G12 -> 0 | R17: <== NOT subject to bond size charge
D18: Class 05 unaffiliated bonds | F18: 860 | G18: 0.1 | L18: | | O18: Class 01 U.S. govt. bonds | Q18: 0 | R18: <== NOT subject to bond size charge
D19: Class 06 unaffiliated bonds | F19: 420 | G19: 0.3 | L19: | | O19: Class 01 non-govt bonds | Q19: 1157.7
L20: | | O20: Class 02 unaffiliated bonds | Q20: 383
C21: # of bonds issuers | G21: 30 | L21: | | O21: Class 03 unaffiliated bonds | Q21: 130.2
L22: | | O22: Class 04 unaffiliated bonds | Q22: 157.5
C23: assets subject to asset concentration charge | L23: | | O23: Class 05 unaffiliated bonds | Q23: 86
D24: fixed income investments | F24: equity investments | L24: | | O24: Class 06 unaffiliated bonds | Q24: 126
F25: class 03 | L25: | | N25: bonds subject to bond size factor | Q25: =SUM(Q19:Q24) -> 2040.4 | R25: <== sum blue highlighted values
D26: class 02 | F26: unaffiliated | G26: unaffiliated | L26: |
D27: unaffiliated | E27: mortgage | F27: preferred | G27: common | L27: | | M27: step 2: | N27: calculate BSC (Bond Size Charge)
D28: bonds | E28: bonds | F28: stocks | G28: stock | H28: real estate | I28: total * | L28: |
C29: 1 | D29: 0 | E29: 2433.333333 | F29: 0 | G29: 2433.333333 | H29: 2433.333333 | I29: 7300 | L29: | | N29: BSC | O29: = | P29: BSF | Q29: x | R29: (assets subject to BSF)
C30: 2 | D30: 0 | E30: 0 | F30: 0 | G30: 3600 | H30: 3600 | I30: 7200 | L30: | | O30: = | P30: =P42 -> 1.5 | Q30: x | R30: =Q25 -> 2040.4
C31: 3 | D31: 0 | E31: 3300 | F31: 0 | G31: 3300 | H31: 0 | I31: 6600 | L31: | | O31: = | P31: =P30*R30 -> 3060.6
C32: 4 | D32: 6000 | E32: 0 | F32: 0 | G32: 0 | H32: 0 | I32: 6000 | L32: |
C33: 5 | D33: 1500 | E33: 0 | F33: 0 | G33: 1500 | H33: 0 | I33: 3000 | L33: | | M33: BSF calc: | N33: # issuers | O33: # issuers | P33: weights
C34: 6 | D34: 2900 | E34: 0 | F34: 0 | G34: 0 | H34: 0 | I34: 2900 | L34: | | N34: ="= " &G21 -> = 30 | O34: (1) | P34: (2) | Q34: (3)=(2)x(1)
C35: 7 | D35: 750 | E35: 0 | F35: 750 | G35: 0 | H35: 0 | I35: 1500 | L35: | | N35: first 50 | O35: =MIN(50,G21) -> 30 | P35: 2.5 | Q35: =O35*P35 -> 75
C36: 8 | D36: 466.6666667 | E36: 0 | F36: 466.6666667 | G36: 0 | H36: 466.6666667 | I36: 1400 | L36: | | N36: next 50 | O36: =MAX(0,MIN(50,G21-50)) -> 0 | P36: 1.3 | Q36: =O36*P36 -> 0
C37: 9 | D37: 0 | E37: 0 | F37: 1300 | G37: 0 | H37: 0 | I37: 1300 | L37: | | N37: next 300 | O37: =MAX(0,MIN(300,G21-100)) -> 0 | P37: 1 | Q37: =O37*P37 -> 0
C38: 10 | D38: 0 | E38: 1300 | F38: 0 | G38: 0 | H38: 0 | I38: 1300 | L38: | | N38: > 400 | O38: =MAX(0,G21-400) -> 0 | P38: 0.9 | Q38: =O38*P38 -> 0
C39: 11 | D39: 433.3333333 | E39: 0 | F39: 433.3333333 | G39: 0 | H39: 433.3333333 | I39: 1300 | L39: | | N39: total | O39: =SUM(O35:O38) -> 30 | Q39: =SUM(Q35:Q38) -> 75
C40: 12 | D40: =$I40*N79/$S79 -> 0 | E40: =$I40*O79/$S79 -> 0 | F40: =$I40*P79/$S79 -> 0 | G40: =$I40*Q79/$S79 -> 1200 | H40: =$I40*R79/$S79 -> 0 | I40: =ROUND(I39*IF(RAND()<0.15,0.5,RANDBETWEEN(90,100)/100),-2) -> 1200 | L40: |
C41: 13 | D41: 600 | E41: 0 | F41: 600 | G41: 0 | H41: 0 | I41: 1200 | L41: | | N41: BSF | O41: = | P41: =Q39 -> 75 | Q41: / | R41: =O39 -> 30 | S41: - | T41: 1
C42: 14 | D42: 1100 | E42: 0 | F42: 0 | G42: 0 | H42: 0 | I42: 1100 | L42: | | O42: = | P42: =MAX(0,P41/R41-T41) -> 1.5 | Q42: <== substitute this value above as shown
C43: 15 | D43: 550 | E43: 0 | F43: 0 | G43: 0 | H43: 550 | I43: 1100 | L43: |
C44: total | D44: =SUM(D29:D43) -> 14300 | E44: 7033.333333 | F44: 3550 | G44: 12033.33333 | H44: 7483.333333 | I44: 44400 | L44: | | M44: step 3: | N44: calculate ACC (Asset Concentration Charge) for R1
C45: * represents total assets subject to asset concentration charge | L45: | | N45: (the 5-step procedure from the wiki is: gather, sort, truncate, sum, multiply)
L46: |
L47: | | N47: gather: | O47: this is already done for you
L48: | | N48: sort: | O48: this is already done for you
L49: | | N49: truncate: | O49: cut the list off at the TOP 10
L50: | | N50: sum: | O50: sum the TOP 10 amounts for each fixed income asset:
L51: | | O51: class 02 unaffiliated bonds | Q51: = | R51: =SUM(D29:D38) -> 11616.66667
L52: | | O52: mortgage bonds | Q52: = | R52: =SUM(E29:E38) -> 7033.333333
L53: |
L54: | | N54: multiply: | O54: multiply the above sums by the appropriate RBC factor
L55: | | O55: =R51 -> 11616.66667 | P55: x | Q55: =G15 -> 0.01 | R55: = | S55: =O55*Q55 -> 116.1666667
L56: | | O56: =R52 -> 7033.333333 | P56: x | Q56: =G9 -> 0.05 | R56: = | S56: =O56*Q56 -> 351.6666667
L57: | | S57: =SUM(S55:S56) -> 467.8333333 | T57: <== ACC
L58: |
L59: |
L60: ---- | M60: ---- | N60: ---- | O60: ---- | P60: ---- | Q60: ---- | R60: ---- | S60: ---- | T60: ---- | U60: ---- | V60: ---- | W60: ---- | X60: ---- | Y60: ---- | Z60: ---- | AA60: ----
L61: |
L62: | | M62: GRID for creating ASSET VALUES
L63: | | N63: fixed income investments | P63: equity investments
L64: | | P64: class 03
L65: | | N65: class 02 | P65: unaffiliated | Q65: unaffiliated
L66: | | N66: unaffiliated | O66: mortgage | P66: preferred | Q66: common
L67: | | N67: bonds | O67: bonds | P67: stocks | Q67: stock | R67: real estate | S67: total *
L68: | | M68: 1 | N68: =IF(RAND()<$U68,1,0) -> 0 | O68: =IF($N68=1,0,IF(RAND()<U68,1,0)) -> 0 | P68: =IF(RAND()<$V68,1,0) -> 0 | Q68: 0 | R68: =IF(RAND()<$V68,1,IF(SUM(N68:Q68)=0,1,0)) -> 1 | S68: =SUM(N68:R68) -> 1 | U68: 0.5 | V68: 0.3
L69: | | M69: 2 | N69: 0 | O69: 0 | P69: 0 | Q69: 0 | R69: 1 | S69: =SUM(N69:R69) -> 1 | U69: 0.5 | V69: 0.3
L70: | | M70: 3 | N70: 0 | O70: 1 | P70: 1 | Q70: 1 | R70: 1 | S70: 4 | U70: 0.5 | V70: 0.3
L71: | | M71: 4 | N71: 0 | O71: 0 | P71: 0 | Q71: 0 | R71: 1 | S71: 1 | U71: 0.5 | V71: 0.3
L72: | | M72: 5 | N72: 0 | O72: 0 | P72: 0 | Q72: 0 | R72: 1 | S72: 1 | U72: 0.5 | V72: 0.3
L73: | | M73: 6 | N73: 1 | O73: 0 | P73: 1 | Q73: 0 | R73: 0 | S73: 2 | U73: 0.5 | V73: 0.3
L74: | | M74: 7 | N74: 0 | O74: 0 | P74: 0 | Q74: 1 | R74: 0 | S74: 1 | U74: 0.5 | V74: 0.3
L75: | | M75: 8 | N75: 1 | O75: 0 | P75: 0 | Q75: 0 | R75: 0 | S75: 1 | U75: 0.5 | V75: 0.3
L76: | | M76: 9 | N76: 1 | O76: 0 | P76: 1 | Q76: 0 | R76: 0 | S76: 2 | U76: 0.5 | V76: 0.3
L77: | | M77: 10 | N77: 1 | O77: 0 | P77: 1 | Q77: 0 | R77: 0 | S77: 2 | U77: 0.5 | V77: 0.3
L78: | | M78: 11 | N78: 1 | O78: 0 | P78: 0 | Q78: 0 | R78: 0 | S78: 1 | U78: 0.5 | V78: 0.3
L79: | | M79: 12 | N79: 0 | O79: 0 | P79: 0 | Q79: 1 | R79: 0 | S79: 1 | U79: 0.5 | V79: 0.3
L80: | | M80: 13 | N80: 1 | O80: 0 | P80: 1 | Q80: 0 | R80: 0 | S80: 2 | U80: 0.5 | V80: 0.3
L81: | | M81: 14 | N81: 1 | O81: 0 | P81: 0 | Q81: 0 | R81: 0 | S81: 1 | U81: 0.5 | V81: 0.3
L82: | | M82: 15 | N82: 1 | O82: 0 | P82: 0 | Q82: 0 | R82: 1 | S82: 2 | U82: 0.5 | V82: 0.3
L83: | | M83: total | N83: =SUM(N68:N82) -> 8 | O83: 1 | P83: 5 | Q83: 3 | R83: 6 | S83: 23
L84: |
L85: |
L86: |
L87: | | M87: =I87/I86 -> 
L88: | | M88: =I88/I87 -> 
L89: |
L90: |
L91: |
L92: |
L93: |
L94: |
L95: |
L96: |
L97: |
L98: |
L99: |
L100: |
L101: |
L102: |
L103: |
L104: ---- | M104: ---- | N104: ---- | O104: ---- | P104: ---- | Q104: ---- | R104: ---- | S104: ---- | T104: ---- | U104: ---- | V104: ---- | W104: ---- | X104: ---- | Y104: ---- | Z104: ---- | AA104: ----
L105: |
L106: |
L107: |
L108: |
L109: |
L110: |
L111: |
L112: |
L113: |
L114: |
L115: |
L116: |
L117: |
L118: |
L119: |
L120: |
L121: |
L122: |
L123: |
L124: |
L125: |
L126: |
L127: |
L128: |

Sheet RBC(1,2)
A1: Reading: | C1: Odomirok.19-RBC | L1: | | Y1: |
A2: Model: | C2: n/a | L2: | | M2: R1 = | N2: =O6 -> 1684.236774 | P2: R2 = | Q2: =O32 -> 2348.73 | Y2: |
A3: Problem Type: | C3: Calculate RBC charges R1 and R2 | L3: | | Y3: |
L4: | | M4: R1 | N4: = | O4: basic | P4: + | Q4: BSC | R4: + | S4: ACC | Y4: |
A5: Given | C5: Fixed Income Assets | L5: | | N5: = | O5: =O9 -> 1254.24 | P5: + | Q5: =O13 -> 344.4967742 | R5: + | S5: =O28 -> 85.5 | Y5: |
A6: random | L6: | | N6: = | O6: =O5+Q5+S5 -> 1684.236774 | P6: <== final answer for R1 | Y6: |
H7: amount issued by | J7: RBC | L7: | | Y7: |
D8: asset | G8: amount | H8: TOP 10 issuer | I8: # issuers | J8: factor | L8: | | M8: basic | N8: = | O8: SUM [ (asset values subject to basic charge) x (RBC factor) ] | Y8: |
D9: cash & equivalents | G9: 880 | H9: 0 | I9: 0 | J9: 0.003 | L9: | | N9: = | O9: =SUMPRODUCT(G9:G17,J9:J17) -> 1254.24 | Y9: |
D10: mortgage bonds | G10: 1300 | H10: 300 | I10: 14 | J10: 0.05 | L10: | | Y10: |
D11: U.S. government | G11: 29300 | H11: 23400 | I11: 34 | J11: 0 | L11: | | M11: BSC | N11: = | O11: BSF | P11: x | Q11: (total R1 charges for bonds subject to BSF charge) | Y11: |
D12: class 01 unaffiliated bonds | G12: 180700 | H12: 0 | I12: 180 | J12: 0.003 | L12: | | N12: = | O12: =Q25 -> 0.2903225806 | P12: x | Q12: =SUMPRODUCT(G12:G17,J12:J17) -> 1186.6 | Y12: |
D13: class 02 unaffiliated bonds | G13: 31700 | H13: 0 | I13: 78 | J13: 0.01 | L13: | | N13: = | O13: =O12*Q12 -> 344.4967742 | Y13: |
D14: class 03 unaffiliated bonds | G14: 0 | H14: 0 | I14: 0 | J14: 0.02 | L14: | | Y14: |
D15: class 04 unaffiliated bonds | G15: 1500 | H15: 900 | I15: 28 | J15: 0.045 | L15: | | Y15: |
D16: class 05 unaffiliated bonds | G16: 800 | H16: 300 | I16: 16 | J16: 0.1 | L16: | | N16: BSF calc: | O16: # issuers | P16: # issuers | Q16: weights | Y16: |
D17: class 06 unaffiliated bonds | G17: 600 | H17: 500 | I17: 8 | J17: 0.3 | L17: | | O17: ="= "&SUM(I12:I17) -> = 310 | P17: (1) | Q17: (2) | R17: (3)=(2)x(1) | Y17: |
L18: | | O18: first 50 | P18: =MIN(50,SUM(I12:I17)) -> 50 | Q18: 2.5 | R18: =P18*Q18 -> 125 | Y18: |
C19: Equity Assets | L19: | | O19: next 50 | P19: =MAX(0,MIN(50,SUM(I12:I17)-50)) -> 50 | Q19: 1.3 | R19: =P19*Q19 -> 65 | Y19: |
L20: | | O20: next 300 | P20: =MAX(0,MIN(300,SUM(I12:I17)-100)) -> 210 | Q20: 1 | R20: =P20*Q20 -> 210 | Y20: |
H21: amount issued by | J21: RBC | L21: | | O21: > 400 | P21: =MAX(0,SUM(I12:I17)-400) -> 0 | Q21: 0.9 | R21: =P21*Q21 -> 0 | Y21: |
D22: asset | G22: amount | H22: TOP 10 issuer | I22: # issuers | J22: factor | L22: | | O22: total | P22: =SUM(P18:P21) -> 310 | R22: =SUM(R18:R21) -> 400 | Y22: |
D23: other admitted unaff. common Stck. | G23: 3800 | H23: 1500 | I23: -- | J23: 0.15 | L23: | | Y23: |
D24: Schedule BA assets | G24: 4300 | H24: 2600 | I24: -- | J24: 0.2 | L24: | | O24: BSF | P24: = | Q24: =R22 -> 400 | R24: / | S24: =P22 -> 310 | T24: - | U24: 1 | Y24: |
D25: real estate | G25: 1200 | H25: 200 | I25: -- | J25: 0.1 | L25: | | P25: = | Q25: =MAX(0,Q24/S24-U24) -> 0.2903225806 | R25: <== substitute this value above as shown | Y25: |
D26: class 01 unaffiliated Prfd. Stck. | G26: 110 | H26: 0 | I26: -- | J26: 0.003 | L26: | | Y26: |
D27: class 02 unaffiliated Prfd. Stck. | G27: 0 | H27: 0 | I27: -- | J27: 0.01 | L27: | | M27: ACC | N27: = | O27: SUM [ (asset values subject to ACC for TOP 10 issuers) x (RBC factor) ] | Y27: |
D28: class 03 unaffiliated Prfd. Stck. | G28: 140 | H28: 0 | I28: -- | J28: 0.02 | L28: | | N28: = | O28: =SUMPRODUCT(H13:H16,J13:J16) + H10*J10 -> 85.5 | Y28: |
D29: class 04 unaffiliated Prfd. Stck. | G29: 230 | H29: 50 | I29: -- | J29: 0.045 | L29: | | Y29: |
D30: class 05 unaffiliated Prfd. Stck. | G30: 130 | H30: 50 | I30: -- | J30: 0.1 | L30: | | M30: R2 | N30: = | O30: basic | P30: + | Q30: ACC | Y30: |
D31: class 06 unaffiliated Prfd. Stck. | G31: 0 | H31: 0 | I31: -- | J31: 0.3 | L31: | | N31: = | O31: =O35 -> 1576.48 | P31: + | Q31: =O38 -> 772.25 | Y31: |
L32: | | N32: = | O32: =O31+Q31 -> 2348.73 | P32: <== final answer for R2 | Y32: |
L33: | | Y33: |
A34: Hint | C34: Items highlighted in red are NOT subject to the ACC or BSF. | L34: | | M34: basic | N34: = | O34: SUM [ (asset values subject to basic charge) x (RBC factor) ] | Y34: |
L35: | | N35: = | O35: =SUMPRODUCT(G23:G31,J23:J31) -> 1576.48 | Y35: |
L36: | | Y36: |
L37: | | M37: ACC | N37: = | O37: SUM [ (asset values subject to ACC for TOP 10 issuers) x (RBC factor) ] | Y37: |
L38: | | O38: =SUMPRODUCT(H27:H30,J27:J30)+SUMPRODUCT(H23:H25,J23:J25) -> 772.25 | Y38: |
L39: | | Y39: |
L40: | | Y40: |
L41: | | Y41: |
L42: | | Y42: |
L43: | | Y43: |
L44: | | Y44: |
L45: | | Y45: |
L46: | | Y46: |
L47: | | Y47: |
L48: | | Y48: |
L49: | | Y49: |
L50: | | Y50: |
L51: | | Y51: |
L52: | | Y52: |
L53: | | Y53: |
L54: | | Y54: |
L55: | | Y55: |
L56: | | Y56: |
L57: | | Y57: |
L58: | | Y58: |
L59: | | Y59: |
L60: ---- | M60: ---- | N60: ---- | O60: ---- | P60: ---- | Q60: ---- | R60: ---- | S60: ---- | T60: ---- | U60: ---- | V60: ---- | W60: ---- | X60: ---- | Y60: ---- | Z60: ---- | AA60: ----
L61: | | Y61: |
L62: | | Y62: |
L63: | | N63: fraction | O63: related | Y63: |
L64: | | N64: of | O64: to | Y64: |
L65: | | N65: amount | O65: amount | Y65: |
L66: | | M66: seed | O66: = 0 | Y66: |
L67: | | M67: =G67/G$66 ->  | O67: =I67/I$69 ->  | Q67: =I67/G67*100000 ->  | Y67: |
L68: | | M68: =G68/G$66 ->  | O68: =I68/I$69 ->  | Y68: |
L69: | | M69: =G69/G$66 ->  | O69: seed | Y69: |
L70: | | M70: =G70/G$66 ->  | O70: =I70/I$69 ->  | Y70: |
L71: | | M71: =AVERAGE(M70,M72) ->  | O71: =AVERAGE(O70,O72) ->  | Y71: |
L72: | | M72: =G72/G$66 ->  | O72: =I72/I$69 ->  | Y72: |
L73: | | M73: =AVERAGE(M72,M74) ->  | O73: =AVERAGE(O72,O74) ->  | Y73: |
L74: | | M74: =G74/G$66 ->  | O74: =I74/I$69 ->  | Y74: |
L75: | | Y75: |
L76: | | Y76: |
L77: | | N77: fraction | Y77: |
L78: | | N78: of | Y78: |
L79: | | N79: amount | Y79: |
L80: | | M80: =G80/G$66 ->  | Y80: |
L81: | | M81: 4 | Y81: |
L82: | | M82: =G82/G$66 ->  | Y82: |
L83: | | M83: =G83/G$66 ->  | Y83: |
L84: | | M84: =G84/G$66 ->  | Y84: |
L85: | | M85: =AVERAGE(M84,M86) ->  | Y85: |
L86: | | M86: =G86/G$66 ->  | Y86: |
L87: | | M87: =AVERAGE(M86,M88) ->  | Y87: |
L88: | | M88: 0.05 | Y88: |
L89: | | Y89: |
Y90: |
Y91: |
Y92: |
L93: | | Y93: |
L94: | | Y94: |
L95: | | Y95: |
L96: | | Y96: |
L97: | | Y97: |
L98: | | Y98: |
L99: | | Y99: |
L100: | | Y100: |
L101: | | Y101: |
L102: | | Y102: |
L103: | | Y103: |
L104: ---- | M104: ---- | N104: ---- | O104: ---- | P104: ---- | Q104: ---- | R104: ---- | S104: ---- | T104: ---- | U104: ---- | V104: ---- | W104: ---- | X104: ---- | Y104: ---- | Z104: ---- | AA104: ----
L105: | | Y105: |
L106: | | Y106: |
L107: | | Y107: |
L108: | | Y108: |
L109: | | Y109: |
L110: | | Y110: |
L111: | | Y111: |
L112: | | Y112: |
L113: | | Y113: |
L114: | | Y114: |
L115: | | Y115: |
L116: | | Y116: |
L117: | | Y117: |
L118: | | Y118: |
L119: | | Y119: |
L120: | | Y120: ----
L121: |
L122: |
L123: |
L124: |
L125: |
L126: |
L127: |
L128: |

Sheet RBC(3)
A1: Reading: | C1: Odomirok.19-RBC | L1: | | Y1: |
A2: Model: | C2: n/a | L2: | | M2: R3 = | N2: =O6 -> 2295.5 | Y2: |
A3: Problem Type: | C3: Calculate the RBC charge for R3 | L3: | | Y3: |
L4: | | M4: R3 | N4: = | O4: charge for non-invested assets | R4: + | S4: charge for reins. recov. | V4: + charge for health credit risk | Y4: |
A5: Given | C5: Credit-Related Assets | L5: | | N5: = | O5: =S15 -> 850.5 | R5: + | S5: =Q26 -> 1445 | V5: + 0 | Y5: |
A6: random | L6: | | N6: = | O6: =O5+S5+0 -> 2295.5 | Y6: |
C7: NON-INVESTED ASSETS | I7: amount | J7: RBC factor | L7: | | Y7: |
D8: investment income due & accrued | I8: 0 | J8: 0.01 | L8: | | M8: charges for NON-INVESTED ASSETS | Y8: |
D9: amounts receivable related to uninsured plans | I9: 0 | J9: 0.05 | L9: | | N9: investment income due & accrued | S9: =I8*J8 -> 0 | Y9: |
D10: federal income tax recoverable | I10: 11000 | J10: 0.05 | L10: | | N10: amounts receivable related to uninsured plans | S10: 0 | Y10: |
D11: guaranty funds receivable or on deposit | I11: 0 | J11: 0.05 | L11: | | N11: federal income tax recoverable | S11: 550 | Y11: |
D12: recoverable (parents/subs/affiliates) | I12: 3300 | J12: 0.05 | L12: | | N12: guaranty funds receivable or on deposit | S12: 0 | Y12: |
D13: aggregate write-ins for other than invested assets | I13: 2710 | J13: 0.05 | L13: | | N13: recoverable (parents/subs/affiliates) | S13: 165 | Y13: |
C14: REINSURANCE RECOVERABLES | I14: amount | J14: RBC factor | L14: | | N14: aggregate write-ins for other than invested assets | S14: 135.5 | Y14: |
D15: amount subject to RBC (gross of reins provision) | I15: 29700 | J15: 0.1 | L15: | | S15: =SUM(S9:S14) -> 850.5 | T15: <== charge for non-invested assets | Y15: |
D16: provision for reinsurance (allocated) | I16: 800 | J16: n/a | L16: | | Y16: |
L17: | | M17: pre-allocation charges for REINSURANCE RECOVERABLES | S17: =(I15-I16)*J15 -> 2890 | T17: (subtract reinsurance provision | Y17: |
C18: * assume this P&C insurer has no health credit risk | L18: | | T18: before applying RBC factor) | Y18: |
L19: | | M19: Check R3/R4 allocation of RBC for reinsurance recoverables | Y19: |
C20: U/W risk (you need this to finish the R3 calculation) | L20: | | Y20: |
L21: | | M21: RBC charge for R4 | U21: = | V21: =H22 -> 3400 | Y21: |
C22: RBC charge for R4 | H22: 3400 | L22: | | M22: (RBC charge for NON-INVESTED ASSETS) + (1/2)x(RBC charge for reins recoverables) | U22: = | V22: =S15+0.5*S17 -> 2295.5 | Y22: |
L23: | | Y23: |
L24: | | M24: Since R4 | N24: =IF(V21>V22,"is greater","less than or equal") -> is greater | P24: ==> | Q24: =IF(V21>V22,"put 50% of ","put 100%") -> put 50% of | S24: =S17 -> 2890 | T24: into R3 | Y24: |
L25: | | Y25: |
L26: | | M26: final R3 charge for reins recovs | P26: = | Q26: =IF(V21>V22,0.5*S17,S17) -> 1445 | R26: <== charge for reinsurance recoverables | Y26: |
L27: | | Y27: |
L28: | | Y28: |
L29: | | Y29: |
L30: | | Y30: |
L31: | | Y31: |
L32: | | Y32: |
L33: | | Y33: |
L34: | | Y34: |
L35: | | Y35: |
L36: | | Y36: |
L37: | | Y37: |
L38: | | Y38: |
L39: | | Y39: |
L40: | | Y40: |
L41: | | Y41: |
L42: | | Y42: |
L43: | | Y43: |
L44: | | Y44: |
L45: | | Y45: |
L46: | | Y46: |
L47: | | Y47: |
L48: | | Y48: |
L49: | | Y49: |
L50: | | Y50: |
L51: | | Y51: |
L52: | | Y52: |
L53: | | Y53: |
L54: | | Y54: |
L55: | | Y55: |
L56: | | Y56: |
L57: | | Y57: |
L58: | | Y58: |
L59: | | Y59: |
L60: ---- | M60: ---- | N60: ---- | O60: ---- | P60: ---- | Q60: ---- | R60: ---- | S60: ---- | T60: ---- | U60: ---- | V60: ---- | W60: ---- | X60: ---- | Y60: ---- | Z60: ---- | AA60: ----
L61: | | Y61: |
L62: | | Y62: |
L63: | | Y63: |
L64: | | Y64: |
L65: | | M65: 0.35 | Y65: |
L66: | | M66: 0.1 | Y66: |
L67: | | M67: seed | Y67: |
L68: | | M68: 0.4 | Y68: |
L69: | | M69: 0.3 | Y69: |
L70: | | M70: 0.2 | Y70: |
L71: | | Y71: |
L72: | | M72: 3 | Y72: |
L73: | | M73: 0.1 | Y73: |
L74: | | Y74: |
L75: | | Y75: |
L76: | | Y76: |
L77: | | Y77: |
L78: | | Y78: |
L79: | | M79: 0.25 | Y79: |
L80: | | Y80: |
L81: | | Y81: |
L82: | | Y82: |
L83: | | Y83: |
L84: | | Y84: |
L85: | | Y85: |
L86: | | Y86: |
L87: | | Y87: |
L88: | | Y88: |
L89: | | Y89: |
L90: | | Y90: |
L91: | | Y91: |
L92: | | Y92: |
L93: | | Y93: |
L94: | | Y94: |
L95: | | Y95: |
L96: | | Y96: |
L97: | | Y97: |
L98: | | Y98: |
L99: | | Y99: |
L100: | | Y100: |
L101: | | Y101: |
L102: | | Y102: |
L103: | | Y103: |
L104: ---- | M104: ---- | N104: ---- | O104: ---- | P104: ---- | Q104: ---- | R104: ---- | S104: ---- | T104: ---- | U104: ---- | V104: ---- | W104: ---- | X104: ---- | Y104: ---- | Z104: ---- | AA104: ----
L105: | | Y105: |
L106: | | Y106: |
L107: | | Y107: |
L108: | | Y108: |
L109: | | Y109: |
L110: | | Y110: |
L111: | | Y111: |
L112: | | Y112: |
L113: | | Y113: |
L114: | | Y114: |
L115: | | Y115: |
L116: | | Y116: |
L117: | | Y117: |
L118: | | Y118: |
L119: | | Y119: |
L120: | | Y120: ----
L121: |
L122: |
L123: |
L124: |
L125: |
L126: |
L127: |
L128: |

Sheet RBC4
A1: Reading: | C1: Odomirok.19-RBC | L1: | | M1: Total R4 RBC for all lines = | P1: =Q65 -> 2370.275896 | Q1: <== final answer
A2: Model: | C2: n/a | L2: |
A3: Problem Type: | C3: Calculate RBC charge R4 (reserve risk) | L3: | | M3: Apply equations 1, 2, 3 in succession to arrive at the final answer.
L4: |
A5: Given | G5: Line of Business | L5: | | M5: Equation 1: Base RBC
A6: random | L6: |
L7: | | N7: R4 Base RBC | O7: = | P7: [[ (C+1) x A ] -1 ] x (Reserves)
G8: LOB 1 | H8: LOB 2 | I8: LOB 3 | L8: |
C9: industry average L+LAE LDF (9 prior AYs) | I9: 0.962 | L9: | | N9: where
C10: company average L+LAE LDF (9 prior AYs) | I10: 1.12 | L10: | | N10: C | O10: = | P10: Company L+LAE RBC% | T10: = | U10: =0.5*Q16+0.5*O21 -> 0.2380665281 | V10: <== see weighting below
C11: industry L+LAE RBC % | I11: 0.22 | L11: | | N11: A | O11: = | P11: Adjustment for investment income | T11: = | U11: =I12 -> 0.88 | V11: <== given
C12: adjustment for investment income | I12: 0.88 | L12: |
C13: company L+LAE Reserves (gross of NTD) | G13: 6300 | H13: 11700 | I13: 7000 | L13: |
C14: (NTD = Non-Tabular Discount) | L14: | | N14: C is a 50/50 weighting between:
C15: portion of reserves on retro-rated plan | L15: |
C16: % direct loss-sensitive | I16: 0.06 | L16: | | N16: industry L+LAE RBC% | P16: = | Q16: =$I$11 -> 0.22 | R16: <== given (weight = 50%)
C17: % assumed loss-sensitive | I17: 0.02 | L17: |
C18: Reserve RBC charge after discounts | G18: 756 | H18: 1170 | I18: ? | L18: | | N18: industry L+LAE RBC% adjusted for company experience
L19: | | N19: = | O19: industry L+LAE RBC% | Q19: x | R19: (company average LDF) / (industry average LDF)
C20: Excessive Premium Growth Charge (add to total RBC) | I20: 208 | L20: | | N20: = | O20: =I11 -> 0.22 | Q20: x | R20: =I10 -> 1.12 | S20: / | T20: =I9 -> 0.962
C21: RBC for reinsurance recoverables (part of R3 calc) | I21: 56.44 | L21: | | N21: = | O21: =O20*R20/T20 -> 0.2561330561 | P21: <== weight = 50%
L22: |
C23: Assume: | L23: | | M23: Putting this all together gives:
C24: R4 > | D24: (RBC charge for NON-INVESTED ASSETS) + (1/2)x(RBC charge for reins recoverables) | L24: |
L25: | | N25: R4 Base RBC | O25: = | P25: ="[ ( " & ROUND(U10+1,4) -> [ ( 1.2381 | Q25: x | R25: =ROUND(U11,3) & " )" -> 0.88 ) | S25: - | T25: =1 & " ]" -> 1 ] | U25: x | V25: =I13 -> 7000
A26: Find | C26: Calculate the total R4 RBC charge for all 3 lines combined | L26: | | N26: R4 Base RBC | O26: = | P26: =((U10+1)*U11-1)*(I13+I14) -> 626.4898129
L27: |
A28: TRICK | C28: Don't forget to add 1/2 of RBC for reinsurance recoverables at the very end. | L28: | | M28: Equation 2: Subtract Loss-Sensitive Discount (LSD)
L29: |
L30: | | O30: R4 RBC after discount | P30: = | Q30: Base RBC | R30: - | S30: LSD
L31: |
L32: | | N32: where
L33: | | N33: LSD | O33: = | P33: Base RBC | Q33: x | R33: (D% | S33: + | T33: A%)
L34: | | O34: = | P34: =P26 -> 626.4898129 | Q34: x | R34: =P39+P43 -> 0.021
L35: | | O35: = | P35: =P34*R34 -> 13.15628607
L36: |
L37: | | N37: D% | O37: = | P37: 0.3 | Q37: x | R37: (% direct loss sensitive)
L38: | | O38: = | P38: 0.3 | Q38: x | R38: =I16 -> 0.06
L39: | | O39: = | P39: =P38*R38 -> 0.018
L40: |
L41: | | N41: A% | O41: = | P41: 0.15 | Q41: x | R41: (% assumed loss sensitive)
L42: | | O42: = | P42: 0.15 | Q42: x | R42: =I17 -> 0.02
L43: | | O43: = | P43: =P42*R42 -> 0.003
L44: |
L45: | | M45: Putting this together gives:
L46: |
L47: | | O47: R4 RBC after discount | P47: = | Q47: Base RBC | R47: - | S47: LSD
L48: | | O48: R4 RBC after discount | P48: = | Q48: =P26 -> 626.4898129 | R48: - | S48: =P35 -> 13.15628607
L49: | | O49: R4 RBC after discount | P49: = | Q49: =Q48-S48 -> 613.3335268
L50: |
L51: | | M51: Equation 3: Final RBC after applying Loss Concentration Factor (LCF)
L52: |
L53: | | M53: Calculate LCF and apply it to all lines of business
L54: |
L55: | | N55: LCF | O55: = | P55: 0.7 | Q55: + | R55: 0.3 | S55: x | T55: (max reserve) | V55: / | W55: (total reserve)
L56: | | O56: = | P56: 0.7 | Q56: + | R56: 0.3 | S56: x | T56: =MAX(G13:I13) -> 11700 | V56: / | W56: =SUM(G13:I13) -> 25000
L57: | | O57: = | P57: =P56+R56*T56/W56 -> 0.8404
L58: |
L59: | | M59: ---- | N59: ---- | O59: ---- | P59: ---- | Q59: ---- | R59: ---- | S59: ---- | T59: ---- | U59: ---- | V59: ---- | W59: ---- | X59: ----
L60: |
L61: | | M61: Putting this together gives the final answer: (RR = Reinsurance Recoverables RBC calc'd as part of R3)
L62: |
L63: | | O63: Total R4 RBC (all lines) | P63: = | Q63: pre-LCF total | S63: x | T63: LCF | U63: + | V63: growth | W63: + | X63: 1/2(RR)
L64: | | O64: Total R4 RBC (all lines) | P64: = | Q64: ="( " & G18 & " + " & H18 & " + " & ROUND(Q49,1) & " )" -> ( 756 + 1170 + 613.3 ) | S64: x | T64: =P57 -> 0.8404 | U64: + | V64: =I20 -> 208 | W64: + | X64: =0.5*I21 -> 28.22
L65: | | O65: Total R4 RBC (all lines) | P65: = | Q65: =(G18+H18+Q49)*T64+V64+X64 -> 2370.275896 | R65: <== final answer
L66: |
L67: |
L68: ---- | M68: ---- | N68: ---- | O68: ---- | P68: ---- | Q68: ---- | R68: ---- | S68: ---- | T68: ---- | U68: ---- | V68: ---- | W68: ---- | X68: ---- | Y68: ---- | Z68: ---- | AA68: ----
L69: |
L70: |
L71: |
L72: |
L73: |
L74: |
L75: |
L76: |
L77: |
L78: |
L79: |
L80: |
L81: |
L82: |
L83: |
L84: |
L85: |
L86: |
L87: |
L88: |
L89: |
L90: |
L91: |
L92: |
L93: |
L94: |
L95: |
L96: |
L97: |
L98: |
L99: |
L100: |
L101: |
L102: |
L103: |
L104: |
L105: |
L106: |
L107: |
L108: |
L109: |
L110: |
L111: |
L112: |
L113: |
L114: |
L115: |
L116: |
L117: |
L118: |
L119: |
L120: |
L121: |
L122: |
L123: |
L124: |
L125: |
L126: |
L127: |
L128: |

Sheet RBC5
A1: Reading: | C1: Odomirok.19-RBC | L1: | | M1: Total R5 RBC for all lines = | P1: =Q65 -> 2950.581258 | Q1: <== final answer
A2: Model: | C2: 2014.Fall #18 | L2: |
A3: Problem Type: | C3: Calculate RBC charge R5 (NWP risk) | L3: | | M3: Apply equations 4, 5, 6 in succession to arrive at the final answer.
L4: |
A5: Given | G5: Line of Business | L5: | | M5: Equation 4: Base RBC
A6: random | G6: Comm | L6: |
G7: Auto | L7: | | N7: R5 Base RBC | O7: = | P7: (current yr NWP) | R7: x | S7: [ (C x A) + U - 1 ]
G8: Liab | H8: G/L | I8: WC | L8: |
C9: industry average L+LAE ratio (10 yrs) | I9: 1.032 | L9: | | N9: where
C10: company average L+LAE ratio (10 yrs) | I10: 1.091 | L10: | | N10: C | O10: = | P10: Company RBC L+LAE ratio | T10: = | U10: =0.5*Q16+0.5*O21 -> 0.9329268411 | V10: <== see weighting below
C11: industry L+LAE ratio | I11: 0.907 | L11: | | N11: A | O11: = | P11: Adjustment for investment income | T11: = | U11: =I12 -> 0.83 | V11: <== given
C12: adjustment for investment income | I12: 0.83 | L12: | | N12: U | O12: = | P12: company U/W expense ratio | T12: = | U12: =I14 -> 0.35 | V12: <== given
C13: company NWP (current yr) | G13: 5400 | H13: 11400 | I13: 12500 | L13: |
C14: company U/W expense ratio (current yr) | I14: 0.35 | L14: | | N14: C is a 50/50 weighting between:
C15: portion of reserves on retro-rated plan | L15: |
C16: % direct loss-sensitive | I16: 0.1 | L16: | | N16: industry L+LAE ratio | P16: = | Q16: =$I$11 -> 0.907 | R16: <== given (weight = 50%)
C17: % assumed loss-sensitive | I17: 0.04 | L17: |
C18: R5 RBC charge after discounts | G18: 594 | H18: 1254 | I18: ? | L18: | | N18: industry L+LAE ratio adjusted for company experience
L19: | | N19: = | O19: industry L+LAE ratio | Q19: x | R19: (company average L+LAE) / (industry average L+LAE ratio)
C20: Excessive Premium Growth Charge (add to total RBC): | I20: 180 | L20: | | N20: = | O20: =I11 -> 0.907 | Q20: x | R20: =I10 -> 1.091 | S20: / | T20: =I9 -> 1.032
L21: | | N21: = | O21: =O20*R20/T20 -> 0.9588536822 | P21: <== weight = 50%
A22: Find | C22: Calculate the total R5 RBC charge for all 3 lines combined | L22: |
L23: | | M23: Putting this all together gives:
L24: |
L25: | | N25: R5 Base RBC | O25: = | P25: =I13 -> 12500 | Q25: x | R25: ="( "&ROUND(U10,3) -> ( 0.933 | S25: x | T25: =U11 -> 0.83 | U25: + | V25: =U12 -> 0.35 | W25: - | X25: ="1"&" )" -> 1 )
L26: | | N26: R5 Base RBC | O26: = | P26: =MAX(0,P25*(U10*U11+U12-1)) -> 1554.115976
L27: |
L28: | | M28: Equation 5: Subtract Loss-Sensitive Discount (LSD)
L29: |
L30: | | O30: R5 RBC after discount | P30: = | Q30: Base RBC | R30: - | S30: LSD
L31: |
L32: | | N32: where
L33: | | N33: LSD | O33: = | P33: Base RBC | Q33: x | R33: (D% | S33: + | T33: A%)
L34: | | O34: = | P34: =P26 -> 1554.115976 | Q34: x | R34: =P39+P43 -> 0.036
L35: | | O35: = | P35: =P34*R34 -> 55.94817515
L36: |
L37: | | N37: D% | O37: = | P37: 0.3 | Q37: x | R37: (% direct loss sensitive)
L38: | | O38: = | P38: 0.3 | Q38: x | R38: =I16 -> 0.1
L39: | | O39: = | P39: =P38*R38 -> 0.03
L40: |
L41: | | N41: A% | O41: = | P41: 0.15 | Q41: x | R41: (% assumed loss sensitive)
L42: | | O42: = | P42: 0.15 | Q42: x | R42: =I17 -> 0.04
L43: | | O43: = | P43: =P42*R42 -> 0.006
L44: |
L45: | | M45: Putting this together gives:
L46: |
L47: | | O47: R5 RBC after discount | P47: = | Q47: Base RBC | R47: - | S47: LSD
L48: | | O48: R5 RBC after discount | P48: = | Q48: =P26 -> 1554.115976 | R48: - | S48: =P35 -> 55.94817515
L49: | | O49: R5 RBC after discount | P49: = | Q49: =Q48-S48 -> 1498.167801
L50: |
L51: | | M51: Equation 6: Final RBC after applying Premium Concentration Factor (PCF)
L52: |
L53: | | M53: Calculate PCF and apply it to all lines of business
L54: |
L55: | | N55: PCF | O55: = | P55: 0.7 | Q55: + | R55: 0.3 | S55: x | T55: (max NWP by line) | V55: / | W55: (total NWP)
L56: | | O56: = | P56: 0.7 | Q56: + | R56: 0.3 | S56: x | T56: =MAX(G13:I13) -> 12500 | V56: / | W56: =SUM(G13:I13) -> 29300
L57: | | O57: = | P57: =P56+R56*T56/W56 -> 0.8279863481
L58: |
L59: | | M59: ---- | N59: ---- | O59: ---- | P59: ---- | Q59: ---- | R59: ---- | S59: ---- | T59: ---- | U59: ---- | V59: ---- | W59: ---- | X59: ----
L60: |
L61: | | M61: Putting this together gives the final answer:
L62: |
L63: | | O63: Total R5 RBC (all lines) | P63: = | Q63: pre-PCF total | T63: x | U63: PCF | V63: + | W63: growth charge
L64: | | O64: Total R5 RBC (all lines) | P64: = | Q64: ="( " & G18 & " + " & H18 & " + " & ROUND(Q49,1) & " )" -> ( 594 + 1254 + 1498.2 ) | T64: x | U64: =P57 -> 0.8279863481 | V64: + | W64: =I20 -> 180
L65: | | O65: Total R5 RBC (all lines) | P65: = | Q65: =(G18+H18+Q49)*U64+W64 -> 2950.581258 | R65: <== final answer
L66: |
L67: |
L68: ---- | M68: ---- | N68: ---- | O68: ---- | P68: ---- | Q68: ---- | R68: ---- | S68: ---- | T68: ---- | U68: ---- | V68: ---- | W68: ---- | X68: ---- | Y68: ---- | Z68: ---- | AA68: ----
L69: |
L70: |
L71: |
L72: |
L73: |
L74: |
L75: |
L76: |
L77: |
L78: |
L79: |
L80: |
L81: |
L82: |
L83: |
L84: |
L85: |
L86: |
L87: |
L88: |
L89: |
L90: |
L91: |
L92: |
L93: |
L94: |
L95: |
L96: |
L97: |
L98: |
L99: |
L100: |
L101: |
L102: |
L103: |
L104: |
L105: |
L106: |
L107: |
L108: |
L109: |
L110: |
L111: |
L112: |
L113: |
L114: |
L115: |
L116: |
L117: |
L118: |
L119: |
L120: |
L121: |
L122: |
L123: |
L124: |
L125: |
L126: |
L127: |
L128: |

Sheet 17S.13
A1: Reading: | C1: Odomirok.15-P | L1: |
A2: Model: | C2: Text Example of Intercompany Pooling from p186 (similar to 2017.Spring #13ab) | L2: |
A3: Problem Type: | C3: Schedule P (& non-Schedule P) losses & premiums for INTERCOMPANY POOLING | L3: |
L4: |
A5: Given | C5: In this problem, net refers to amounts net of outside reinsurance | L5: | | N5: Schedule P | P5: non-Schedule P
A6: random | C6: (versus net of internally ceded amounts based on pool %) | L6: | | N6: gross | O6: net | P6: gross | Q6: net
L7: | | M7: company | N7: loss & LAE | O7: loss & LAE | P7: loss & LAE | Q7: loss & LAE
F8: ceded to | L8: | | M8: A (lead) | N8: =D11*E$14 -> 605 | O8: =D11*(E$14-F$14) -> 605 | P8: =E11+G12+G13 -> 1210 | Q8: =O8 -> 605
E9: direct | F9: outside | G9: net | L9: | | M9: B | N9: =D12*E$14 -> 242 | O9: =D12*(E$14-F$14) -> 242 | P9: =E12+O9 -> 582 | Q9: =O9 -> 242
C10: company | D10: pool % | E10: loss & LAE | F10: insurers | G10: loss & LAE | L10: | | M10: C | N10: =D13*E$14 -> 363 | O10: =D13*(E$14-F$14) -> 363 | P10: =E13+O10 -> 533 | Q10: =O10 -> 363
C11: A (lead) | D11: 0.5 | E11: 700 | F11: 0 | G11: 700 | L11: | | M11: total | N11: =SUM(N8:N10) -> 1210 | O11: =SUM(O8:O10) -> 1210 | P11: =SUM(P8:P10) -> 2325 | Q11: =SUM(Q8:Q10) -> 1210
C12: B | D12: 0.2 | E12: 340 | F12: 0 | G12: 340 | L12: |
C13: C | D13: 0.3 | E13: 170 | F13: 0 | G13: 170 | L13: |
C14: total | D14: 1 | E14: 1210 | F14: 0 | G14: 1210 | L14: | | M14: The non-Schedule P gross column looks wrong. It isn't! According to Odomirok:
L15: |
G16: no cession to outside reinsurers | L16: | | M16: Lead A internally assumes everything from non-lead companies (that wasn't ceded to outside reinsurers)
A17: Find | C17: (a) | D17: Schedule P gross reserves | L17: |
C18: (b) | D18: Schedule P net reserves | L18: | | M18: A gross | N18: = | O18: A (direct) | P18: + | Q18: B (net) | R18: + | S18: C (net)
C19: (c) | D19: non-Schedule P gross reserves | L19: | | N19: = | O19: =E11 -> 700 | P19: + | Q19: =G12 -> 340 | R19: + | S19: =G13 -> 170
C20: (d) | D20: non-Schedule P net reserves | L20: | | N20: = | O20: =O19+Q19+S19 -> 1210
L21: | | R21: ceded internally to A
A22: Concept | B22: * | C22: It doesn't matter whether you're dealing with losses or premiums. | L22: |
B23: * | C23: The key is whether it's a Schedule P exhibit or a non-Schedule P exhibit | L23: | | M23: Non-lead B & C internally re-assume their pool % from A's gross amount above
L24: |
A25: Schedule P: | C25: GROSS reserves for each company: | F25: (total direct loss & LAE) x (pool %) | L25: | | M25: B gross | N25: = | O25: B (direct) | P25: + | Q25: (total net) | R25: x | S25: (B pool %)
C26: NET reserves for each company: | F26: (total net loss & LAE) x (pool %) | L26: | | N26: = | O26: =E12 -> 340 | P26: + | Q26: =G14 -> 1210 | R26: x | S26: =D12 -> 0.2
L27: | | N27: = | O27: =O26 -> 340 | P27: + | Q27: =Q26*S26 -> 242 | R27: assumed internally from A
A28: non-Schedule P: | C28: GROSS reserves for each company: | L28: | | N28: = | O28: =O26+Q26*S26 -> 582
C29: A (lead): | D29: A (direct) + B (net) + C (net) | L29: |
C30: B (non-lead): | D30: B (direct) + (total net) x (B pool %) | H30: <-- this one is tricky | L30: | | M30: C gross | N30: = | O30: C (direct) | P30: + | Q30: (total net) | R30: x | S30: (C pool %)
C31: C (non-lead): | D31: C (direct) + (total net) x (C pool %) | H31: <-- this one is tricky | L31: | | N31: = | O31: =E13 -> 170 | P31: + | Q31: =G14 -> 1210 | R31: x | S31: =D13 -> 0.3
L32: | | N32: = | O32: =O31 -> 170 | P32: + | Q32: =Q31*S31 -> 363 | R32: assumed internally from A
C33: NET reserves for each company: | F33: same as for Schedule P | L33: | | N33: = | O33: =O31+Q31*S31 -> 533
L34: |
L35: | | M35: The gross amounts for all companies double-count the internally ceded amounts.
L36: | | M36: - A's gross amount includes the internal cession from the non-lead companies B & C
L37: | | M37: - But B & C's gross amounts also include the internal cession BACK from A
L38: |
L39: |
L40: |
L41: |
L42: |
L43: |
L44: |
L45: |
L46: |
L47: |
L48: |
L49: |
L50: |
L51: |
L52: |
L53: |
L54: |
L55: |
L56: |
L57: |
L58: |
L59: |
L60: ---- | M60: ---- | N60: ---- | O60: ---- | P60: ---- | Q60: ---- | R60: ---- | S60: ---- | T60: ---- | U60: ---- | V60: ---- | W60: ---- | X60: ---- | Y60: ---- | Z60: ---- | AA60: ----
L61: |
L62: |
L63: |
L64: |
L65: |
L66: |
L67: |
L68: |
L69: |
L70: |
L71: |
L72: |
L73: |
L74: |
L75: |
L76: |
L77: |
L78: |
L79: |
L80: |
L81: |
L82: |
L83: |
L84: |
L85: |
L86: |
L87: |
L88: ---- | M88: ---- | N88: ---- | O88: ---- | P88: ---- | Q88: ---- | R88: ---- | S88: ---- | T88: ---- | U88: ---- | V88: ---- | W88: ---- | X88: ---- | Y88: ---- | Z88: ---- | AA88: ----
L89: |
L90: |
L91: |
L92: |
L93: |
L94: |
L95: |
L96: |
L97: |
L98: |
L99: |
L100: |
L101: |
L102: |
L103: |
L104: |
L105: |
L106: |
L107: |
L108: |
L109: |
L110: |
L111: |
L112: |
L113: |
L114: |
L115: |
L116: |
L117: |
L118: |
L119: |
L120: |
L121: |
L122: |
L123: |
L124: |
L125: |
L126: |
L127: |
L128: |
L129: |
L130: |
L131: |
L132: |
L133: |
L134: |
L135: |
L136: |
L137: |
L138: |
L139: |
L140: |
L141: |
L142: |
L143: |
L144: |
L145: |
L146: |
L147: |
L148: |

Sheet 17S.26-easy
A1: Reading: | C1: Klann.ReinsComm | L1: | | M1: insurer | N1: = | O1: =T15 -> 104996.5 | P1: =U15 -> (increase)
A2: Model: | C2: 2017.Spring #26b | L2: | | M2: reinsurer | N2: = | O2: =T16 -> -104569.15 | P2: =U16 -> (decrease)
A3: Problem Type: | C3: change in taxable income - easy version | L3: |
L4: |
A5: Given | C5: The following pertains to a reinsurance contract that was commuted: | L5: | | M5: =G7*100 & "% quota-share reinsurance means that " & G7*100 & "% is CEDED to reinsurer:" -> 35% quota-share reinsurance means that 35% is CEDED to reinsurer:
A6: random | L6: |
C7: quota-share percentage | G7: 0.35 | L7: | | N7: pR-ceded | O7: = | P7: pR-gross | Q7: x | R7: qs%
C8: primary insurer RESERVE direct (gross) | G8: 1110000 | H8: = | I8: pR-gross | L8: | | O8: = | P8: =G8 -> 1110000 | Q8: x | R8: =G7 -> 0.35 | S8: = | T8: =P8*R8 -> 388500
L9: |
C10: discount factor for primary insurer | G10: 0.88 | L10: | | N10: reR-gross | O10: = | P10: pR-ceded | Q10: x | R10: =1+H14 -> 0.99
C11: discount factor for reinsurer | G11: 0.89 | L11: | | P11: =T8 -> 388500 | Q11: x | R11: =1+H14 -> 0.99 | S11: = | T11: =P11*R11 -> 384615
L12: |
C13: REINSURER'S carried loss reserves (prior to commutation) | L13: | | M13: We now have what we need to substitute into the formulas for change in taxable income:
C14: are higher than the INSURED'S carried reserves by: | H14: -0.01 | L14: |
L15: | | N15: change in taxable income for primary insurer | S15: = | T15: =E16-T8*G10 -> 104996.5 | U15: =IF(T15>0," (increase)", IF(T15<0," (decrease)"," (no change)")) -> (increase)
C16: commutation price | E16: 446876.5 | L16: | | N16: change in taxable income for reinsurer | S16: = | T16: =T11*G11-E16 -> -104569.15 | U16: =IF(T16>0," (increase)", IF(T16<0," (decrease)"," (no change)")) -> (decrease)
L17: |
L18: |
A19: Find | C19: change in taxable income for both insurer and reinsurer due to the commutation | L19: |
L20: |
A21: Notation | C21: price | D21: = | E21: commutation price | L21: |
C22: pR-ceded | D22: = | E22: CEDED carried reserve for primary insurer | L22: |
C23: reR-gross | D23: = | E23: GROSS carried reserve for reinsurer | L23: |
C24: d1 | D24: = | E24: discount factor for primary insurer | L24: |
C25: d2 | D25: = | E25: discount factor for reinsurer | L25: |
L26: |
A27: Formulas | C27: change in taxable income for primary insurer | H27: = | I27: price - (pR-ceded) x d1 | L27: |
C28: change in taxable income for reinsurer | H28: = | I28: (reR-gross) x d2 - price | L28: |
L29: |
L30: |
L31: |
L32: |
L33: |
L34: |
L35: |
L36: |
L37: |
L38: |
L39: |
L40: |
L41: |
L42: |
L43: |
L44: |
L45: |
L46: |
L47: |
L48: |
L49: |
L50: |
L51: |
L52: |
L53: |
L54: |
L55: |
L56: |
L57: |
L58: |
L59: |
L60: ---- | M60: ---- | N60: ---- | O60: ---- | P60: ---- | Q60: ---- | R60: ---- | S60: ---- | T60: ---- | U60: ---- | V60: ---- | W60: ---- | X60: ---- | Y60: ---- | Z60: ---- | AA60: ----
L61: |
L62: | | M62: work area: | O62: use price P as input instead of the increase in ultimate
L63: |
L64: | | M64: primary insurer DIRECT ultimate loss | Q64: =G8+RANDBETWEEN(50,80)*10000 -> 1820000
L65: |
L66: | | M66: REINSURER'S ultimate loss reserves, as a result of
L67: | | M67: commutation, increased by: | P67: 0.1
L68: |
L69: | | M69: The hard part of this problem is calculating the commutation price P:
L70: |
L71: | | N71: primary insurer DIRECT pd loss | Q71: = | R71: =Q64 -> 1820000 | S71: - | T71: =G8 -> 1110000
L72: | | Q72: = | R72: =R71-T71 -> 710000
L73: |
L74: | | N74: primary insurer CEDED pd loss | Q74: = | R74: =R72 -> 710000 | S74: x | T74: =G7 -> 0.35
L75: | | Q75: = | R75: =R74*T74 -> 248500
L76: | | Q76: = | R76: reinsurer GROSS pd loss
L77: |
L78: | | N78: reinsurer GROSS ultimate loss | Q78: = | R78: pd loss | S78: + | T78: R2
L79: | | Q79: = | R79: =R75 -> 248500 | S79: + | T79: =T11 -> 384615
L80: | | Q80: = | R80: =R79+T79 -> 633115
L81: |
L82: | | M82: But this is the GROSS ultimate loss PRIOR to commutation. AFTER commutation, we have:
L83: |
L84: | | N84: reinsurer GROSS ultimate loss | Q84: = | R84: =R80 -> 633115 | S84: x | T84: =1+P67 -> 1.1
L85: | | Q85: = | R85: =R84*T84 -> 696426.5
L86: |
L87: | | N87: now, reinsurer's reserve goes to 0, and the "extra" money in the ultimate must be the commutation price P:
L88: | | P88: P | Q88: = | R88: =R85 -> 696426.5 | S88: - | T88: =R75 -> 248500
L89: | | Q89: = | R89: =R88-T88 -> 447926.5
L90: |
L91: |
L92: |
L93: |
L94: |
L95: |
L96: |
L97: |
L98: |
L99: |
L100: |
L101: |
L102: |
L103: |
L104: |
L105: |
L106: |
L107: |
L108: |
L109: |
L110: |
L111: |
L112: |
L113: |
L114: |
L115: |
L116: |
L117: |
L118: |
L119: |
L120: |
L121: |
L122: |
L123: |
L124: |
L125: |
L126: |
L127: |
L128: |
L129: |
L130: |
L131: |
L132: |
L133: |
L134: |
L135: |
L136: |
L137: |
L138: |
L139: |
L140: |
L141: |
L142: |
L143: |
L144: |
L145: |
L146: |
L147: |
L148: |

Sheet 17S.26
A1: Reading: | C1: Klann.ReinsComm | L1: | | M1: insurer | N1: = | O1: =T40 -> 113958 | P1: =U40 -> (increase)
A2: Model: | C2: 2017.Spring #26b | L2: | | M2: reinsurer | N2: = | O2: =T41 -> -92526 | P2: =U41 -> (decrease)
A3: Problem Type: | C3: change in taxable income | L3: |
L4: |
A5: Given | C5: The following pertains to a reinsurance contract that was commuted: | L5: | | M5: =G7*100 & "% quota-share reinsurance means that " & G7*100 & "% is CEDED to reinsurer:" -> 25% quota-share reinsurance means that 25% is CEDED to reinsurer:
A6: random | L6: |
C7: quota-share percentage | G7: 0.25 | L7: | | N7: pR-ceded | O7: = | P7: pR-gross | Q7: x | R7: qs%
C8: primary insurer RESERVE direct(net) | G8: 940000 | H8: = | I8: pR-gross | L8: | | O8: = | P8: =G8 -> 940000 | Q8: x | R8: =G7 -> 0.25 | S8: = | T8: =P8*R8 -> 235000
C9: primary insurer ULTIMATE direct(net) | G9: 1540000 | H9: = | I9: pU-gross | L9: |
C10: discount factor for primary insurer | G10: 0.87 | L10: | | N10: reR-gross | O10: = | P10: pR-ceded | Q10: x | R10: =1+H14 -> 1.08
C11: discount factor for reinsurer | G11: 0.89 | L11: | | P11: =T8 -> 235000 | Q11: x | R11: =1+H14 -> 1.08 | S11: = | T11: =P11*R11 -> 253800
L12: |
C13: REINSURER'S carried loss reserves (prior to commutation) | L13: | | M13: The hard part of this problem is calculating the commutation price P:
C14: are higher than the INSURED'S carried reserves by: | H14: 0.08 | L14: |
L15: | | M15: pP-gross = | N15: primary insurer PAID LOSS direct | Q15: = | R15: pU-gross | S15: - | T15: pR-gross
C16: REINSURER'S ultimate loss, as a result of | L16: | | Q16: = | R16: =G9 -> 1540000 | S16: - | T16: =G8 -> 940000
C17: commutation, increased by: | F17: 0.16 | L17: | | Q17: = | R17: =R16-T16 -> 600000
L18: |
A19: Find | C19: change in taxable income for both insurer and reinsurer | L19: | | M19: pP-ceded = | N19: primary insurer PAID LOSS ceded | Q19: = | R19: pP-gross | S19: x | T19: qs%
L20: | | M20: (also equals reP-gross) | R20: =R17 -> 600000 | S20: x | T20: =G7 -> 0.25
A21: Notation | C21: P | D21: = | E21: commutation price | L21: | | Q21: = | R21: =R20*T20 -> 150000
C22: pR-ceded | D22: = | E22: CEDED carried reserve for primary insurer | L22: | | Q22: = | R22: reP-gross | S22: (reinsurer PAID LOSS gross)
C23: reR-gross | D23: = | E23: GROSS carried reserve for reinsurer | L23: |
C24: d1 | D24: = | E24: discount factor for primary insurer | L24: | | M24: reU-gross = | N24: reinsurer ULTIMATE LOSS gross | Q24: = | R24: reP-gross | S24: + | T24: reR-gross
C25: d2 | D25: = | E25: discount factor for reinsurer | L25: | | Q25: = | R25: =R21 -> 150000 | S25: + | T25: =T11 -> 253800
L26: | | Q26: = | R26: =R25+T25 -> 403800
A27: Formulas | C27: change in taxable income for primary insurer | H27: = | I27: price - (pR-ceded) x d1 | L27: |
C28: change in taxable income for reinsurer | H28: = | I28: (reR-gross) x d2 - price | L28: | | M28: But this is the GROSS ultimate loss PRIOR to commutation. AFTER commutation, we have:
L29: |
L30: | | M30: reU+gross = | N30: reinsurer ULTIMATE LOSS gross | Q30: = | R30: reU-gross | S30: x | T30: =1+F17 -> 1.16
L31: | | R31: =R26 -> 403800 | S31: x | T31: =1+F17 -> 1.16
L32: | | Q32: = | R32: =R31*T31 -> 468408
L33: |
L34: | | N34: now, reinsurer's reserve goes to 0, and the "extra" money in the ultimate must be the commutation price:
L35: | | P35: price | Q35: = | R35: =R32 -> 468408 | S35: - | T35: =R25 -> 150000
L36: | | Q36: = | R36: =R35-T35 -> 318408
L37: |
L38: | | M38: We now have what we need to substitute into the given formulas for change in taxable income:
L39: |
L40: | | N40: change in taxable income for primary insurer | S40: = | T40: =R36-T8*G10 -> 113958 | U40: =IF(T40>0," (increase)", IF(T40<0," (decrease)"," (no change)")) -> (increase)
L41: | | N41: change in taxable income for reinsurer | S41: = | T41: =T11*G11-R36 -> -92526 | U41: =IF(T41>0," (increase)", IF(T41<0," (decrease)"," (no change)")) -> (decrease)
L42: |
L43: |
L44: |
L45: |
L46: |
L47: |
L48: |
L49: |
L50: |
L51: |
L52: |
L53: |
L54: |
L55: |
L56: |
L57: |
L58: |
L59: |
L60: ---- | M60: ---- | N60: ---- | O60: ---- | P60: ---- | Q60: ---- | R60: ---- | S60: ---- | T60: ---- | U60: ---- | V60: ---- | W60: ---- | X60: ---- | Y60: ---- | Z60: ---- | AA60: ----
L61: |
L62: |
L63: |
L64: |
L65: |
L66: |
L67: |
L68: |
L69: |
L70: |
L71: |
L72: |
L73: |
L74: |
L75: |
L76: |
L77: |
L78: |
L79: |
L80: |
L81: |
L82: |
L83: |
L84: |
L85: |
L86: |
L87: |
L88: |
L89: |
L90: |
L91: |
L92: |
L93: |
L94: |
L95: |
L96: |
L97: |
L98: |
L99: |
L100: |
L101: |
L102: |
L103: |
L104: |
L105: |
L106: |
L107: |
L108: |
L109: |
L110: |
L111: |
L112: |
L113: |
L114: |
L115: |
L116: |
L117: |
L118: |
L119: |
L120: |
L121: |
L122: |
L123: |
L124: |
L125: |
L126: |
L127: |
L128: |
L129: |
L130: |
L131: |
L132: |
L133: |
L134: |
L135: |
L136: |
L137: |
L138: |
L139: |
L140: |

Sheet 16S.27
A1: Reading: | C1: Klann.ReinsComm | L1: | | Z1: |
A2: Model: | C2: 2016.Spring #27 | L2: | | M2: We need to solve these 2 inequalities for 'price' and HOPE that the solution ranges overlap. | Z2: |
A3: Problem Type: | C3: mutually beneficial commutation price | L3: | | M3: (If the solution ranges do NOT overlap then there is no MUTUALLY beneficial commutation price) | Z3: |
L4: | | Z4: |
A5: Given | C5: gross paid loss | G5: 4.1 | L5: | | M5: (A) | N5: price | O5: - | P5: pR-c | Q5: + | R5: pT | S5: > | T5: 0 | U5: <== for primary insurer | Z5: |
A6: random | C6: gross reserves (case + IBNR) | G6: 4.6 | L6: | | M6: (B) | N6: - price | O6: + | P6: reR-g | Q6: + | R6: reT | S6: > | T6: 0 | U6: <== for reinsurer | Z6: |
C7: gross discounted reserves (case + IBNR) | G7: 3.4 | H7: <== economic discount | L7: | | Z7: |
C8: ceded paid loss | G8: 0.7 | L8: | | M8: Now: | Z8: |
C9: ceded reserves (case + IBNR) | G9: 3 | L9: | | N9: pR-c | O9: = | P9: =G10 -> 1.5 | Q9: <== use company discounted reserves (economic value) | Z9: |
C10: ceded discounted reserves (case + IBNR) | G10: 1.5 | H10: <== economic discount | L10: | | N10: reR-g | O10: = | P10: =G10 -> 1.5 | Q10: <== use company discounted reserves (economic value) | Z10: |
L11: | | Z11: |
C12: The following discount factors are for tax purposes: | L12: | | M12: For the primary insurer: | Z12: |
L13: | | N13: pT | O13: = | P13: tax rate | Q13: x | R13: (decrease in taxable income for primary insurer) | W13: ) | Z13: |
F14: primary | L14: | | O14: = | P14: tax rate | Q14: x | R14: ( | S14: reserves commuted | U14: - | V14: price | W14: ) | Z14: |
F15: insurer | G15: reinsurer | L15: | | O15: = | P15: =F17 -> 0.31 | Q15: x | R15: ( | S15: =P20 -> 2.46 | U15: - | V15: price | W15: ) | Z15: |
C16: average discount factor | F16: 0.82 | G16: 0.85 | H16: <== for statutory discounting | L16: | | Z16: |
C17: tax rate | F17: 0.31 | G17: 0.18 | L17: | | N17: where: | O17: reserves commuted | Z17: |
L18: | | O18: = | P18: undiscounted ceded reserves | S18: x | T18: discount factor | V18: <== tax discounting | Z18: |
C19: The reinsurer's assumed losses equal the primary insurer's ceded losses | L19: | | O19: = | P19: =G9 -> 3 | S19: x | T19: =F16 -> 0.82 | Z19: |
L20: | | O20: = | P20: =P19*T19 -> 2.46 | Z20: |
L21: | | Z21: |
A22: Calculate | C22: range of the mutually beneficial commutation price (if possible) | L22: | | N22: Using these values to solve inequality (A) gives: | S22: price | T22: > | U22: =(P9-G9*F16*F17)/(1-F17) -> 1.068695652 | V22: <== for insurer's benefit | Z22: |
L23: | | Z23: |
L24: | | M24: And a similar calculation for the reinsurer is as follows: | Z24: |
L25: | | N25: reT | O25: = | P25: tax rate | Q25: x | R25: (decrease in taxable income for primary insurer) | W25: ) | Z25: |
L26: | | O26: = | P26: tax rate | Q26: x | R26: ( | S26: -reserves commuted | U26: + | V26: price | W26: ) | Z26: |
L27: | | O27: = | P27: =G17 -> 0.18 | Q27: x | R27: ( | S27: =P32 -> -2.55 | U27: + | V27: price | W27: ) | Z27: |
L28: | | Z28: |
L29: | | N29: where: | O29: -reserves commuted | Z29: |
L30: | | O30: = | P30: - undiscounted ceded reserves | S30: x | T30: discount factor | V30: <== tax discounting | Z30: |
L31: | | O31: = | P31: =-G9 -> -3 | S31: x | T31: =G16 -> 0.85 | Z31: |
L32: | | O32: = | P32: =P31*T31 -> -2.55 | Z32: |
L33: | | Z33: |
L34: | | N34: Using these values to solve inequality (B) gives: | S34: price | T34: < | U34: =(G10-G9*G16*G17)/(1-G17) -> 1.269512195 | V34: <== for reinsurer's benefit | Z34: |
L35: | | Z35: |
L36: | | Z36: |
L37: | | M37: Final price range: | O37: ( | P37: =IF(U22>U34,"no overlap",U22) -> 1.068695652 | Q37: , | R37: =IF(U22>U34,"no overlap",U34) -> 1.269512195 | S37: ) | Z37: |
L38: | | Z38: |
L39: | | Z39: |
L40: | | Z40: |
L41: | | Z41: |
L42: | | Z42: |
L43: | | Z43: |
L44: | | Z44: |
L45: | | Z45: |
L46: | | Z46: |
L47: | | Z47: |
L48: | | Z48: |
L49: | | Z49: |
L50: | | Z50: |
L51: | | Z51: |
L52: | | Z52: |
L53: | | Z53: |
L54: | | Z54: |
L55: | | Z55: |
L56: | | Z56: |
L57: | | Z57: |
L58: | | Z58: |
L59: | | Z59: |
L60: ---- | M60: ---- | N60: ---- | O60: ---- | P60: ---- | Q60: ---- | R60: ---- | S60: ---- | T60: ---- | U60: ---- | V60: ---- | W60: ---- | X60: ---- | Y60: ---- | Z60: ----
L61: | | Z61: |
L62: | | Z62: |
L63: | | Z63: |
L64: | | Z64: |
L65: | | Z65: |
L66: | | Z66: |
L67: | | Z67: |
L68: | | Z68: |
L69: | | Z69: |
L70: | | Z70: |
L71: | | Z71: |
L72: | | Z72: |
L73: | | Z73: |
L74: | | Z74: |
L75: | | Z75: |
L76: | | Z76: |
L77: | | Z77: |
L78: | | Z78: |
L79: | | Z79: |
L80: | | Z80: |
L81: | | Z81: |
L82: | | Z82: |
L83: | | Z83: |
L84: | | Z84: |
L85: | | Z85: |
L86: | | Z86: |
L87: | | Z87: |
L88: | | Z88: |
L89: | | Z89: |
L90: | | Z90: |
L91: | | Z91: |
L92: | | Z92: |
L93: | | Z93: |
L94: | | O94: 4 | Z94: |
L95: | | O95: 5 | Z95: |
L96: | | O96: 3.5 | Z96: |
L97: | | O97: 0.5 | Z97: |
L98: | | O98: 3 | Z98: |
L99: | | O99: 2 | Z99: |
L100: | | Z100: |
L101: | | Z101: |
L102: | | Z102: |
L103: | | N103: primary | Z103: |
L104: | | N104: insurer | O104: reinsurer | Z104: |
L105: | | N105: 0.85 | O105: 0.8 | Z105: |
L106: | | N106: 0.35 | O106: 0.2 | Z106: |
L107: | | Z107: |
L108: | | Z108: |
L109: | | Z109: |
L110: | | Z110: |
L111: | | Z111: |
L112: | | Z112: |
L113: | | Z113: |
L114: | | Z114: |
L115: | | Z115: |
L116: | | Z116: |
L117: | | Z117: |
L118: | | Z118: |
L119: | | Z119: |
L120: | | Z120: |
L121: | | Z121: |
L122: | | Z122: |
L123: | | Z123: |
L124: | | Z124: |
L125: | | Z125: |
L126: | | Z126: |
L127: | | Z127: |
L128: | | Z128: |
L129: | | Z129: |
L130: | | Z130: |
L131: | | Z131: |
L132: | | Z132: |
L133: | | Z133: |
L134: | | Z134: |
L135: | | Z135: |
L136: | | Z136: |
L137: | | Z137: |
L138: | | Z138: |

Sheet 10-10
A1: Reading: | C1: Freihaut.Reins | L1: |
A2: Model: | C2: none | L2: |
A3: Problem Type: | C3: 10-10 rule for assessing risk transfer | L3: | | M3: 10-10 rule:
L4: |
A5: Given | C5: type of treaty: | E5: excess-of-loss | L5: | | N5: Calculate the reinsurer's NPV(loss) at the 90% percentile since this corresponds
A6: random | C6: primary retention: | E6: 9 | F6: million | L6: | | N6: to a 10% probability of loss FOR THE REINSURER
C7: excess coverage: | E7: 8 | F7: million beyond retention | L7: |
C8: discount rate: | E8: 0.04 | L8: | | N8: Risk transfer has occurred if:
L9: |
C10: reinsurance premium | F10: 3.2 | G10: million | H10: * premiums are paid at start of year | L10: | | O10: NPV(loss) at 90th percentile > 110% x (reinsurance premium)
C11: losses paid in full after: | F11: 3 | G11: years | H11: * not a predetermined payment schedule | L11: |
L12: |
C13: CDF (Cumulative Probability Distribution) for primary insurer losses: | L13: | | N13: NPV(loss) @ 90th | O13: = | P13: PV( | Q13: gross loss | R13: - | S13: retention | T13: )
L14: | | O14: = | P14: PV( | Q14: =MIN(E16,SUM(E6:E7)) -> 15 | R14: - | S14: =E6 -> 9 | T14: )
D15: prob. | E15: gross loss | L15: | | O15: = | P15: PV( | Q15: =Q14-S14 -> 6 | R15: )
D16: 0.9 | E16: 15 | L16: | | O16: = | P16: =Q15/(1+E8)^F11 -> 5.333978152
D17: 0.95 | E17: 23 | L17: |
D18: 0.99 | E18: 64 | L18: |
L19: | | N19: 110% x premium | O19: = | P19: =1.1*F10 -> 3.52
L20: |
A21: Find | C21: Use the 10-10 rule for risk transfer to assess whether risk transfer has occurred. | L21: | | N21: Conclusion: | O21: =IF(P16>P19," risk transfer occurred"," no risk transfer") -> risk transfer occurred
L22: |
L23: |
L24: | | M24: Side note: Discounting calculation
L25: |
L26: | | N26: ="PV(" &Q15&".0)" -> PV(6.0) | O26: = | P26: =Q15 -> 6 | Q26: / | R26: =1+E8 & "^" & F11 -> 1.04^3
L27: | | O27: = | P27: =P26/(1+E8)^F11 -> 5.333978152
L28: |
L29: |
L30: | | M30: TIP: | N30: Don't forget to check whether the (gross loss) is larger than (primary retention) + (excess coverage)
L31: |
L32: | | N32: gross loss @ 90th percentile: | Q32: =E16 -> 15
L33: | | N33: retention + excess: | Q33: =E6+E7 -> 17
L34: |
L35: | | N35: gross loss @90th | P35: =IF(Q32<=Q33,"is less than/equal","is greater than") -> is less than/equal | R35: retention + excess | T35: ==> | U35: =IF(Q32>Q33,"must cap gross loss","no capping required") -> no capping required
L36: |
L37: |
L38: |
L39: |
L40: |
L41: |
L42: |
L43: |
L44: |
L45: |
L46: |
L47: |
L48: |
L49: |
L50: |
L51: |
L52: |
L53: |
L54: |
L55: |
L56: |
L57: |
L58: |
L59: |
L60: ---- | M60: ---- | N60: ---- | O60: ---- | P60: ---- | Q60: ---- | R60: ---- | S60: ---- | T60: ---- | U60: ---- | V60: ---- | W60: ---- | X60: ---- | Y60: ---- | Z60: ---- | AA60: ----
L61: |
L62: |
L63: |
L64: |
L65: |
L66: |
L67: |
L68: |
L69: |
L70: |
L71: |
L72: |
L73: |
L74: |
L75: |
L76: |
L77: |
L78: |
L79: |
L80: |
L81: |
L82: |
L83: |
L84: |
L85: |
L86: |
L87: |
L88: ---- | M88: ---- | N88: ---- | O88: ---- | P88: ---- | Q88: ---- | R88: ---- | S88: ---- | T88: ---- | U88: ---- | V88: ---- | W88: ---- | X88: ---- | Y88: ---- | Z88: ---- | AA88: ----
L89: |
L90: |
L91: |
L92: |
L93: |
L94: |
L95: |
L96: |
L97: |
L98: |
L99: |
L100: |
L101: |
L102: |
L103: |
L104: |
L105: |
L106: |
L107: |
L108: |
L109: |
L110: |
L111: |
L112: |
L113: |
L114: |
L115: |
L116: |
L117: |
L118: |
L119: |
L120: |
L121: |
L122: |
L123: |
L124: |
L125: |
L126: |
L127: |
L128: |
L129: |
L130: |
L131: |
L132: |
L133: |
L134: |
L135: |
L136: |
L137: |
L138: |
L139: |
L140: |
L141: |
L142: |
L143: |
L144: |
L145: |
L146: |
L147: |
L148: |

Sheet IEE.SA
A1: Reading: | C1: Odomirok.18-IEE | L1: | | AA1: |
A2: Model: | C2: 2015.Fall #13 | L2: | | M2: Let m(x) | N2: = | O2: mean value of ( prior CY value of x , current CY value of x ) | AA2: |
A3: Problem Type: | C3: Allocation of surplus to line of business | L3: | | AA3: |
L4: | | AA4: |
A5: Given | C5: All LOBs | F5: notation | G5: prior CY | H5: current CY | L5: | | M5: Step 1: | N5: calculate the Surplus Ratio (SR) using the All Lines data | AA5: |
A6: random | C6: policyholders' surplus | F6: S | G6: 10000 | H6: 11900 | L6: | | AA6: |
C7: net loss & LAE reserve | F7: L + LAE | G7: 18900 | H7: 23600 | L7: | | N7: SR | O7: = | P7: m(S) / [ m(L) + m(LAE) + m(UEP) + NEPCY ] | AA7: |
C8: net UEP reserve | F8: UEP | G8: 5400 | H8: 7000 | L8: | | M8: where: | AA8: |
C9: net EP | F9: NEP | G9: 8800 | H9: 10740 | L9: | | N9: m(S) | O9: = | P9: ( | Q9: =G6 -> 10000 | R9: + | S9: =H6 -> 11900 | T9: ) | U9: / | V9: 2 | W9: = | X9: =(Q9+S9)/2 -> 10950 | AA9: |
L10: | | N10: m(L+LAE) | O10: = | P10: ( | Q10: =G7 -> 18900 | R10: + | S10: =H7 -> 23600 | T10: ) | U10: / | V10: 2 | W10: = | X10: =(Q10+S10)/2 -> 21250 | AA10: |
L11: | | N11: m(UEP) | O11: = | P11: ( | Q11: =G8 -> 5400 | R11: + | S11: =H8 -> 7000 | T11: ) | U11: / | V11: 2 | W11: = | X11: =(Q11+S11)/2 -> 6200 | AA11: |
C12: Commercial Auto | F12: notation | G12: prior CY | H12: current CY | L12: | | N12: NEPCY | O12: = | P12: =H9 -> 10740 | AA12: |
C13: net loss & LAE reserve | F13: (L + LAE)C | G13: 1100 | H13: 1270 | L13: | | M13: then: | AA13: |
C14: net UEP reserve | F14: UEPC | G14: 2100 | H14: 2480 | L14: | | N14: SR | O14: = | P14: =X9 -> 10950 | Q14: / | R14: =(X10+X11+P12) -> 38190 | S14: = | T14: =ROUND(P14/R14,4) -> 0.2867 | AA14: |
C15: net EP | F15: NEPC | G15: 4600 | H15: 5430 | L15: | | AA15: |
L16: | | AA16: |
L17: | | M17: Step 2: | N17: use the Surplus Ratio calculated in Step 1 to allocate the 'All Lines' surplus to commercial auto | AA17: |
A18: Find | C18: calculate the surplus allocation to commercial auto for the current CY | L18: | | AA18: |
L19: | | N19: SC | O19: = | P19: SR x [ m(LC) + m(LAEC) + m(UEPC) + NEPC(CY) ] | AA19: |
L20: | | M20: where: | AA20: |
L21: | | N21: m(LC + LAEC) | O21: = | P21: ( | Q21: =G13 -> 1100 | R21: + | S21: =H13 -> 1270 | T21: ) | U21: / | V21: 2 | W21: = | X21: =(Q21+S21)/2 -> 1185 | AA21: |
L22: | | N22: m(UEPC) | O22: = | P22: ( | Q22: =G14 -> 2100 | R22: + | S22: =H14 -> 2480 | T22: ) | U22: / | V22: 2 | W22: = | X22: =(Q22+S22)/2 -> 2290 | AA22: |
L23: | | N23: NEPC(CY) | O23: = | P23: =H15 -> 5430 | AA23: |
L24: | | M24: then: | AA24: |
L25: | | N25: SC | O25: = | P25: =T14 -> 0.2867 | Q25: x | R25: =X21+X22+P23 -> 8905 | S25: = | T25: =ROUND(P25*R25,0) -> 2553 | U25: <== final answer | AA25: |
L26: | | AA26: |
L27: | | AA27: |
L28: | | AA28: |
L29: | | AA29: |
L30: | | AA30: |
L31: | | AA31: |
L32: | | AA32: |
L33: | | AA33: |
L34: | | AA34: |
L35: | | AA35: |
L36: | | AA36: |
L37: | | AA37: |
L38: | | AA38: |
L39: | | AA39: |
L40: | | AA40: |
L41: | | AA41: |
L42: | | AA42: |
L43: | | AA43: |
L44: | | AA44: |
L45: | | AA45: |
L46: | | AA46: |
L47: | | AA47: |
L48: | | AA48: |
L49: |
L50: |
L51: |
L52: |
L53: |
L54: |
L55: |
L56: |
L57: |
L58: |
L59: | | AA59: |
L60: ---- | M60: ---- | N60: ---- | O60: ---- | P60: ---- | Q60: ---- | R60: ---- | S60: ---- | T60: ---- | U60: ---- | V60: ---- | W60: ---- | X60: ---- | Y60: ---- | Z60: ---- | AA60: ----
L61: | | AA61: |
L62: | | AA62: |
L63: | | AA63: |
L64: | | AA64: |
L65: | | AA65: |
L66: | | AA66: |
L67: | | AA67: |
L68: | | AA68: |
L69: | | AA69: |
L70: | | AA70: |
L71: | | AA71: |
L72: | | AA72: |
L73: | | AA73: |
L74: | | AA74: |
L75: | | AA75: |
L76: | | AA76: |
L77: | | AA77: |
L78: | | AA78: ----
L79: | | AA79: |
L80: | | AA80: |
L81: | | AA81: |
L82: | | AA82: |
L83: | | AA83: |
L84: | | AA84: |
L85: | | AA85: |
L86: | | AA86: |
L87: | | AA87: |
L88: | | AA88: |
L89: | | AA89: |
L90: | | AA90: |
L91: | | AA91: |
L92: | | AA92: |
L93: | | AA93: |
L94: | | AA94: |
L95: | | AA95: |
L96: | | AA96: |
L97: | | AA97: |
L98: | | AA98: |
L99: | | AA99: |
L100: | | AA100: |
L101: | | AA101: |
L102: | | AA102: |
L103: | | AA103: |
L104: | | AA104: |
L105: | | AA105: |
L106: | | AA106: |
L107: | | AA107: |
L108: | | AA108: |
L109: | | AA109: |
L110: | | AA110: |
L111: | | AA111: |
L112: | | AA112: |
L113: | | AA113: |
L114: | | AA114: |
L115: | | AA115: |
L116: | | AA116: |
L117: | | AA117: |
L118: | | AA118: |
L119: | | AA119: |
L120: | | AA120: |
L121: | | AA121: |
L122: | | AA122: |
L123: | | AA123: |
L124: | | AA124: |
L125: | | AA125: |
L126: | | AA126: |
L127: | | AA127: |
L128: | | AA128: |
L129: | | AA129: |
L130: | | AA130: |
L131: | | AA131: |
L132: | | AA132: |
L133: | | AA133: |
L134: | | AA134: |
L135: | | AA135: |
L136: | | AA136: |
L137: | | AA137: |
L138: | | AA138: |

Sheet IEE.TIA
A1: Reading: | C1: Odomirok.18-IEE | L1: |
A2: Model: | C2: not based on an exam problem | L2: | | M2: Let m(x) | N2: = | O2: mean value of ( prior CY value of x , current CY value of x )
A3: Problem Type: | C3: Calculation of basic IEE quantities: FAIT & TIA | L3: |
L4: |
A5: Given | G5: prior CY | H5: current CY | L5: | | M5: TIA | N5: TIA | O5: = | P5: m(L) + m(LAE) + m(UEP) + m(re) + m(S) - m(AB)
A6: random | C6: Financial Statement Item | F6: notation | G6: all lines | H6: all lines | L6: | | Y6: TIA
C7: PH surplus | F7: S | G7: 15000 | H7: 18300 | L7: | | M7: where: | Y7: operation
C8: net loss & LAE reserve | F8: L | G8: 21500 | H8: 28000 | L8: | | N8: m(L+LAE) | O8: = | P8: ( | Q8: =G8 -> 21500 | R8: + | S8: =H8 -> 28000 | T8: ) | U8: / | V8: 2 | W8: = | X8: =(Q8+S8)/2 -> 24750 | Y8: (+)
C9: net UEP reserve | F9: UEP | G9: 6300 | H9: 6900 | L9: | | N9: m(UEP) | O9: = | P9: ( | Q9: =G9 -> 6300 | R9: + | S9: =H9 -> 6900 | T9: ) | U9: / | V9: 2 | W9: = | X9: =(Q9+S9)/2 -> 6600 | Y9: (+)
C10: net EP | F10: NEP | G10: 14100 | H10: 14950 | L10: | | N10: m(re) | O10: = | P10: ( | Q10: =G11 -> 1720 | R10: + | S10: =H11 -> 2050 | T10: ) | U10: / | V10: 2 | W10: = | X10: =(Q10+S10)/2 -> 1885 | Y10: (+)
C11: ceded reins. premium payable | F11: re | G11: 1720 | H11: 2050 | L11: | | N11: m(S) | O11: = | P11: ( | Q11: =G7 -> 15000 | R11: + | S11: =H7 -> 18300 | T11: ) | U11: / | V11: 2 | W11: = | X11: =(Q11+S11)/2 -> 16650 | Y11: (+)
C12: agents' balances | F12: AB | G12: 1130 | H12: 1390 | L12: | | N12: m(AB) | O12: = | P12: ( | Q12: =G12 -> 1130 | R12: + | S12: =H12 -> 1390 | T12: ) | U12: / | V12: 2 | W12: = | X12: =(Q12+S12)/2 -> 1260 | Y12: (-)
L13: | | M13: then:
C14: PrePaid Expense Ratio (PPER) | F14: 0.36 | L14: | | N14: TIA | O14: = | P14: =SUM(X8:X11)-X12 -> 48625
L15: |
L16: |
A17: Find: | C17: TIA & FAIT (Total Investable Assets & Funds Attributable to Insurance Transactions) | L17: | | M17: FAIT | N17: FAIT | O17: = | P17: m(L) + m(LAE) + m(UEP) + m(re) - m(AB) - (PPE for UEP)
L18: |
L19: | | N19: The only term we don't have from the calculation of TIA is (PPE for UEP)
L20: |
L21: | | O21: (PPE for UEP) | Q21: = | R21: PPER | S21: x | T21: m(UEP)
L22: |
L23: | | N23: and we're given PPER = | Q23: =F14 -> 0.36
L24: |
L25: | | N25: therefore
L26: | | O26: (PPE for UEP) | Q26: = | R26: =Q23 -> 0.36 | S26: x | T26: =X9 -> 6600 | U26: = | V26: =ROUND(R26*T26,0) -> 2376
L27: |
L28: | | M28: and:
L29: | | N29: FAIT | O29: = | P29: =SUM(X8:X10)-X12-V26 -> 29599
L30: |
L31: |
L32: | | M32: Aside: | N32: If you aren't given PPER, you can calculate it using this formula:
L33: |
L34: | | N34: PPER | O34: = | P34: (net acquisition expense) / NWP
L35: |
L36: |
L37: |
L38: |
L39: |
L40: |
L41: |
L42: |
L43: |
L44: |
L45: |
L46: |
L47: |
L48: |
L49: |
L50: |
L51: |
L52: |
L53: |
L54: |
L55: |
L56: |
L57: |
L58: |
L59: |
L60: ---- | M60: ---- | N60: ---- | O60: ---- | P60: ---- | Q60: ---- | R60: ---- | S60: ---- | T60: ---- | U60: ---- | V60: ---- | W60: ---- | X60: ---- | Y60: ---- | Z60: ---- | AA60: ----
L61: |
L62: |
L63: |
L64: |
L65: |
L66: |
L67: |
L68: |
L69: |
L70: |
L71: |
L72: |
L73: |
L74: |
L75: |
L76: |
L77: |
L78: |
L79: |
L80: |
L81: |
L82: |
L83: |
L84: |
L85: |
L86: |
L87: |
L88: |
L89: |
L90: |
L91: |
L92: |
L93: |
L94: |
L95: |
L96: |
L97: |
L98: |
L99: |
L100: |
L101: |
L102: |
L103: |
L104: |
L105: |
L106: |
L107: |
L108: |
L109: |
L110: |
L111: |
L112: |
L113: |
L114: |
L115: |
L116: |
L117: |
L118: |
L119: |
L120: |
L121: |
L122: |
L123: |
L124: |
L125: |
L126: |
L127: |
L128: |
L129: |
L130: |
L131: |
L132: |
L133: |
L134: |
L135: |
L136: |
L137: |
L138: |

Sheet IEE.PL
A1: Reading: | C1: Odomirok.18-IEE | L1: |
A2: Model: | C2: 2015.Spring #13 | L2: | | M2: Let m(x) | N2: = | O2: mean value of ( prior CY value of x , current CY value of x )
A3: Problem Type: | C3: Pre-tax profit (loss) | L3: |
L4: |
A5: Given | H5: prior CY | I5: current CY | L5: | | M5: Step 1: | N5: Calculate: pre-tax profit (loss) excluding investment gain
A6: random | C6: TOTAL net investmemt earned | G6: Inv | H6: 1800 | I6: 3200 | L6: |
C7: TOTAL net realized capital gains | G7: CapG | H7: 17900 | I7: 21100 | L7: | | N7: According to the formula provided in Odomirok, these are the components:
C8: TOTAL policyholders' surplus | G8: S | H8: 136800 | I8: 132700 | L8: |
C9: HOMEOWNERS total investment gain | G9: NIGH | H9: 10200 | I9: 9200 | L9: |
L10: | | N10: (+) | O10: earned premium | R10: =I18 -> 74400
H11: homeowners | J11: TOTAL | L11: | | N11: (-) | O11: dividends to policyholders | R11: not given
H12: prior CY | I12: current CY | J12: prior CY | K12: current CY | L12: | | N12: - | O12: incurred loss | R12: =I22 -> 38600
C13: commission | G13: C | H13: 13900 | I13: 13200 | J13: 24300 | K13: 26100 | L13: | | N13: - | O13: DCC incurred | R13: not given
C14: taxes, licenses, fees | G14: TLF | H14: 1500 | I14: 1500 | J14: 2900 | K14: 3300 | L14: | | N14: - | O14: A&O incurred | R14: not given
C15: other acquisition expenses | G15: Other | H15: 2800 | I15: 3600 | J15: 7500 | K15: 6500 | L15: | | N15: - | O15: C | R15: =I13 -> 13200
C16: general expenses | G16: Gen | H16: 4600 | I16: 6500 | J16: 9500 | K16: 12200 | L16: | | N16: - | O16: TLF | R16: =I14 -> 1500
C17: written premium | G17: WP | H17: 58000 | I17: 64700 | J17: 155600 | K17: 153600 | L17: | | N17: - | O17: Other | R17: =I15 -> 3600
C18: earned premium | G18: EP | H18: 61100 | I18: 74400 | J18: 132400 | K18: 124700 | L18: | | N18: - | O18: Gen | R18: =I16 -> 6500
C19: loss & LAE reserves | G19: L + LAE | H19: 28400 | I19: 31600 | J19: 52500 | K19: 50400 | L19: | | N19: (+) | O19: other income less expenses | R19: =I23-I24 -> 1300 | S19: = | T19: =I23 -> 2100 | U19: - | V19: =I24 -> 800
C20: unearned premium reserves | G20: UEP | H20: 27500 | I20: 26500 | J20: 54100 | K20: 54100 | L20: | | R20: =R10-SUM(R11:R18)+R19 -> 12300 | S20: <== pretax profit (loss) excluding InvGain
C21: agents' balances | G21: AB | H21: 5900 | I21: 6500 | J21: 12900 | K21: 15000 | L21: |
C22: net loss & LAE incurred | G22: IL | H22: 43200 | I22: 38600 | J22: 87500 | K22: 72500 | L22: | | M22: Step 2: | N22: Calculate TOTAL profit (loss) by adding the investment gain (given)
C23: finance charges not included in premium | G23: charges | H23: 1800 | I23: 2100 | J23: 4700 | K23: 5000 | L23: |
C24: fine & penalties of regulatory authorities | G24: penalties | H24: 600 | I24: 800 | J24: 1100 | K24: 1500 | L24: | | N24: = | O24: =R20 -> 12300 | P24: + | Q24: =I9 -> 9200
L25: | | N25: = | O25: =O24+Q24 -> 21500
L26: |
A27: Find | C27: Current CY pre-tax profit (loss) as a percentage of policyholders' surplus for homeowners. | L27: | | M27: Step 3: | N27: Calculate Surplus Ratio (because we need to allocate surplus to homeowners)
L28: |
L29: | | N29: SR | O29: = | P29: m(S) / [ m(L) + m(LAE) + m(UEP) + NEPCY ]
L30: | | M30: where:
L31: | | N31: m(S) | O31: = | P31: ( | Q31: =H8 -> 136800 | R31: + | S31: =I8 -> 132700 | T31: ) | U31: / | V31: 2 | W31: = | X31: =(Q31+S31)/2 -> 134750
L32: | | N32: m(L+LAE) | O32: = | P32: ( | Q32: =J19 -> 52500 | R32: + | S32: =K19 -> 50400 | T32: ) | U32: / | V32: 2 | W32: = | X32: =(Q32+S32)/2 -> 51450
L33: | | N33: m(UEP) | O33: = | P33: ( | Q33: =J20 -> 54100 | R33: + | S33: =K20 -> 54100 | T33: ) | U33: / | V33: 2 | W33: = | X33: =(Q33+S33)/2 -> 54100
L34: | | N34: NEPCY | O34: = | P34: =K18 -> 124700
L35: | | M35: then:
L36: | | N36: SR | O36: = | P36: =X31 -> 134750 | Q36: / | R36: =SUM(X32:X33)+P34 -> 230250 | S36: = | T36: =P36/R36 -> 0.5852334419
L37: |
L38: | | M38: Step 4: | N38: Allocate surplus to homeowners
L39: |
L40: | | N40: SH | O40: = | P40: SR x [ m(LH) + m(LAEH) + m(UEPH) + NEPH(CY) ]
L41: | | M41: where:
L42: | | N42: m(L+LAE) | O42: = | P42: ( | Q42: =H19 -> 28400 | R42: + | S42: =I19 -> 31600 | T42: ) | U42: / | V42: 2 | W42: = | X42: =(Q42+S42)/2 -> 30000
L43: | | N43: m(UEP) | O43: = | P43: ( | Q43: =H20 -> 27500 | R43: + | S43: =I20 -> 26500 | T43: ) | U43: / | V43: 2 | W43: = | X43: =(Q43+S43)/2 -> 27000
L44: | | N44: NEPCY | O44: = | P44: =I18 -> 74400
L45: | | M45: then:
L46: | | N46: SH | O46: = | P46: =T36 -> 0.5852334419 | Q46: x | R46: =SUM(X42:X43)+P44 -> 131400 | T46: = | U46: =P46*R46 -> 76899.67427
L47: |
L48: | | M48: Step 5: | N48: Final Ratio | P48: = | Q48: Step 2 | R48: / | S48: Step 4 | T48: = | U48: =O25/U46 -> 0.2795850594 | V48: <== final answer
L49: |
L50: |
L51: |
L52: |
L53: |
L54: |
L55: |
L56: |
L57: |
L58: |
L59: |
L60: ---- | M60: ---- | N60: ---- | O60: ---- | P60: ---- | Q60: ---- | R60: ---- | S60: ---- | T60: ---- | U60: ---- | V60: ---- | W60: ---- | X60: ---- | Y60: ---- | Z60: ---- | AA60: ----
L61: |
L62: |
L63: |
L64: |
L65: |
L66: |
L67: |
L68: |
L69: |
L70: |
L71: |
L72: |
L73: |
L74: |
L75: |
L76: |
L77: |
L78: ---- | M78: ---- | N78: ---- | O78: ---- | P78: ---- | Q78: ---- | R78: ---- | S78: ---- | T78: ---- | U78: ---- | V78: ---- | W78: ---- | X78: ---- | Y78: ---- | Z78: ---- | AA78: ----
L79: |
L80: |
L81: |
L82: |
L83: |
L84: |
L85: |
L86: |
L87: |
L88: |
L89: |
L90: |
L91: |
L92: |
L93: |
L94: |
L95: |
L96: |
L97: |
L98: |
L99: |
L100: |
L101: |
L102: |
L103: |
L104: |
L105: |
L106: |
L107: |
L108: |
L109: |
L110: |
L111: |
L112: |
L113: |
L114: |
L115: |
L116: |
L117: |
L118: |
L119: |
L120: |
L121: |
L122: |
L123: |
L124: |
L125: |
L126: |
L127: |
L128: |
L129: |
L130: |
L131: |
L132: |
L133: |
L134: |
L135: |
L136: |
L137: |
L138: |
